Workbook

Sheet Light (hidden)
A1: Artikelnummer+ | B1: Bezeichnung | C1: Preis excl. | D1: Preis Inkl. | E1: Notiz
A2: 100012 | B2: =Products!D12 -> DMX Extension | C2: =Products!E12 -> 299 | D2: =Products!F12 -> 299
A3: 100029 | B3: =VLOOKUP(Main!C2,Translating_general!A101:P118,2,FALSE) -> Dimmer Channel (110V)
A4: 100117 | B4: =Products!D27 -> RGBW 24V Dimmer DMX | C4: =Products!E27 -> 82 | D4: =Products!F27 -> 82
A5: 100125 | B5: =Products!D29 -> RGBW 24V Dimmer Air | C5: =Products!E29 -> 96 | D5: =Products!F29 -> 96
A6: 200042 | B6: =Products!D73 -> RGB LED Strip 5m | C6: =Products!E73 -> 109 | D6: =Products!F73 -> 109
A7: 200043 | B7: =Products!D74 -> Warm White LED Strip 5m | C7: =Products!E74 -> 109 | D7: =Products!F74 -> 109
A8: 200046 | B8: =Products!D75 -> RGB LED Strip 5m IP68 | C8: =Products!E75 -> 122 | D8: =Products!F75 -> 122
A9: 100153 | B9: =Products!D37 -> Nano IO Air | C9: =Products!E37 -> 119 | D9: =Products!F37 -> 119
A10: 200061 | B10: =Products!D82 -> Warm White LED Strip 5m IP65 | C10: =Products!E82 -> 115 | D10: =Products!F82 -> 115
A11: 200092 | B11: =Products!D93 -> Warm White LED Strip 5m IP68 | C11: =Products!E93 -> 115 | D11: =Products!F93 -> 115
A12: 200098 | B12: =Products!D98 -> RGBW LED Strip 5m IP20 | C12: =Products!E98 -> 149 | D12: =Products!F98 -> 149
A13: 200099 | B13: =Products!D99 -> RGBW LED Strip 5m IP65 | C13: =Products!E99 -> 156 | D13: =Products!F99 -> 156
A14: 200100 | B14: =Products!D100 -> RGBW LED Strip 5m IP68 | C14: =Products!E100 -> 164 | D14: =Products!F100 -> 164
A15: 200280 | B15: =Products!D140 -> LED Strip Accessories Set - RGBW | C15: =Products!E140 -> 19 | D15: =Products!F140 -> 19
A16: 200278 | B16: =Products!D141 -> LED Strip Accessories Set - Warm White | C16: =Products!E141 -> 14 | D16: =Products!F141 -> 14
B17: =VLOOKUP(Main!C2,Translating_general!A101:P118,3,FALSE) -> Analogue 1-10V
B18: =VLOOKUP(Main!C2,Translating_general!A101:P118,4,FALSE) -> Light Circut (switched )
A19: 100204 | B19: =Products!D147 -> LED Spot RGBW | C19: =Products!E147 -> 55 | D19: =Products!F147 -> 55
A20: 100203 | B20: =Products!D148 -> LED Spot Warm White | C20: =Products!E148 -> 39 | D20: =Products!F148 -> 39
B21: =VLOOKUP(Main!C2,Translating_general!A101:AK118,37,FALSE) -> Dali Channel
B22: =VLOOKUP(Main!C2,Translating_general!A101:AM118,39,FALSE) -> Circut (switched ) 16A
B23: =Products!D180 -> LED Ceiling Spot RGBW
B24: =Products!D181 -> LED Ceiling Spot WW | M24: =VLOOKUP(Main!C2,Translating_general!A101:P118,5,FALSE) -> Light Circuit (dimmed 110V)
B25: =Products!D182 -> LED Ceiling Spot Tree RGBW | M25: =VLOOKUP(Main!C2,Translating_general!A101:P118,6,FALSE) -> Light Circuit (dimmed 0-10V) | P25: DMX Dimmer 4 Kanal muss addiert werden
B26: =Products!D183 -> LED Ceiling Spot Tree WW | M26: =VLOOKUP(Main!C2,Translating_general!A101:P118,7,FALSE) -> Light Circuit (24V 50W DMX) | P26: Air Dimmer 4 Kanal muss addiert werden
B27: =Products!D184 -> LED Spot Tree WW | M27: =VLOOKUP(Main!C2,Translating_general!A101:P118,8,FALSE) -> Light Circuit (24V 50W Air)
B28: =Products!D185 -> LED Spot Tree RGBW
B29: =Products!D186 -> RGBW 24V Dimmer Tree
M30: DMX Extension für Signal
M31: DMX Dimmer für LED Streifen
M32: Netzteil 4,2 Ampere
M33: Pro Streifen 1 Dimmer
M34: Dimmer einfach so auswählen

Sheet Music (hidden)
A1: Artikelnummer+ | B1: Bezeichnung | C1: Preis excl. | D1: Preis Inkl. | E1: Notiz
B2: =VLOOKUP(Main!$C$2,Translating_general!$A$101:$T$118,20,FALSE) -> Music Server Zone
A3: 100165 | B3: =Products!D42 -> Loxone Music Server 4 Zone | C3: =Products!E42 -> 1249 | D3: =Products!F42 -> 1249
A4: 100166 | B4: =Products!D43 -> Loxone Music Server 8 Zone | C4: =Products!E43 -> 1849 | D4: =Products!F43 -> 1849
A5: 100167 | B5: =Products!D44 -> Loxone Music Server 12 Zone | C5: =Products!E44 -> 2099 | D5: =Products!F44 -> 2099
A6: 100168 | B6: =Products!D45 -> Loxone Music Server 16 Zone | C6: =Products!E45 -> 2649 | D6: =Products!F45 -> 2649
A7: 100169 | B7: =Products!D46 -> Loxone Music Server 20 Zone | C7: =Products!E46 -> 2999 | D7: =Products!F46 -> 2999
A8: 200097 | B8: =Products!D97 -> Loxone Speaker | C8: =Products!E97 -> 117 | D8: =Products!F97 -> 117
A9: 200110 | B9: =Products!D104 -> Loxone 12 Channel Amplifier | C9: =Products!E104 -> 999 | D9: =Products!F104 -> 999
A10: 200150 | B10: =Products!D112 -> Loxone Speaker Back Box | C10: =Products!E112 -> 58 | D10: =Products!F112 -> 58
A11: 200153 | B11: =Products!D114 -> Loxone Wall Speaker | C11: =Products!E114 -> 149 | D11: =Products!F114 -> 149
A12: 200202 | B12: =Products!D139 -> Loxone Speaker Back Box For Suspended Ceilings | C12: =Products!E139 -> 39 | D12: =Products!F139 -> 39
A13: 100205 | B13: =Products!D143 -> Loxone Music Server Upgrade | C13: =Products!E143 -> 140.09 | D13: =Products!F143 -> 140.09

Sheet Heating (hidden)
A1: Artikelnummer+ | B1: Bezeichnung | C1: Preis excl. | D1: Preis Inkl. | E1: Notiz
A2: 100163 | C2: =Products!E41 -> 86 | D2: =Products!F41 -> 86
A3: 200003 | C3: =Products!E57 -> 59 | D3: =Products!F57 -> 59
A4: 200004 | B4: =Products!D41 -> Valve Actuator Air | C4: =Products!E58 -> 0 | D4: =Products!F58 -> 0
A5: 200005 | B5: =Products!D57 -> Outside Temperature Sensor 0-10V | C5: =Products!E59 -> 0 | D5: =Products!F59 -> 0
A6: 200006 | B6: =Products!D60 -> Indoor Temperature Sensor 0-10V | C6: =Products!E60 -> 59 | D6: =Products!F60 -> 59
A7: 200010 | B7: =Products!D62 -> Indoor Temperature & Humidity Sensor 0-10V | C7: =Products!E62 -> 119 | D7: =Products!F62 -> 119
A8: 200017 | B8: =Products!D65 -> Indoor Temperature, Humidty & CO2 Sensor 0-10V | C8: =Products!E65 -> 314 | D8: =Products!F65 -> 314
A9: 200077 | B9: =Products!D87 -> Temperature Probe 1-Wire | C9: =Products!E87 -> 15.5 | D9: =Products!F87 -> 15.5
A10: 200109 | B10: =VLOOKUP(Main!C2,Translating_general!A101:P118,9,FALSE) -> 1-Wire Temperature Sensor | C10: =Products!E103 -> 53.9 | D10: =Products!F103 -> 53.9
B11: =Products!D154 -> Valve Actuator Tree

Sheet Entry (hidden)
A1: Artikelnummer+ | B1: Bezeichnung | C1: Preis excl. | D1: Preis Inkl. | E1: Notiz
A2: 200063 | B2: =Products!D83 -> iButton Reader 1-Wire | C2: =Products!E83 -> 13 | D2: =Products!F83 -> 13
A3: 200064 | B3: =Products!D84 -> iButton Electronic Key Fob | C3: =Products!E84 -> 5 | D3: =Products!F84 -> 5
A4: 200070 | B4: =Products!D86 -> not available in this country | C4: =Products!E86 -> 0 | D4: =Products!F86 -> 0
A5: 200093 | B5: =Products!D94 -> Loxone Intercom | C5: =Products!E94 -> 1149 | D5: =Products!F94 -> 1149
A6: 200094 | B6: =Products!D95 -> Flush-mounted box for the Loxone intercom | C6: =Products!E95 -> 70 | D6: =Products!F95 -> 70
A7: 200095 | B7: =Products!D96 -> Surface Box for Loxone Intercom | C7: =Products!E96 -> 130 | D7: =Products!F96 -> 130
A8: 200191 | B8: =Products!D137 -> iButton Reader 1-Wire Outdoor | C8: =Products!E137 -> 38 | D8: =Products!F137 -> 38
A9: 200273 | B9: =Products!D144 -> Loxone Intercom XL | C9: =Products!E144 -> 1269 | D9: =Products!F144 -> 1269

Sheet Main
B2: Language / Country | C2: EN_US | E2: =VLOOKUP(C2,Translating_general!A5:P22,3,FALSE) -> Rooms
A3: Version 2.8.6' | B3: =VLOOKUP(C2,Translating_general!A5:P22,3,FALSE) -> Rooms | C3: =VLOOKUP(C2,Translating_general!A5:B17,2,FALSE) -> Quantity
B4: =VLOOKUP(C2,Translating_general!A5:Q22,17,FALSE) -> Drop Down Selection
A5: =VLOOKUP(C2,Translating_general!A5:P22,4,FALSE) -> Light | B5: =Light!B18 -> Light Circut (switched ) | C5: =SUM(D5:AI5) -> 0 | AW5: There are drop down menues!
B6: =Light!B3 -> Dimmer Channel (110V) | C6: 0
B7: =Light!B12 -> RGBW LED Strip 5m IP20 | C7: 0
B8: =Light!B20 -> LED Spot Warm White | C8: 0
C9: 0
C10: 0
C11: 0
C12: 0
C13: 0
C14: 0
C15: 0
A17: =VLOOKUP(C2,Translating_general!A5:P22,5,FALSE) -> Shading | B17: =Shading!B4 -> not available in this country | C17: =SUM(D17:AI17) -> 0
B18: =Shading!B3 -> Shading (Blinds, Curtains, …) | C18: 0
C19: 0
A21: =VLOOKUP(C2,Translating_general!A5:P22,6,FALSE) -> Heating | B21: =Heating!B11 -> Valve Actuator Tree | C21: =SUM(D21:AI21) -> 0
B22: =Heating!B4 -> Valve Actuator Air | C22: 0
B23: =Heating!B10 -> 1-Wire Temperature Sensor | C23: 0
C24: 0
C25: 0
A27: =VLOOKUP(C2,Translating_general!A5:P22,7,FALSE) -> Sensor | B27: =Sensors!B22 -> Motion Sensor Tree White | C27: =SUM(D27:AI27) -> 0
B28: =Sensors!B25 -> Door & Window Contact Air White | C28: 0
B29: =Sensors!B26 -> Digital IN (Reserve) | C29: 0
B30: =Sensors!B27 -> Analog IN (Reserve) | C30: 0
B31: =Sensors!B9 -> Windsensor 24V | C31: 0
B32: =Wireless!B31 -> Window Handle Air | C32: 0
A34: =VLOOKUP(C2,Translating_general!A5:S22,19,FALSE) -> Tree | B34: =Tree!B5 -> Touch Tree White | C34: =SUM(D34:AO34) -> 0
B35: =Tree!B8 -> Valve Actuator Tree | C35: 0
B36: =Tree!B9 -> Motion Sensor Tree Black | C36: 0
C37: 0
C38: 0
C39: 0
A41: =VLOOKUP(C2,Translating_general!A5:P22,8,FALSE) -> Air | B41: =Wireless!B26 -> Touch pure Air White | C41: =SUM(D41:AI41) -> 0
B42: =Wireless!B12 -> Loxone Touch Air White | C42: 0
B43: =Wireless!B8 -> Smoke Detector Air | C43: 0
B44: =Wireless!B6 -> Remote Air | C44: 0
B45: =Wireless!B25 -> Door & Window Contact Air White | C45: 0
B46: =Wireless!B28 -> not available in this country | C46: 0
B47: =Wireless!B31 -> Window Handle Air | C47: 0
C48: 0
C49: 0
C50: 0
A52: =VLOOKUP(C2,Translating_general!A5:P22,9,FALSE) -> Push-Buttons | B52: =Switch!B2 -> Retractive Wattstoper 1 Push button (reserve 1 DI) | C52: =SUM(D52:AI52) -> 0
B53: =Switch!B5 -> Retractive Wattstoper 5 Push buttons (reserve 5 DI) | C53: 0
C54: 0
C55: 0
C56: 0
C57: 0
A59: =VLOOKUP(C2,Translating_general!A5:P22,10,FALSE) -> Access | B59: =Entry!B9 -> Loxone Intercom XL | C59: =SUM(D59:AI59) -> 0
B60: =Entry!B8 -> iButton Reader 1-Wire Outdoor | C60: 0
B61: =Entry!B3 -> iButton Electronic Key Fob | C61: 0
C62: 0
A64: =VLOOKUP(C2,Translating_general!A5:P22,11,FALSE) -> Music | B64: =Music!B2 -> Music Server Zone | C64: =SUM(D64:AI64) -> 0
B65: =Music!B8 -> Loxone Speaker | C65: 0
B66: =Music!B9 -> Loxone 12 Channel Amplifier | C66: 0
B67: =Music!B10 -> Loxone Speaker Back Box | C67: 0
B68: =Music!B11 -> Loxone Wall Speaker | C68: 0
C69: 0
C70: 0
C71: 0
C72: 0
C73: 0
A76: =VLOOKUP(C2,Translating_general!A5:P22,12,FALSE) -> Miniserver&Extension | B76: ='Ms&Extensions'!B6 -> RS 232 Extension | C76: =SUM(D76:AI76) -> 0
B77: ='Ms&Extensions'!B4 -> RS485 Extension | C77: 0
C78: 0
C79: 0
A81: =VLOOKUP(C2,Translating_general!A5:P22,13,FALSE) -> Cabinet | B81: =Distributors!B18 -> Loxone CAT7 Cable (250m) | C81: =SUM(D81:AI81) -> 0
B82: =Distributors!B7 -> Push In Terminal Block 3+Earth (50 pcs) | C82: 0
C83: 0
C84: 0
C85: 0
C86: 0
C87: 0
C88: 0
C89: 0
C90: 0
A92: =VLOOKUP(C2,Translating_general!A5:P22,14,FALSE) -> Other | B92: =Other!B35 -> not available in this country | C92: =SUM(D92:AI92) -> 0
B93: =Other!B37 -> NFC Smart Tags | C93: 0
C94: 0
C95: 0
C96: 0
C97: 0
C98: 0
C99: 0
C100: 0
C101: 0
A103: =VLOOKUP(C2,Translating_general!A5:P22,15,FALSE) -> Fans&Partner | B103: =Other!B11 -> Loxone Brochure (25 pcs) | C103: =SUM(D103:AI103) -> 0
B104: =Other!B2 -> Rollup Banner English | C104: 0
B105: =Other!B3 -> not available in this country | C105: 0
C106: 0
C107: 0

Sheet Sensors (hidden)
A1: Artikelnummer+ | B1: Bezeichnung | C1: Preis excl. | D1: Preis Inkl. | E1: Notiz
A2: 200003 | B2: =Products!D57 -> Outside Temperature Sensor 0-10V | C2: =Products!E57 -> 59 | D2: =Products!F57 -> 59
A3: 200006 | B3: =Products!D60 -> Indoor Temperature Sensor 0-10V | C3: =Products!E60 -> 59 | D3: =Products!F60 -> 59
A4: 200010 | B4: =Products!D62 -> Indoor Temperature & Humidity Sensor 0-10V | C4: =Products!E62 -> 119 | D4: =Products!F62 -> 119
A5: 200017 | B5: =Products!D65 -> Indoor Temperature, Humidty & CO2 Sensor 0-10V | C5: =Products!E65 -> 314 | D5: =Products!F65 -> 314
A6: 200018 | B6: =Products!D66 -> Rain Sensor (24V) | C6: =Products!E66 -> 79 | D6: =Products!F66 -> 79
A7: 200031 | B7: =Products!D67 -> Outdoor Temperature & Humidy Sensor 0-10V | C7: =Products!E67 -> 159 | D7: =Products!F67 -> 159
A8: 200032 | B8: =Products!D68 -> Brightness Sensor 0-10V | C8: =Products!E68 -> 109 | D8: =Products!F68 -> 109
A9: 200033 | B9: =VLOOKUP(Main!C2,Translating_general!A101:P118,10,FALSE) -> Windsensor 24V | C9: =Products!E69 -> 99 | D9: =Products!F69 -> 99
A10: 200034 | B10: =Products!D70 -> Wind Sensor Mount | C10: =Products!E70 -> 75 | D10: =Products!F70 -> 75
A11: 200054 | B11: =Products!D79 -> Ultrasonic Sensor 0-10V | C11: =Products!E79 -> 289 | D11: =Products!F79 -> 289
A12: 200077 | B12: =Products!D87 -> Temperature Probe 1-Wire | C12: =Products!E87 -> 15.5 | D12: =Products!F87 -> 15.5
A13: 200101 | B13: =Products!D101 -> Water Sensor | C13: =Products!E101 -> 23 | D13: =Products!F101 -> 23
A14: 200109 | B14: =Products!D103 -> Temperature Sensor Set 1-Wire | C14: =Products!E103 -> 53.9 | D14: =Products!F103 -> 53.9
A15: 200112 | B15: =Products!D105 -> Outside Motion Sensor (24V) | C15: =Products!E105 -> 135 | D15: =Products!F105 -> 135
B16: =VLOOKUP(Main!C2,Translating_general!A101:P118,11,FALSE) -> Window Contact (integrated - only reserve DI)
A17: 200113 | B17: =Products!D106 -> Window & Door Contact | C17: =Products!E106 -> 13.5 | D17: =Products!F106 -> 13.5
A18: 200136 | B18: =Products!D109 -> Temperature & Humidity Sensor For Saunas | C18: =Products!E109 -> 205 | D18: =Products!F109 -> 205
A19: 200154 | B19: =Products!D115 -> Pressure Sensor 0-10V | C19: =Products!E115 -> 115 | D19: =Products!F115 -> 115
A20: 200155 | B20: =Products!D116 -> Glass Break Sensor 24V | C20: =Products!E116 -> 34 | D20: =Products!F116 -> 34
B21: =Products!D158 -> Motion Sensor Tree Black
B22: =Products!D153 -> Motion Sensor Tree White
B23: =Products!D155 -> Water Sensor Air
B24: =Products!D156 -> Door & Window Contact Air Black
B25: =Products!D157 -> Door & Window Contact Air White
B26: =HLOOKUP(Main!$C$2,Translating_products!$DI$4:$DY$216,Translating_products!CM187, FALSE) -> Digital IN (Reserve)
B27: =HLOOKUP(Main!$C$2,Translating_products!$DI$4:$DY$216,Translating_products!CM188, FALSE) -> Analog IN (Reserve)
B28: =HLOOKUP(Main!$C$2,Translating_products!$DI$4:$DY$216,Translating_products!CM189, FALSE) -> Window Handle Air

Sheet Distributors (hidden)
A1: Artikelnummer+ | B1: Bezeichnung | C1: Preis excl. | D1: Preis Inkl. | E1: Notiz
A2: 200168 | B2: =Products!D120 -> Push In Terminal Block 8x4 Interconnected (20 pcs) | C2: =Products!E120 -> 265 | D2: =Products!F120 -> 265
A3: 200169 | B3: =Products!D121 -> Push In Terminal Block 8x4 Seperated (20pcs) | C3: =Products!E121 -> 249 | D3: =Products!F121 -> 249
A4: 200170 | B4: =VLOOKUP(Main!$C$2,Translating_general!$A$101:$AZ$118,21,FALSE) -> Partition for 8x4 Terminals (10pcs) | C4: =Products!E122 -> 14 | D4: =Products!F122 -> 14
A5: 200171 | B5: =VLOOKUP(Main!$C$2,Translating_general!$A$101:$AZ$118,22,FALSE) -> Label Holder 8 Levels (20 pcs) | C5: =Products!E123 -> 34 | D5: =Products!F123 -> 34
A6: 200172 | B6: =VLOOKUP(Main!$C$2,Translating_general!$A$101:$AZ$118,23,FALSE) -> End Plate for 8x4 Terminals (10 pcs) | C6: =Products!E124 -> 7 | D6: =Products!F124 -> 7
A7: 200173 | B7: =VLOOKUP(Main!$C$2,Translating_general!$A$101:$AZ$118,24,FALSE) -> Push In Terminal Block 3+Earth (50 pcs) | C7: =Products!E125 -> 259 | D7: =Products!F125 -> 259
A8: 200174 | B8: =VLOOKUP(Main!$C$2,Translating_general!$A$101:$AZ$118,25,FALSE) -> End Plate for 3+Earth Terminals (20 pcs) | C8: =Products!E126 -> 14 | D8: =Products!F126 -> 14
A9: 200175 | B9: =VLOOKUP(Main!$C$2,Translating_general!$A$101:$AZ$118,26,FALSE) -> Push In Terminal Block Twin+Earth (50 pcs) | C9: =Products!E127 -> 141.5 | D9: =Products!F127 -> 141.5
A10: 200176 | B10: =VLOOKUP(Main!$C$2,Translating_general!$A$101:$AZ$118,27,FALSE) -> End Bracket (20 pcs) | C10: =Products!E128 -> 10 | D10: =Products!F128 -> 10
A11: 200177 | B11: =VLOOKUP(Main!$C$2,Translating_general!$A$101:$AZ$118,28,FALSE) -> End Plate for Twin+Earth Terminals (20 pcs) | C11: =Products!E129 -> 10 | D11: =Products!F129 -> 10
A12: 200178 | B12: =VLOOKUP(Main!$C$2,Translating_general!$A$101:$AZ$118,29,FALSE) -> Push in Fused Terminal Block (25 pcs) | C12: =Products!E130 -> 159 | D12: =Products!F130 -> 159
A13: 200179 | B13: =VLOOKUP(Main!$C$2,Translating_general!$A$101:$AZ$118,30,FALSE) -> End Plate For Fused Terminals (50 pcs) | C13: =Products!E131 -> 22 | D13: =Products!F131 -> 22
A14: 200180 | B14: =VLOOKUP(Main!$C$2,Translating_general!$A$101:$AZ$118,31,FALSE) -> Cross Connector For Fused Terminals (10 pcs) | C14: =Products!E132 -> 79 | D14: =Products!F132 -> 79
A15: 200181 | B15: =VLOOKUP(Main!$C$2,Translating_general!$A$101:$AZ$118,32,FALSE) -> Blade Fuse 2A (100 pcs) | C15: =Products!E133 -> 13 | D15: =Products!F133 -> 13
A16: 200183 | B16: =VLOOKUP(Main!$C$2,Translating_general!$A$101:$AZ$118,33,FALSE) -> Blade Fuse 5A (100 pcs) | C16: =Products!E134 -> 13 | D16: =Products!F134 -> 13
A17: 200184 | B17: =VLOOKUP(Main!$C$2,Translating_general!$A$101:$AZ$118,34,FALSE) -> Blade Fuse 10A (100 pcs) | C17: =Products!E135 -> 13 | D17: =Products!F135 -> 13
A18: 200129 | B18: =VLOOKUP(Main!$C$2,Translating_general!$A$101:$AZ$118,35,FALSE) -> Loxone CAT7 Cable (250m) | C18: =Products!E107 -> 265 | D18: =Products!F107 -> 265
A19: 100150 | B19: =Products!D35 -> Loxone Tool Kit by Weidmüller | C19: =Products!E35 -> 339 | D19: =Products!F35 -> 339
A20: 200204 | B20: =Products!D159 -> Cross Connector for Mains Terminals (20 pcs) | C20: =Products!E159 -> 96 | D20: =Products!F159 -> 96
B21: =Products!D77 -> Coupling Relay

Sheet Tree (hidden)
B3: Bezeichnung
B4: =Products!D150 -> Tree Extension
B5: =Products!D151 -> Touch Tree White
B6: =Products!D152 -> Touch Tree Black
B7: =Products!D153 -> Motion Sensor Tree White
B8: =Products!D154 -> Valve Actuator Tree
B9: =Products!D158 -> Motion Sensor Tree Black
B10: =Products!D164 -> Touch pure Tree White
B11: =Products!D175 -> Nano DI Tree
B12: =Products!D178 -> Touch pure Tree Black
B13: =Products!D182 -> LED Ceiling Spot Tree RGBW
B14: =Products!D184 -> LED Spot Tree WW
B15: =Products!D186 -> RGBW 24V Dimmer Tree

Sheet Wireless (hidden)
A1: Artikelnummer+ | B1: Bezeichnung | C1: Preis excl. | D1: Preis Inkl. | E1: Notiz
A2: 100114 | B2: =Products!D24 -> Air Base Extension | C2: =Products!E24 -> 113 | D2: =Products!F24 -> 113
A3: 100115 | B3: =Products!D25 -> not available in this country | C3: =Products!E25 -> 0 | D3: =Products!F25 -> 0
A4: 100116 | B4: =Products!D26 -> Multi Extension Air | C4: =Products!E26 -> 539 | D4: =Products!F26 -> 539
A5: 100139 | B5: =Products!D30 -> Miniserver Go | C5: =Products!E30 -> 349 | D5: =Products!F30 -> 349
A6: 100140 | B6: =Products!D31 -> Remote Air | C6: =Products!E31 -> 55.5 | D6: =Products!F31 -> 55.5
A7: 100141 | B7: =Products!D32 -> IR Control Air | C7: =Products!E32 -> 124.9 | D7: =Products!F32 -> 124.9
A8: 100142 | B8: =Products!D33 -> Smoke Detector Air | C8: =Products!E33 -> 99 | D8: =Products!F33 -> 99
A9: 100149 | B9: =Products!D34 -> Temperature & Humidity Sesnor Air | C9: =Products!E34 -> 79 | D9: =Products!F34 -> 79
A10: 100151 | B10: =Products!D36 -> not available in this country | C10: =Products!E36 -> 0 | D10: =Products!F36 -> 0
A11: 100154 | B11: =Products!D38 -> Loxone Touch for Nano White | C11: =Products!E38 -> 49 | D11: =Products!F38 -> 49
A12: 100155 | B12: =Products!D39 -> Loxone Touch Air White | C12: =Products!E39 -> 124 | D12: =Products!F39 -> 124
A13: 100180 | B13: =Products!D50 -> Loxone Touch Air Anthracite | C13: =Products!E50 -> 124 | D13: =Products!F50 -> 124
A14: 100181 | B14: =Products!D51 -> Loxone Touch for Nano Anthracite | C14: =Products!E51 -> 49 | D14: =Products!F51 -> 49
A15: 100182 | B15: =Products!D52 -> not available in this country | C15: =Products!E52 -> 0 | D15: =Products!F52 -> 0
A16: 100183 | B16: =Products!D53 -> not available in this country | C16: =Products!E53 -> 0 | D16: =Products!F53 -> 0
A17: 100184 | B17: =Products!D54 -> not available in this country | C17: =Products!E54 -> 0 | D17: =Products!F54 -> 0
A18: 100163 | B18: =Products!D41 -> Valve Actuator Air | C18: =Products!E41 -> 86 | D18: =Products!F41 -> 86
A19: 200048 | B19: =Products!D76 -> SMA Antenna 868 MHz | C19: =Products!E76 -> 19 | D19: =Products!F76 -> 19
A20: 200151 | B20: =Products!D113 -> SMA Antenna 4dBi 868 MHz | C20: =Products!E113 -> 29.9 | D20: =Products!F113 -> 29.9
A21: 100190 | B21: =Products!D145 -> Motion Sensor Air | C21: =Products!E145 -> 95 | D21: =Products!F145 -> 95
A22: 100153 | B22: =Products!D37 -> Nano IO Air | C22: =Products!E37 -> 119 | D22: =Products!F37 -> 119
A23: wird nicht verwendet | B23: =Products!D155 -> Water Sensor Air | C23: wird nicht verwendet | D23: wird nicht verwendet
B24: =Products!D156 -> Door & Window Contact Air Black
B25: =Products!D157 -> Door & Window Contact Air White
B26: =Products!D162 -> Touch pure Air White
B27: =Products!D163 -> Touch pure for Nano White
B28: =Products!D166 -> not available in this country
B29: =Products!D179 -> Touch pure Air Black
B30: =Products!D177 -> Touch pure Nano Black
B31: =HLOOKUP(Main!$C$2,Translating_products!$DI$4:$DY$216,Translating_products!CM189, FALSE) -> Window Handle Air
A37: 200059 | B37: =Products!D81 -> not available in this country | C37: =Products!E81 -> 0 | D37: =Products!F81 -> 0
A38: 200067 | B38: =Products!D85 -> not available in this country | C38: =Products!E85 -> 0 | D38: =Products!F85 -> 0
A39: 200135 | B39: =Products!D108 -> not available in this country | C39: =Products!E108 -> 0 | D39: =Products!F108 -> 0
A40: 200137 | B40: =Products!D110 -> not available in this country | C40: =Products!E110 -> 0 | D40: =Products!F110 -> 0

Sheet Other (hidden)
A1: Artikelnummer+ | B1: Bezeichnung | C1: Preis excl. | D1: Preis Inkl. | E1: Kategorien_Sonstiges
A2: 100004 | B2: =Products!D9 -> Rollup Banner English | C2: =Products!E9 -> 119 | D2: =Products!F9 -> 119 | E2: Fans&Partner
A3: 100170 | B3: =Products!D47 -> not available in this country | C3: =Products!E47 -> 0 | D3: =Products!F47 -> 0 | E3: Fans&Partner
A4: 200050 | B4: =Products!D78 -> Loxone Sticker | C4: =Products!E78 -> 5 | D4: =Products!F78 -> 5 | E4: Fans&Partner
A5: 200086 | B5: =Products!D88 -> Fanshirt S | C5: =Products!E88 -> 19 | D5: =Products!F88 -> 19 | E5: Fans&Partner
A6: 200087 | B6: =Products!D89 -> Fanshirt M | C6: =Products!E89 -> 19 | D6: =Products!F89 -> 19 | E6: Fans&Partner
A7: 200088 | B7: =Products!D90 -> Fanshirt L | C7: =Products!E90 -> 19 | D7: =Products!F90 -> 19 | E7: Fans&Partner
A8: 200089 | B8: =Products!D91 -> Fanshirt XL | C8: =Products!E91 -> 19 | D8: =Products!F91 -> 19 | E8: Fans&Partner
A9: 200090 | B9: =Products!D92 -> Fanshirt XXL | C9: =Products!E92 -> 19 | D9: =Products!F92 -> 19 | E9: Fans&Partner
A10: 200158 | B10: =Products!D119 -> not available in this country | C10: =Products!E119 -> 0 | D10: =Products!F119 -> 0 | E10: Fans&Partner
A11: 200186 | B11: =Products!D136 -> Loxone Brochure (25 pcs) | C11: =Products!E136 -> 5 | D11: =Products!F136 -> 5 | E11: Fans&Partner
A12: 100008 | B12: =Products!D10 -> Micro SD Card with firmware | C12: =Products!E10 -> 14 | D12: =Products!F10 -> 14 | E12: Zubehör
A13: 100023 | B13: =Products!D16 -> No longer sold | C13: =Products!E16 -> 0 | D13: =Products!F16 -> 0 | E13: Zubehör
A14: 100025 | B14: =Products!D17 -> Weather Service 1 Year | C14: =Products!E17 -> 69 | D14: =Products!F17 -> 69 | E14: Zubehör
A15: 100026 | B15: =Products!D18 -> Weather Service 10 Year | C15: =Products!E18 -> 325 | D15: =Products!F18 -> 325 | E15: Zubehör
A16: 100027 | B16: =Products!D19 -> Caller Service 1 Year | C16: =Products!E19 -> 69 | D16: =Products!F19 -> 69 | E16: Zubehör
A17: 100028 | B17: =Products!D20 -> Caller Service 10 Years | C17: =Products!E20 -> 325 | D17: =Products!F20 -> 325 | E17: Zubehör
A18: 100035 | B18: =Products!D22 -> IR Set | C18: =Products!E22 -> 229 | D18: =Products!F22 -> 229 | E18: Zubehör
A19: 100178 | B19: =Products!D48 -> AquaStar Air 1.5" | C19: =Products!E48 -> 1549 | D19: =Products!F48 -> 1549 | E19: Zubehör
A20: 100179 | B20: =Products!D49 -> AquaStar Air 2" | C20: =Products!E49 -> 1649 | D20: =Products!F49 -> 1649 | E20: Zubehör
A21: 200001 | B21: =Products!D55 -> 24V Power Supply (1.3A) | C21: =Products!E55 -> 49 | D21: =Products!F55 -> 49 | E21: Zubehör
A22: 200002 | B22: =Products!D56 -> 24V Power Supply (4.2A) | C22: =Products!E56 -> 76 | D22: =Products!F56 -> 76 | E22: Zubehör
A23: 200007 | B23: =Products!D61 -> not available in this country | C23: =Products!E61 -> 0 | D23: =Products!F61 -> 0 | E23: Zubehör
A24: 200012 | B24: =Products!D63 -> Valve Adaptor VA80 | C24: =Products!E63 -> 2 | D24: =Products!F63 -> 2 | E24: Zubehör
A25: 200013 | B25: =Products!D64 -> not available in this country | C25: =Products!E64 -> 0 | D25: =Products!F64 -> 0 | E25: Zubehör
A26: 200035 | B26: =Products!D71 -> 24V Power Supply (10A) | C26: =Products!E71 -> 179 | D26: =Products!F71 -> 179 | E26: Zubehör
A27: 200040 | B27: =Products!D72 -> Surface Mount Box - IP20 | C27: =Products!E72 -> 10 | D27: =Products!F72 -> 10 | E27: Zubehör
A28: 200049 | B28: =Products!D77 -> Coupling Relay | C28: =Products!E77 -> 23 | D28: =Products!F77 -> 23 | E28: Zubehör
A29: 200107 | B29: =Products!D102 -> not available in this country | C29: =Products!E102 -> 0 | D29: =Products!F102 -> 0 | E29: Zubehör
A30: 200143 | B30: =Products!D111 -> 24V Power Supply (0.4A) | C30: =Products!E111 -> 36 | D30: =Products!F111 -> 36 | E30: Zubehör
A31: 200156 | B31: =Products!D117 -> not available in this country | C31: =Products!E117 -> 0 | D31: =Products!F117 -> 0 | E31: Zubehör
A32: 200157 | B32: =Products!D118 -> not available in this country | C32: =Products!E118 -> 0 | D32: =Products!F118 -> 0 | E32: Zubehör
B33: =VLOOKUP(Main!C2,Translating_general!A101:P118,12,FALSE) -> Other Load (5A) | E33: Zubehör
B34: =VLOOKUP(Main!C2,Translating_general!A101:P118,13,FALSE) -> Other Load (5-16A) | E34: Zubehör
A35: 200207 | B35: =Products!D138 -> not available in this country | C35: =Products!E138 -> 0 | D35: =Products!F138 -> 0 | E35: Zubehör
A36: 200161 | B36: =Products!D142 -> Power Adapter 24V 6.25A | C36: =Products!E142 -> 84.9 | D36: =Products!F142 -> 84.9 | E36: Zubehör
A37: 200281 | B37: =Products!D146 -> NFC Smart Tags | C37: =Products!E146 -> 26 | D37: =Products!F146 -> 26 | E37: Zubehör
A38: 200294 | B38: =Products!D149 -> not available in this country | C38: =Products!E149 -> 0 | D38: =Products!F149 -> 0 | E38: Zubehör
B39: =Products!D161 -> 24V LED Power Supply (2.5A) | C39: =Products!E161 -> 35 | D39: =Products!F161 -> 35 | E39: Zubehör
B40: =Products!D167 -> Panel wire (328ft) blue/white
B41: =Products!D168 -> Panel wire (328ft) orange/white
B42: =Products!D169 -> Panel wire (328ft) green/white
B43: =Products!D170 -> not available in this country
B44: =Products!D171 -> not available in this country
B45: =Products!D172 -> not available in this country
B46: =Products!D173 -> not available in this country
B47: =Products!D174 -> not available in this country
B48: =Products!D176 -> not available in this country
A50: 100011 | B50: =Products!D11 -> RS485 Extension | C50: =Products!E11 -> 199 | D50: =Products!F11 -> 199 | E50: Zubehör
A51: 100013 | B51: =Products!D13 -> RS 232 Extension | C51: =Products!E13 -> 199 | D51: =Products!F13 -> 199 | E51: Zubehör
A52: 100015 | B52: =Products!D15 -> not available in this country | C52: =Products!E15 -> 0 | D52: =Products!F15 -> 0 | E52: Zubehör
A53: 100124 | B53: =Products!D28 -> Modbus Extension | C53: =Products!E28 -> 255 | D53: =Products!F28 -> 255 | E53: Zubehör

Sheet Shading (hidden)
A1: Artikelnummer+ | B1: Bezeichnung | C1: Preis excl. | D1: Preis Inkl. | E1: Notiz
A2: 100153 | B2: =Products!D37 -> Nano IO Air | C2: =Products!E37 -> 119 | D2: =Products!F37 -> 119 | F2: Rollo per Kabel zu NANO IO und Nano zu AirBase per Funk
B3: =VLOOKUP(Main!C2,Translating_general!A101:P118,14,FALSE) -> Shading (Blinds, Curtains, …) | F3: pro Rollo/Markise/Jalousie/Raffstore 1 Nano
A4: 100182 | B4: =Products!D52 -> not available in this country | C4: =Products!E52 -> 0 | D4: =Products!F52 -> 0 | F4: 1 Nano belegt 1 Kanal auf AirBase
A5: 100183 | B5: =Products!D53 -> not available in this country | C5: =Products!E53 -> 0 | D5: =Products!F53 -> 0
A6: 100184 | B6: =Products!D54 -> not available in this country | C6: =Products!E54 -> 0 | D6: =Products!F54 -> 0

Sheet Switch (hidden)
A1: Artikelnummer+ | B1: Bezeichnung | C1: Preis excl. | D1: Preis Inkl. | E1: Notiz
B2: =VLOOKUP(Main!$C$2,Translating_general!$A$101:$T$118,16,FALSE) -> Retractive Wattstoper 1 Push button (reserve 1 DI) | E2: Kabeltaster
B3: =VLOOKUP(Main!$C$2,Translating_general!$A$101:$T$118,17,FALSE) -> Retractive Wattstoper 2 Push buttons (reserve 2 DI) | E3: Kabeltaster | G3: taster belegen nur Eingänge
B4: =VLOOKUP(Main!$C$2,Translating_general!$A$101:$T$118,18,FALSE) -> Retractive Wattstoper 4 Push buttons (reserve 4 DI) | E4: Kabeltaster
B5: =VLOOKUP(Main!$C$2,Translating_general!$A$101:$T$118,19,FALSE) -> Retractive Wattstoper 5 Push buttons (reserve 5 DI) | E5: Kabeltaster
A6: 100154 | B6: =Products!D38 -> Loxone Touch for Nano White | C6: =Products!E38 -> 49 | D6: =Products!F38 -> 49 | E6: Funktaster
A7: 100155 | B7: =Products!D39 -> Loxone Touch Air White | C7: =Products!E39 -> 124 | D7: =Products!F39 -> 124 | E7: Funktaster
A8: 200057 | B8: =Products!D80 -> not available in this country | C8: =Products!E80 -> 0 | D8: =Products!F80 -> 0 | E8: Funktaster
A9: 100180 | B9: =Products!D50 -> Loxone Touch Air Anthracite | C9: =Products!E50 -> 124 | D9: =Products!F50 -> 124 | E9: Funktaster
A10: 100181 | B10: =Products!D51 -> Loxone Touch for Nano Anthracite | C10: =Products!E51 -> 49 | D10: =Products!F51 -> 49 | E10: Funktaster
B11: =Products!D151 -> Touch Tree White
B12: =Products!D152 -> Touch Tree Black
B13: =Products!D162 -> Touch pure Air White
B14: =Products!D163 -> Touch pure for Nano White
B15: =Products!D164 -> Touch pure Tree White
B16: =Products!D177 -> Touch pure Nano Black
B17: =Products!D178 -> Touch pure Tree Black
B18: =Products!D179 -> Touch pure Air Black

Sheet Ms&Extensions (hidden)
A1: Artikelnummer+ | B1: Bezeichnung | C1: Preis excl. | D1: Preis Inkl. | E1: Notiz
A2: 100001 | B2: =Products!D7 -> Miniserver | C2: =Products!E7 -> 549 | D2: =Products!F7 -> 549
A3: 100002 | B3: =Products!D8 -> Extension | C3: =Products!E8 -> 449 | D3: =Products!F8 -> 449
A4: 100011 | B4: =Products!D11 -> RS485 Extension | C4: =Products!E11 -> 199 | D4: =Products!F11 -> 199
A5: 100012 | B5: =Products!D12 -> DMX Extension | C5: =Products!E12 -> 299 | D5: =Products!F12 -> 299
A6: 100013 | B6: =Products!D13 -> RS 232 Extension | C6: =Products!E13 -> 199 | D6: =Products!F13 -> 199
A7: 100014 | B7: =Products!D14 -> 1-Wire Extension | C7: =Products!E14 -> 199 | D7: =Products!F14 -> 199
A8: 100015 | B8: =Products!D15 -> not available in this country | C8: =Products!E15 -> 0 | D8: =Products!F15 -> 0
A9: 100124 | B9: =Products!D28 -> Modbus Extension | C9: =Products!E28 -> 255 | D9: =Products!F28 -> 255
A10: 100029 | B10: =Products!D21 -> Dimmer Extension | C10: =Products!E21 -> 499 | D10: =Products!F21 -> 499
A11: 100038 | B11: =Products!D23 -> Relay Extension | C11: =Products!E23 -> 539 | D11: =Products!F23 -> 539
A12: 100114 | B12: =Products!D24 -> Air Base Extension | C12: =Products!E24 -> 113 | D12: =Products!F24 -> 113
A13: 100116 | B13: =Products!D26 -> Multi Extension Air | C13: =Products!E26 -> 539 | D13: =Products!F26 -> 539
A14: 100139 | B14: =Products!D30 -> Miniserver Go | C14: =Products!E30 -> 349 | D14: =Products!F30 -> 349
A15: 100158 | B15: =Products!D40 -> not available in this country | C15: =Products!E40 -> 0 | D15: =Products!F40 -> 0
B16: =Products!D150 -> Tree Extension
B17: =Products!D160 -> Dali Extension
B18: =Products!D165 -> not available in this country

Sheet Calculation (hidden)
A1: MsGO = | B1: FALSE | D1: AI (Eingang) | E1: DI (Eingang) | F1: AO (Ausgang) | G1: DO (Ausgang) | H1: 1-Wire Kanal | I1: Air Base Kanal | J1: EnOcean | K1: Tree | L1: DO 16A | M1: Air Dimmer | N1: Dimmkanäle | O1: Dali
D3: AI (Eingang) | E3: DI (Eingang) | F3: AO (Ausgang) | G3: DO (Ausgang) | H3: 1-Wire Kanal | I3: Air Base Kanal | J3: EnOcean | K3: Tree | L3: DO 16A | M3: Air Dimmer | N3: Dali Kanäle | O3: 1-wire leser
A4: Eingabe Kunde | B4: Benötigte Eingänge|Ausgänge|Kanäle | D4: =(E141+D195)*(-1) -> 0 | E4: =(E195+D376)*(-1) -> 0 | F4: =F141*(-1)+G103*(-1) -> 0 | G4: =(G141+D344+H75+E322)*(-1) -> 0 | H4: =(H141+H195)*(-1) -> 0 | I4: =(E103+D256+E344+F376+I195+I141+L195)*(-1) -> 0 | J4: =(-1)*(E256+G376) -> 0 | K4: =F277*(-1) -> 0 | L4: =D322*(-1)+K103*(-1) -> 0 | N4: =C497*(-1) -> 0 | O4: =-1*D160 -> 0
B5: +Miniserver (=WENN(…)+C278) | C5: =IF(B1=FALSE, IF(MIN(D4:O4)<0,1,0), 0) -> 0 | D5: =$C$5*D61 -> 0 | E5: 0 | F5: 0 | G5: 0
B6: +MsGo | C6: =IF(AND(B1=TRUE, I4 < 0), 1+C224+C392, C224+C392) -> 0 | I6: =C6*I70 -> 0
B7: +Dimmer Extensions | C7: =C388+C77 -> 0 | E7: =C7*E66 -> 0
B8: Zwischensumme 1 | D8: =SUM(D4:D7) -> 0 | E8: 0 | F8: 0 | G8: 0 | H8: 0 | I8: 0 | J8: 0 | K8: 0 | L8: 0
B9: +Relay Extension (=C286) | C9: 0 | L9: =L67*C9 -> 0
B10: +Multi Extension Air (=C288+C185) | C10: 0 | E10: =$C$10*E69 -> 0 | H10: =$C$10*H69 -> 0 | L10: =$C$10*L69 -> 0 | M10: =C10 -> 0
B11: Zwischensumme 2 | D11: =SUM(D8:D10) -> 0 | E11: 0 | F11: 0 | G11: 0 | H11: 0 | I11: 0 | J11: 0 | K11: 0 | L11: 0
B12: +1-Wire Extension (=C283+H132) | C12: 0 | H12: =C12*H64 -> 0
B13: +EnoCean Extension (=C213+C284) | C13: 0 | J13: =C13*J65 -> 0
B14: +Dali Extension | C14: =C395 -> 0 | N14: =C14*N72 -> 0
B15: +Tree Extension | C15: 0 | K15: =C15*K71 -> 0
B16: +AirBaseExtension (=C183+C287) | C16: 0 | I16: =C16*I68 -> 0
B17: Zwischensumme 3 | D17: =SUM(D11:D16) -> 0 | E17: 0 | F17: 0 | G17: 0 | H17: 0 | I17: 0 | J17: 0 | K17: 0 | L17: 0
B18: +Extension (=C279) | C18: 0 | D18: =$C$18*D62 -> 0 | E18: 0 | F18: 0 | G18: 0
B19: Fehlende/Überschüssige Anschlüsse_AI_auf_DI | D19: =D17 -> 0 | E19: 0 | F19: =SUM(F17:F18) -> 0 | G19: 0 | H19: 0 | I19: 0 | J19: 0 | K19: 0 | L19: =L17 -> 0
B21: Anschlüsse vor autmomatische Ergänzung von fehlenden Extensions
B22: Gesamt verfügbare Anschlüsse | D22: =D5+D6+D7+D9+D10+D12+D13+D16+D18 -> 0 | E22: 0 | F22: 0 | G22: 0 | H22: 0 | I22: 0 | J22: 0 | K22: =K15 -> 0 | L22: =L5+L6+L7+L9+L10+L12+L13+L16+L18 -> 0 | M22: =M10 -> 0 | N22: =N14 -> 0
B23: Benötigte Anschlüsse | D23: =D4 -> 0 | E23: 0 | F23: 0 | G23: 0 | H23: 0 | I23: 0 | J23: 0 | K23: 0 | L23: 0 | N23: =N4 -> 0
B24: Übrigbleibende Anschlüsse | D24: =IF(D19>0,D19,0) -> 0 | E24: 0 | F24: 0 | G24: 0 | H24: 0 | I24: 0 | J24: 0 | K24: 0 | L24: 0 | N24: =IF(N23>0,N23,0) -> 0
B25: =Calculation!B216=Products!D35 -> TRUE | D25: =IF(D19<0,D19,0) -> 0 | E25: 0 | F25: 0 | G25: 0 | H25: 0 | I25: 0 | J25: 0 | K25: 0 | L25: 0
B26: Extensions für fehlende Anschlüsse
B27: Extension | C27: =C28 -> 0 | D27: =$C$27*D62 -> 0 | E27: 0 | F27: 0 | G27: 0
B28: Anzahlberechnung Extension | C28: =MAX(D28,F28) -> 0 | D28: =IF(D19<0,ROUNDUP(D19/D62*(-1),0),0) -> 0 | E28: 0 | F28: 0 | G28: 0
B29: Fehlende Anschlüsse | D29: =D19+D27 -> 0 | E29: =E27+E19 -> 0 | F29: =F19+F27 -> 0 | G29: 0 | H29: =H19 -> 0 | I29: 0 | J29: 0 | K29: 0 | L29: 0
B30: AI auf DI Fehlende Anschlüsse | C30: ben. AI | D30: =IF(AND(D29*-1<=E29,E29<0),D29-(D29+E29),IF(E29<0,D29,0)) -> 0 | E30: =IF(E29<0,E29+D29,E29) -> 0 | F30: Entscheider ob weitere Extension
B31: Fehlende Anschlüsse nach Umlegung | D31: =D29-D30 -> 0 | E31: =D30 -> 0 | F31: E29 =WENN(E28<0;E28+D28;E28) | I31: =IF(AND(E29<0,(E29+D29)>0),E29+D29-D30,0) -> 0
E32: =E29+E31 -> 0 | I32: =IF(C34>0,C34*16+E32,0) -> 0
B34: Restliche Extension für DI | C34: =IF(E30<0,ROUNDUP(-E30/16,0),0) -> 0 | D34: =IF(AND(C34>0,E34=0),(E30+C34*12)+C34*4,C34*4) -> 0 | E34: =IF(AND(C34>0,ABS(E30)<C34*12),C34*12+E30,0) -> 0 | F34: =$C$34*F62 -> 0 | G34: 0
B35: Fehlende/Überschüssige Anschlüsse | D35: =D31+D34 -> 0 | E35: =IF(AND(C34>0,ABS(E30)<C34*12),C34*12+E30,0) -> 0 | F35: =F29+F34 -> 0 | G35: 0 | L35: =IF(G35<0,L19+G35,L19) -> 0
F36: E34 =WENN((E33+E29)<0;0;E33+E29) zuvor
B37: Relay Extension | C37: =IF(L35<0,ROUNDUP(L35/L67*(-1),0),0) -> 0 | L37: =C37*L67 -> 0
B38: Fehlende Anschlüsse | D38: =D35 -> 0 | E38: 0 | F38: 0 | G38: =IF(G35>0,G35,0) -> 0 | H38: =H29 -> 0 | I38: 0 | J38: 0 | L38: =SUM(L35:L37) -> 0
B39: 1-Wire Extension | C39: =IF(H38<0,ROUNDUP(H38/H64*(-1),0),0) -> 0 | H39: =C39*H64 -> 0
B40: Fehlende Anschlüsse | D40: =SUM(D38:D39) -> 0 | E40: 0 | F40: 0 | G40: 0 | H40: 0 | I40: 0 | J40: 0 | L40: =SUM(L38:L39) -> 0
B41: EnOcean-Extension | C41: =IF(J40<0,ROUNDUP(J40/J65*(-1),0),0) -> 0 | J41: =C41*J65 -> 0
B42: Fehlende Anschlüsse | E42: =SUM(E40:E41) -> 0 | F42: 0 | G42: 0 | H42: 0 | I42: 0 | J42: 0 | K42: =K29 -> 0 | L42: =SUM(L40:L41) -> 0
B43: AirBaseExtension | C43: =IF(I42<0,ROUNDUP(I42/I68*(-1),0),0) -> 0 | I43: =C43*I68 -> 0
B44: Tree Extension | C44: =IF(K42<0,ROUNDUP(K42/K71*(-1),0),0) -> 0 | K44: =C44*K71 -> 0
B45: Dali Extension | C45: =IF((N23+N22)<0,ROUNDUP((N23+N22)/N72*(-1),0),0) -> 0 | D45: Eine Extension unter "MS + Ext." zählt nun ebenfalls zu den channels dazu und wird nichtmehr extra addiert
B46: Zusätzlicher Miniserver (Basis Extensions) | C46: =IF(C57>1,C57-1,0) -> 0 | D46: =$C$46*D5 -> 0 | E46: 0 | F46: 0 | G46: 0
B47: Reserve nach Abdeckung fehlender Anschlüsse | D47: =D40+D46 -> 0 | E47: =SUM(E42:E46) -> 0 | F47: 0 | G47: 0 | H47: 0 | I47: 0 | J47: 0 | K47: =SUM(K42:K44) -> 0 | L47: =SUM(L42:L46) -> 0
B51: Anschlüsse nach autmomatische Ergänzung von fehlenden Extensions
B52: Gesamt verfügbare Anschlüsse | D52: =D22+D27+C34*4+C380*D61+D62*C381+D46 -> 0 | E52: =E22+E27+C34*12+C380*E61+C381*E62+E46+E69*(C223+C391) -> 0 | F52: =F22+F27+F34+C380*F61+C381*F62+F46 -> 0 | G52: =G22+G27+G34+G46+C380*G61+C381*G62 -> 0 | H52: =H22+H39+C385*H64+(C223+C391)*H69 -> 0 | I52: =I22+I43+(C221+C390)*I68 -> 0 | J52: 0 | K52: 0 | L52: =L22+L37+C389*L67+(C223+C391)*L69 -> 0 | O52: =N22+C45*N72 -> 0
B53: Benötigte Anschlüsse | C53: -1 | D53: =ABS(D4)+D30+C34*4-D34 -> 0 | E53: =ABS(E4)-E31-(C34*4-D34) -> 0 | F53: =F4*$C$53 -> 0 | G53: =G4*$C$53+IF(G35<0,G35,0) -> 0 | H53: =H4*$C$53 -> 0 | I53: 0 | J53: 0 | K53: =K23+K44+(E222+E391)*K69 -> 0 | L53: =L4*$C$53-IF(G35<0,G35,0) -> 0 | O53: =C497 -> 0
B54: Übrigbleibende Anschlüsse | D54: =D52-D53 -> 0 | E54: 0 | F54: 0 | G54: 0 | H54: 0 | I54: 0 | J54: 0 | K54: =K24+K46+(E223+E392)*K70 -> 0 | L54: =L52-L53 -> 0 | O54: =O52-O53 -> 0
B56: Gesamtanzahl Extensions | C56: =Products!B8+Products!B11+Products!B12+Products!B13+Products!B14+Products!B15+Products!B21+Products!B23+Products!B24+Products!B26+Products!B28+Products!B40 -> 0
B57: Benötigte Miniserver inkl. Extensions | C57: =ROUNDUP(C56/30,0) -> 0
D60: AI (Eingang) | E60: DI (Eingang) | F60: AO (Ausgang) | G60: DO (Ausgang) | H60: 1-Wire Kanal | I60: Air Base Kanal | J60: EnOcean | K60: Tree Kanal | L60: DO 16A | M60: DMX Kanäle | N60: Dali Kanäle
B61: Miniserver | D61: =Products!$J$7 -> 4 | E61: =Products!$K$7 -> 8 | F61: =Products!$L$7 -> 4 | G61: =Products!$M$7 -> 8
B62: Extension | D62: =Products!$J$8 -> 4 | E62: =Products!$K$8 -> 12 | F62: =Products!$L$8 -> 4 | G62: =Products!$M$8 -> 8
B63: DMX Extension | M63: =Products!$N$12 -> 128
B64: 1-wire Extension | H64: =Products!$N$14 -> 20
B65: EnOcean Extension | J65: =Products!$N$15 -> 128
B66: Dimmer Extension | E66: =Products!$K$21 -> 8 | F66: =Products!$L$21 -> 4
B67: Relay Extension | L67: =Products!$M$23 -> 14
B68: Air Base Extension | I68: =Products!$N$24 -> 128
B69: Multi Extension Air | E69: =Products!$K$26 -> 12 | H69: =Products!$N$26 -> 20 | L69: =Products!$M$26 -> 8 | M69: Air Dimmer
B70: Miniserver Go | I70: =Products!$N$30 -> 128
B71: Tree Extension | K71: 100
B72: Dali Extension | N72: 64
D73: Benötigte Kanäle auf Extension (Basis LED Streifen)
B74: Licht | C74: Anzahl | D74: DMX Ext. | E74: Air Base Ext. | F74: DMX Frei | G74: AO | H74: DO | I74: Dimmer Kanäle frei | K74: DO 16A | L74: Tree
B75: =Light!B18 -> Light Circut (switched ) | C75: =IF(ISNA(VLOOKUP(B75,Main!$B$5:$C$15,2,FALSE)),0,VLOOKUP(B75,Main!$B$5:$C$15,2,FALSE)) -> 0 | H75: =1*C75 -> 0
A76: 100012 | B76: =Light!B2 -> DMX Extension | C76: =IF(ISNA(VLOOKUP(B76,Main!$B$5:$C$15,2,FALSE)),0,VLOOKUP(B76,Main!$B$5:$C$15,2,FALSE)) -> 0 | F76: =Products!N12*C76 -> 0
A77: 100029 | B77: =Light!B3 -> Dimmer Channel (110V) | C77: =ROUNDUP(IF(ISNA(VLOOKUP(B77,Main!$B$5:$C$15,2,FALSE)),0,VLOOKUP(B77,Main!$B$5:$C$15,2,FALSE))/4,0) -> 0 | I77: =C77*4 -> 0 | N77: =ROUNDUP(IF(ISNA(VLOOKUP(B77,Main!$B$5:$C$15,2,FALSE)),0,VLOOKUP(B77,Main!$B$5:$C$15,2,FALSE)),0) -> 0
A78: 100117 | B78: =Light!B4 -> RGBW 24V Dimmer DMX | C78: =IF(ISNA(VLOOKUP(B78,Main!$B$5:$C$15,2,FALSE)),0,VLOOKUP(B78,Main!$B$5:$C$15,2,FALSE)) -> 0 | D78: =Products!N27*C78 -> 0
A79: 100125 | B79: =Light!B5 -> RGBW 24V Dimmer Air | C79: =IF(ISNA(VLOOKUP(B79,Main!$B$5:$C$15,2,FALSE)),0,VLOOKUP(B79,Main!$B$5:$C$15,2,FALSE)) -> 0 | E79: =Products!N29*C79 -> 0
A80: 200042 | B80: =Light!B6 -> RGB LED Strip 5m | C80: =IF(ISNA(VLOOKUP(B80,Main!$B$5:$C$15,2,FALSE)),0,VLOOKUP(B80,Main!$B$5:$C$15,2,FALSE)) -> 0 | I80: Slots Licht | J80: DMX Ext.
A81: 200043 | B81: =Light!B7 -> Warm White LED Strip 5m | C81: =IF(ISNA(VLOOKUP(B81,Main!$B$5:$C$15,2,FALSE)),0,VLOOKUP(B81,Main!$B$5:$C$15,2,FALSE)) -> 0 | I81: Verfügbare Kanäle | J81: =F76 -> 0
A82: 200045 | B82: RGB Streifen - gelöscht | C82: =IF(ISNA(VLOOKUP(B82,Main!$B$5:$C$15,2,FALSE)),0,VLOOKUP(B82,Main!$B$5:$C$15,2,FALSE)) -> 0 | I82: Benötigte Kanäle | J82: =D78 -> 0
A83: 200046 | B83: =Light!B8 -> RGB LED Strip 5m IP68 | C83: =IF(ISNA(VLOOKUP(B83,Main!$B$5:$C$15,2,FALSE)),0,VLOOKUP(B83,Main!$B$5:$C$15,2,FALSE)) -> 0 | I83: Fehlende Kanäle | J83: =IF(J82>J81,J82-J81,0) -> 0
A84: 200061 | B84: =Light!B10 -> Warm White LED Strip 5m IP65 | C84: =IF(ISNA(VLOOKUP(B84,Main!$B$5:$C$15,2,FALSE)),0,VLOOKUP(B84,Main!$B$5:$C$15,2,FALSE)) -> 0 | I84: Reserve | J84: =IF(J81>J82,J81-J82,0) -> 0
A85: 200092 | B85: =Light!B11 -> Warm White LED Strip 5m IP68 | C85: =IF(ISNA(VLOOKUP(B85,Main!$B$5:$C$15,2,FALSE)),0,VLOOKUP(B85,Main!$B$5:$C$15,2,FALSE)) -> 0
A86: 200098 | B86: =Light!B12 -> RGBW LED Strip 5m IP20 | C86: =IF(ISNA(VLOOKUP(B86,Main!$B$5:$C$15,2,FALSE)),0,VLOOKUP(B86,Main!$B$5:$C$15,2,FALSE)) -> 0 | I86: DMX zusätzlich | J86: =ROUNDUP(J83/M63,0) -> 0
A87: 200099 | B87: =Light!B13 -> RGBW LED Strip 5m IP65 | C87: =IF(ISNA(VLOOKUP(B87,Main!$B$5:$C$15,2,FALSE)),0,VLOOKUP(B87,Main!$B$5:$C$15,2,FALSE)) -> 0
A88: 200100 | B88: =Light!B14 -> RGBW LED Strip 5m IP68 | C88: =IF(ISNA(VLOOKUP(B88,Main!$B$5:$C$15,2,FALSE)),0,VLOOKUP(B88,Main!$B$5:$C$15,2,FALSE)) -> 0
A89: 200280 | B89: =Light!B15 -> LED Strip Accessories Set - RGBW | C89: =IF(ISNA(VLOOKUP(B89,Main!$B$5:$C$15,2,FALSE)),0,VLOOKUP(B89,Main!$B$5:$C$15,2,FALSE)) -> 0
A90: 200278 | B90: =Light!B16 -> LED Strip Accessories Set - Warm White | C90: =IF(ISNA(VLOOKUP(B90,Main!$B$5:$C$15,2,FALSE)),0,VLOOKUP(B90,Main!$B$5:$C$15,2,FALSE)) -> 0
B91: =Light!B17 -> Analogue 1-10V | C91: =IF(ISNA(VLOOKUP(B91,Main!$B$5:$C$15,2,FALSE)),0,VLOOKUP(B91,Main!$B$5:$C$15,2,FALSE)) -> 0 | G91: =1*C91 -> 0
A92: 100153 | B92: =Light!B9 -> Nano IO Air | C92: =IF(ISNA(VLOOKUP(B92,Main!$B$5:$C$15,2,FALSE)),0,VLOOKUP(B92,Main!$B$5:$C$15,2,FALSE)) -> 0 | E92: =Products!N37*C92 -> 0
A93: 100204 | B93: =Light!B19 -> LED Spot RGBW | C93: =IF(ISNA(VLOOKUP(B93,Main!$B$5:$C$15,2,FALSE)),0,VLOOKUP(B93,Main!$B$5:$C$15,2,FALSE)) -> 0
A94: 100203 | B94: =Light!B20 -> LED Spot Warm White | C94: =IF(ISNA(VLOOKUP(B94,Main!$B$5:$C$15,2,FALSE)),0,VLOOKUP(B94,Main!$B$5:$C$15,2,FALSE)) -> 0
B95: =Light!B22 -> Circut (switched ) 16A | C95: =IF(ISNA(VLOOKUP(B95,Main!$B$5:$C$15,2,FALSE)),0,VLOOKUP(B95,Main!$B$5:$C$15,2,FALSE)) -> 0 | K95: =C95*1 -> 0
B96: =Light!B23 -> LED Ceiling Spot RGBW | C96: =IF(ISNA(VLOOKUP(B96,Main!$B$5:$C$15,2,FALSE)),0,VLOOKUP(B96,Main!$B$5:$C$15,2,FALSE)) -> 0
B97: =Light!B24 -> LED Ceiling Spot WW | C97: =IF(ISNA(VLOOKUP(B97,Main!$B$5:$C$15,2,FALSE)),0,VLOOKUP(B97,Main!$B$5:$C$15,2,FALSE)) -> 0
B98: =Light!B25 -> LED Ceiling Spot Tree RGBW | C98: =IF(ISNA(VLOOKUP(B98,Main!$B$5:$C$15,2,FALSE)),0,VLOOKUP(B98,Main!$B$5:$C$15,2,FALSE)) -> 0 | L98: =C98 -> 0
B99: =Light!B26 -> LED Ceiling Spot Tree WW | C99: =IF(ISNA(VLOOKUP(B99,Main!$B$5:$C$15,2,FALSE)),0,VLOOKUP(B99,Main!$B$5:$C$15,2,FALSE)) -> 0 | L99: 0
B100: =Light!B27 -> LED Spot Tree WW | C100: =IF(ISNA(VLOOKUP(B100,Main!$B$5:$C$15,2,FALSE)),0,VLOOKUP(B100,Main!$B$5:$C$15,2,FALSE)) -> 0 | L100: 0
B101: =Light!B28 -> LED Spot Tree RGBW | C101: =IF(ISNA(VLOOKUP(B101,Main!$B$5:$C$15,2,FALSE)),0,VLOOKUP(B101,Main!$B$5:$C$15,2,FALSE)) -> 0 | L101: 0
B102: =Light!B29 -> RGBW 24V Dimmer Tree | C102: =IF(ISNA(VLOOKUP(B102,Main!$B$5:$C$15,2,FALSE)),0,VLOOKUP(B102,Main!$B$5:$C$15,2,FALSE)) -> 0 | L102: 0
C103: Summe | D103: =SUM(D75:D102) -> 0 | E103: 0 | F103: 0 | G103: 0 | H103: 0 | K103: =SUM(K75:K95) -> 0 | L103: =SUM(L75:L102) -> 0
B105: Information
B106: Pro Streifen 1 Dimmer & Pro Dimmer 1 Netzteil
B107: DMX Dimmer belegt immer 4 Kanäle auf DMX Extension
B108: Dimmer Air belegt 1 Kanal auf Air Base Extension
B109: Da Dimmer auch ausgewählt wird, verfügbare, benötigte, reserve und noch notwendige Kanäle berechnen
B110: Berechnung Kanäle auf Basis Dimmer nicht Streifen
B111: Netzteilrechner: Spalte mit Watt pro Streifen
I112: Zusätzlich benötigt
B113: 2 Mal 1 Produkt auswählen geht nicht, weil Anzahl nicht zusammengezählt wird! | I113: Air Base Extension
I114: Miniserver
B116: Musik | C116: Anzahl Stück | D116: 0
A117: 100165 | B117: =Music!B3 -> Loxone Music Server 4 Zone | C117: =IF(ISNA(VLOOKUP(B117,Main!$B$64:$C$72,2,FALSE)),0,VLOOKUP(B117,Main!$B$64:$C$72,2,FALSE)) -> 0 | D117: 0
A118: 100166 | B118: =Music!B4 -> Loxone Music Server 8 Zone | C118: =IF(ISNA(VLOOKUP(B118,Main!$B$64:$C$72,2,FALSE)),0,VLOOKUP(B118,Main!$B$64:$C$72,2,FALSE)) -> 0 | D118: 0
A119: 100167 | B119: =Music!B5 -> Loxone Music Server 12 Zone | C119: =IF(ISNA(VLOOKUP(B119,Main!$B$64:$C$72,2,FALSE)),0,VLOOKUP(B119,Main!$B$64:$C$72,2,FALSE)) -> 0 | D119: 0 | F119: Loxone Music Server 4 | H119: =IF(C128>(H123*20+H122*16+H121*12+H120*8),ROUNDUP((C128-H123*20-H122*16-H121*12-H120*8)/4,0),0) -> 0
A120: 100168 | B120: =Music!B6 -> Loxone Music Server 16 Zone | C120: =IF(ISNA(VLOOKUP(B120,Main!$B$64:$C$72,2,FALSE)),0,VLOOKUP(B120,Main!$B$64:$C$72,2,FALSE)) -> 0 | D120: 0 | F120: Loxone Music Server 8 | H120: =IF((C128-H123*20-H122*16-H121*12)<=4,0,IF((C128>(H123*20+H122*16+H121*12)),ROUNDUP((C128-H123*20-H122*16-H121*12)/8,0),0)) -> 0
A121: 100169 | B121: =Music!B7 -> Loxone Music Server 20 Zone | C121: =IF(ISNA(VLOOKUP(B121,Main!$B$64:$C$72,2,FALSE)),0,VLOOKUP(B121,Main!$B$64:$C$72,2,FALSE)) -> 0 | D121: 0 | F121: Loxone Music Server 12 | H121: =IF((C128-H123*20-H122*16)<=8,0,IF((C128>(H123*20+H122*16)),ROUNDUP((C128-H123*20-H122*16)/12,0),0)) -> 0
A122: 200097 | B122: =Music!B8 -> Loxone Speaker | C122: =IF(ISNA(VLOOKUP(B122,Main!$B$64:$C$72,2,FALSE)),0,VLOOKUP(B122,Main!$B$64:$C$72,2,FALSE)) -> 0 | D122: Message box sperren | F122: Loxone Music Server 16 | H122: =IF((C128-H123*20)<=12,0,IF((C128>H123*20),ROUNDUP((C128-H123*20)/16,0),0)) -> 0
A123: 200110 | B123: =Music!B9 -> Loxone 12 Channel Amplifier | C123: =IF(ISNA(VLOOKUP(B123,Main!$B$64:$C$72,2,FALSE)),0,VLOOKUP(B123,Main!$B$64:$C$72,2,FALSE)) -> 0 | D123: 0 | F123: Loxone Music Server 20 | H123: =IF(OR(C128=17,C128=18,C128=19,C128=37,C128=38,C128=39),1,0)+I123 -> 0 | I123: =ROUNDDOWN(C128/20,0) -> 0
A124: 200150 | B124: =Music!B10 -> Loxone Speaker Back Box | C124: =IF(ISNA(VLOOKUP(B124,Main!$B$64:$C$72,2,FALSE)),0,VLOOKUP(B124,Main!$B$64:$C$72,2,FALSE)) -> 0
A125: 100205 | B125: =Music!B13 -> Loxone Music Server Upgrade | C125: =IF(ISNA(VLOOKUP(B125,Main!$B$64:$C$72,2,FALSE)),0,VLOOKUP(B125,Main!$B$64:$C$72,2,FALSE)) -> 0
A126: 200202 | B126: =Music!B12 -> Loxone Speaker Back Box For Suspended Ceilings | C126: =IF(ISNA(VLOOKUP(B126,Main!$B$64:$C$72,2,FALSE)),0,VLOOKUP(B126,Main!$B$64:$C$72,2,FALSE)) -> 0
A127: 200153 | B127: =Music!B11 -> Loxone Wall Speaker | C127: =IF(ISNA(VLOOKUP(B127,Main!$B$64:$C$72,2,FALSE)),0,VLOOKUP(B127,Main!$B$64:$C$72,2,FALSE)) -> 0
B128: =Music!B2 -> Music Server Zone | C128: =IF(ISNA(VLOOKUP(B128,Main!$B$64:$C$72,2,FALSE)),0,VLOOKUP(B128,Main!$B$64:$C$72,2,FALSE)) -> 0
B130: Heizung | C130: Anzahl Stück | E130: AI | F130: AO | G130: DO | H130: 1-Wire | K130: Tree
A131: 100163 | B131: =Heating!B2 ->  | C131: =IF(ISNA(VLOOKUP(B131,Main!$B$21:$C$25,2,FALSE)),0,VLOOKUP(B131,Main!$B$21:$C$25,2,FALSE)) -> 0 | I131: =C131 -> 0
A132: 200003 | B132: =Heating!B3 ->  | C132: =IF(ISNA(VLOOKUP(B132,Main!$B$21:$C$25,2,FALSE)),0,VLOOKUP(B132,Main!$B$21:$C$25,2,FALSE)) -> 0 | E132: =Products!J57*C132 -> 0
A133: 200004 | B133: =Heating!B4 -> Valve Actuator Air | C133: =IF(ISNA(VLOOKUP(B133,Main!$B$21:$C$25,2,FALSE)),0,VLOOKUP(B133,Main!$B$21:$C$25,2,FALSE)) -> 0 | I133: =1*C133 -> 0
A134: 200005 | B134: =Heating!B5 -> Outside Temperature Sensor 0-10V | C134: =IF(ISNA(VLOOKUP(B134,Main!$B$21:$C$25,2,FALSE)),0,VLOOKUP(B134,Main!$B$21:$C$25,2,FALSE)) -> 0 | G134: =Products!M59*C134 -> 0
A135: 200006 | B135: =Heating!B6 -> Indoor Temperature Sensor 0-10V | C135: =IF(ISNA(VLOOKUP(B135,Main!$B$21:$C$25,2,FALSE)),0,VLOOKUP(B135,Main!$B$21:$C$25,2,FALSE)) -> 0 | E135: =Products!J60*C135 -> 0
A136: 200010 | B136: =Heating!B7 -> Indoor Temperature & Humidity Sensor 0-10V | C136: =IF(ISNA(VLOOKUP(B136,Main!$B$21:$C$25,2,FALSE)),0,VLOOKUP(B136,Main!$B$21:$C$25,2,FALSE)) -> 0 | E136: =Products!J62*C136 -> 0
A137: 200017 | B137: =Heating!B8 -> Indoor Temperature, Humidty & CO2 Sensor 0-10V | C137: =IF(ISNA(VLOOKUP(B137,Main!$B$21:$C$25,2,FALSE)),0,VLOOKUP(B137,Main!$B$21:$C$25,2,FALSE)) -> 0 | E137: =Products!J65*C137 -> 0
A138: 200077 | B138: =Heating!B9 -> Temperature Probe 1-Wire | C138: =IF(ISNA(VLOOKUP(B138,Main!$B$21:$C$25,2,FALSE)),0,VLOOKUP(B138,Main!$B$21:$C$25,2,FALSE)) -> 0 | H138: =Products!N87*C138 -> 0
A139: 200109 | B139: =Heating!B10 -> 1-Wire Temperature Sensor | C139: =ROUNDUP(IF(ISNA(VLOOKUP(B139,Main!$B$21:$C$25,2,FALSE)),0,VLOOKUP(B139,Main!$B$21:$C$25,2,FALSE))/5,0) -> 0 | H139: =Products!N103*C139 -> 0
B140: =Heating!B11 -> Valve Actuator Tree | C140: =IF(ISNA(VLOOKUP(B140,Main!$B$21:$C$25,2,FALSE)),0,VLOOKUP(B140,Main!$B$21:$C$25,2,FALSE)) -> 0 | K140: =C140*Products!N154 -> 0
D141: Summe | E141: =SUM(E131:E139) -> 0 | F141: 0 | G141: 0 | H141: 0 | I141: 0 | K141: =SUM(K133:K140) -> 0 | L141: 0
I143: Zusätzlich benötigt
I144: 1-Wire Extension
I145: Extension
I146: Miniserver
B149: Zutritt | C149: Anzahl | D149: 1-Wire
A150: 200063 | B150: =Entry!B2 -> iButton Reader 1-Wire | C150: =IF(ISNA(VLOOKUP(B150,Main!$B$59:$C$62,2,FALSE)),0,VLOOKUP(B150,Main!$B$59:$C$62,2,FALSE)) -> 0 | D150: =Products!N83*C150 -> 0 | E150: Jeder Leser 1 Extension, außer es ist schon eine 1-Wire Extension vorhanden, dann hat dort 1 Leser platz
A151: 200064 | B151: =Entry!B3 -> iButton Electronic Key Fob | C151: =IF(ISNA(VLOOKUP(B151,Main!$B$59:$C$62,2,FALSE)),0,VLOOKUP(B151,Main!$B$59:$C$62,2,FALSE)) -> 0 | G151: Ben. Kanäle | H151: Ben. Ext | I151: Freie Plätze
A152: 200070 | B152: =Entry!B4 -> not available in this country | C152: =IF(ISNA(VLOOKUP(B152,Main!$B$59:$C$62,2,FALSE)),0,VLOOKUP(B152,Main!$B$59:$C$62,2,FALSE)) -> 0 | F152: Summe Leser | G152: =D160 -> 0 | H152: =G152 -> 0 | I152: =(G155+H152)*20 -> 0
A153: 200076 | F153: S. Heizung | G153: =H4*(-1)-G152 -> 0 | H153: =IF(I152<G153,ROUNDUP((G153-I152)/20,0),0) -> 0
A154: 200082
A155: 200093 | B155: =Entry!B5 -> Loxone Intercom | C155: =IF(ISNA(VLOOKUP(B155,Main!$B$59:$C$62,2,FALSE)),0,VLOOKUP(B155,Main!$B$59:$C$62,2,FALSE)) -> 0 | F155: vorh. Ext. | G155: =C385 -> 0
A156: 200094 | B156: =Entry!B6 -> Flush-mounted box for the Loxone intercom | C156: =IF(ISNA(VLOOKUP(B156,Main!$B$59:$C$62,2,FALSE)),0,VLOOKUP(B156,Main!$B$59:$C$62,2,FALSE)) -> 0
A157: 200095 | B157: =Entry!B7 -> Surface Box for Loxone Intercom | C157: =IF(ISNA(VLOOKUP(B157,Main!$B$59:$C$62,2,FALSE)),0,VLOOKUP(B157,Main!$B$59:$C$62,2,FALSE)) -> 0 | G157: =IF(D160>(C39+C12),1,0) -> 0
A158: 200191 | B158: =Entry!B8 -> iButton Reader 1-Wire Outdoor | C158: =IF(ISNA(VLOOKUP(B158,Main!$B$59:$C$62,2,FALSE)),0,VLOOKUP(B158,Main!$B$59:$C$62,2,FALSE)) -> 0 | D158: =Products!N137*C158 -> 0
A159: 200273 | B159: =Entry!B9 -> Loxone Intercom XL | C159: =IF(ISNA(VLOOKUP(B159,Main!$B$59:$C$62,2,FALSE)),0,VLOOKUP(B159,Main!$B$59:$C$62,2,FALSE)) -> 0
C160: Summe | D160: =SUM(D150:D159) -> 0
B162: Information | I162: Zusätzlich benötigt
B163: 1-Wire Extension (20 Slots) benötigt | I163: 1-Wire Extension
B164: 1 Lesegerät = 1 Slot | I164: Miniserver
B167: Sensoren | C167: Anzahl | D167: AI | E167: DI | G167: 1-Wire | K167: Tree | L167: AIR
A168: 200003 | B168: =Sensors!B2 -> Outside Temperature Sensor 0-10V | C168: =IF(ISNA(VLOOKUP(B168,Main!$B$27:$C$32,2,FALSE)),0,VLOOKUP(B168,Main!$B$27:$C$32,2,FALSE)) -> 0 | D168: =Products!J57*C168 -> 0
A169: 200006 | B169: =Sensors!B3 -> Indoor Temperature Sensor 0-10V | C169: =IF(ISNA(VLOOKUP(B169,Main!$B$27:$C$32,2,FALSE)),0,VLOOKUP(B169,Main!$B$27:$C$32,2,FALSE)) -> 0 | D169: =Products!J60*C169 -> 0
A170: 200010 | B170: =Sensors!B4 -> Indoor Temperature & Humidity Sensor 0-10V | C170: =IF(ISNA(VLOOKUP(B170,Main!$B$27:$C$32,2,FALSE)),0,VLOOKUP(B170,Main!$B$27:$C$32,2,FALSE)) -> 0 | D170: =Products!J62*C170 -> 0
A171: 200017 | B171: =Sensors!B5 -> Indoor Temperature, Humidty & CO2 Sensor 0-10V | C171: =IF(ISNA(VLOOKUP(B171,Main!$B$27:$C$32,2,FALSE)),0,VLOOKUP(B171,Main!$B$27:$C$32,2,FALSE)) -> 0 | D171: =Products!J65*C171 -> 0
A172: 200018 | B172: =Sensors!B6 -> Rain Sensor (24V) | C172: =IF(ISNA(VLOOKUP(B172,Main!$B$27:$C$32,2,FALSE)),0,VLOOKUP(B172,Main!$B$27:$C$32,2,FALSE)) -> 0 | E172: =Products!K66*C172 -> 0
A173: 200031 | B173: =Sensors!B7 -> Outdoor Temperature & Humidy Sensor 0-10V | C173: =IF(ISNA(VLOOKUP(B173,Main!$B$27:$C$32,2,FALSE)),0,VLOOKUP(B173,Main!$B$27:$C$32,2,FALSE)) -> 0 | D173: =Products!J67*C173 -> 0
A174: 200032 | B174: =Sensors!B8 -> Brightness Sensor 0-10V | C174: =IF(ISNA(VLOOKUP(B174,Main!$B$27:$C$32,2,FALSE)),0,VLOOKUP(B174,Main!$B$27:$C$32,2,FALSE)) -> 0 | D174: =Products!J68*C174 -> 0
A175: 200033 | B175: =Sensors!B9 -> Windsensor 24V | C175: =IF(ISNA(VLOOKUP(B175,Main!$B$27:$C$32,2,FALSE)),0,VLOOKUP(B175,Main!$B$27:$C$32,2,FALSE)) -> 0 | E175: =Products!K69*C175 -> 0
A176: 200034 | B176: =Sensors!B10 -> Wind Sensor Mount | C176: =IF(ISNA(VLOOKUP(B176,Main!$B$27:$C$32,2,FALSE)),0,VLOOKUP(B176,Main!$B$27:$C$32,2,FALSE)) -> 0 | F176: Stück
A177: 200054 | B177: =Sensors!B11 -> Ultrasonic Sensor 0-10V | C177: =IF(ISNA(VLOOKUP(B177,Main!$B$27:$C$32,2,FALSE)),0,VLOOKUP(B177,Main!$B$27:$C$32,2,FALSE)) -> 0 | D177: =Products!J79*C177 -> 0
A178: 200077 | B178: =Sensors!B12 -> Temperature Probe 1-Wire | C178: =IF(ISNA(VLOOKUP(B178,Main!$B$27:$C$32,2,FALSE)),0,VLOOKUP(B178,Main!$B$27:$C$32,2,FALSE)) -> 0 | H178: =Products!N87*C178 -> 0
A179: 200101 | B179: =Sensors!B13 -> Water Sensor | C179: =IF(ISNA(VLOOKUP(B179,Main!$B$27:$C$32,2,FALSE)),0,VLOOKUP(B179,Main!$B$27:$C$32,2,FALSE)) -> 0 | E179: =Products!K101*C179 -> 0
A180: 200109 | B180: =Sensors!B14 -> Temperature Sensor Set 1-Wire | C180: =IF(ISNA(VLOOKUP(B180,Main!$B$27:$C$32,2,FALSE)),0,VLOOKUP(B180,Main!$B$27:$C$32,2,FALSE)) -> 0 | H180: =Products!N103*C180 -> 0
A181: 200112 | B181: =Sensors!B15 -> Outside Motion Sensor (24V) | C181: =IF(ISNA(VLOOKUP(B181,Main!$B$27:$C$32,2,FALSE)),0,VLOOKUP(B181,Main!$B$27:$C$32,2,FALSE)) -> 0 | E181: =Products!K105*C181 -> 0
B182: =Sensors!B16 -> Window Contact (integrated - only reserve DI) | C182: =IF(ISNA(VLOOKUP(B182,Main!$B$27:$C$32,2,FALSE)),0,VLOOKUP(B182,Main!$B$27:$C$32,2,FALSE)) -> 0 | E182: =C182 -> 0
A183: 200113 | B183: =Sensors!B17 -> Window & Door Contact | C183: =IF(ISNA(VLOOKUP(B183,Main!$B$27:$C$32,2,FALSE)),0,VLOOKUP(B183,Main!$B$27:$C$32,2,FALSE)) -> 0 | E183: =Products!K106*C183 -> 0
A184: 200136 | B184: =Sensors!B18 -> Temperature & Humidity Sensor For Saunas | C184: =IF(ISNA(VLOOKUP(B184,Main!$B$27:$C$32,2,FALSE)),0,VLOOKUP(B184,Main!$B$27:$C$32,2,FALSE)) -> 0 | D184: =Products!J109*C184 -> 0
A185: 200154 | B185: =Sensors!B19 -> Pressure Sensor 0-10V | C185: =IF(ISNA(VLOOKUP(B185,Main!$B$27:$C$32,2,FALSE)),0,VLOOKUP(B185,Main!$B$27:$C$32,2,FALSE)) -> 0 | D185: =Products!J115*C185 -> 0
A186: 200155 | B186: =Sensors!B20 -> Glass Break Sensor 24V | C186: =IF(ISNA(VLOOKUP(B186,Main!$B$27:$C$32,2,FALSE)),0,VLOOKUP(B186,Main!$B$27:$C$32,2,FALSE)) -> 0 | E186: =Products!K116*C186 -> 0
B187: =Sensors!B21 -> Motion Sensor Tree Black | C187: =IF(ISNA(VLOOKUP(B187,Main!$B$27:$C$32,2,FALSE)),0,VLOOKUP(B187,Main!$B$27:$C$32,2,FALSE)) -> 0 | K187: =C187*Products!N152 -> 0
B188: =Sensors!B22 -> Motion Sensor Tree White | C188: =IF(ISNA(VLOOKUP(B188,Main!$B$27:$C$32,2,FALSE)),0,VLOOKUP(B188,Main!$B$27:$C$32,2,FALSE)) -> 0 | K188: =C188*Products!N153 -> 0
B189: =Sensors!B23 -> Water Sensor Air | C189: =IF(ISNA(VLOOKUP(B189,Main!$B$27:$C$32,2,FALSE)),0,VLOOKUP(B189,Main!$B$27:$C$32,2,FALSE)) -> 0 | I189: =C189*Products!N154 -> 0 | L189: =C189 -> 0
B190: =Sensors!B24 -> Door & Window Contact Air Black | C190: =IF(ISNA(VLOOKUP(B190,Main!$B$27:$C$32,2,FALSE)),0,VLOOKUP(B190,Main!$B$27:$C$32,2,FALSE)) -> 0 | I190: =C190*Products!N155 -> 0 | L190: 0
B191: =Sensors!B25 -> Door & Window Contact Air White | C191: =IF(ISNA(VLOOKUP(B191,Main!$B$27:$C$32,2,FALSE)),0,VLOOKUP(B191,Main!$B$27:$C$32,2,FALSE)) -> 0 | I191: =C191*Products!N156 -> 0 | L191: 0
B192: =Sensors!B26 -> Digital IN (Reserve) | C192: =IF(ISNA(VLOOKUP(B192,Main!$B$27:$C$32,2,FALSE)),0,VLOOKUP(B192,Main!$B$27:$C$32,2,FALSE)) -> 0 | E192: =C192 -> 0
B193: =Sensors!B27 -> Analog IN (Reserve) | C193: =IF(ISNA(VLOOKUP(B193,Main!$B$27:$C$32,2,FALSE)),0,VLOOKUP(B193,Main!$B$27:$C$32,2,FALSE)) -> 0 | D193: =C193 -> 0
B194: =Products!D187 -> Window Handle Air | C194: =IF(ISNA(VLOOKUP(B194,Main!$B$27:$C$32,2,FALSE)),0,VLOOKUP(B194,Main!$B$27:$C$32,2,FALSE)) -> 0 | L194: =C194 -> 0
C195: Summe | D195: =SUM(D168:D194) -> 0 | E195: =SUM(E172:E194) -> 0 | H195: =SUM(H172:H186) -> 0 | I195: =SUM(I172:I191) -> 0 | J195: 0 | K195: 0 | L195: =SUM(L168:L194) -> 0
B198: Verteiler | C198: Anzahl
A199: 200168 | B199: =Distributors!B2 -> Push In Terminal Block 8x4 Interconnected (20 pcs) | C199: =IF(ISNA(VLOOKUP(B199,Main!$B$81:$C$90,2,FALSE)),0,VLOOKUP(B199,Main!$B$81:$C$90,2,FALSE)) -> 0
A200: 200169 | B200: =Distributors!B3 -> Push In Terminal Block 8x4 Seperated (20pcs) | C200: =IF(ISNA(VLOOKUP(B200,Main!$B$81:$C$90,2,FALSE)),0,VLOOKUP(B200,Main!$B$81:$C$90,2,FALSE)) -> 0
A201: 200170 | B201: =Distributors!B4 -> Partition for 8x4 Terminals (10pcs) | C201: =IF(ISNA(VLOOKUP(B201,Main!$B$81:$C$90,2,FALSE)),0,VLOOKUP(B201,Main!$B$81:$C$90,2,FALSE)) -> 0
A202: 200171 | B202: =Distributors!B5 -> Label Holder 8 Levels (20 pcs) | C202: =IF(ISNA(VLOOKUP(B202,Main!$B$81:$C$90,2,FALSE)),0,VLOOKUP(B202,Main!$B$81:$C$90,2,FALSE)) -> 0
A203: 200172 | B203: =Distributors!B6 -> End Plate for 8x4 Terminals (10 pcs) | C203: =IF(ISNA(VLOOKUP(B203,Main!$B$81:$C$90,2,FALSE)),0,VLOOKUP(B203,Main!$B$81:$C$90,2,FALSE)) -> 0
A204: 200173 | B204: =Distributors!B7 -> Push In Terminal Block 3+Earth (50 pcs) | C204: =IF(ISNA(VLOOKUP(B204,Main!$B$81:$C$90,2,FALSE)),0,VLOOKUP(B204,Main!$B$81:$C$90,2,FALSE)) -> 0
A205: 200174 | B205: =Distributors!B8 -> End Plate for 3+Earth Terminals (20 pcs) | C205: =IF(ISNA(VLOOKUP(B205,Main!$B$81:$C$90,2,FALSE)),0,VLOOKUP(B205,Main!$B$81:$C$90,2,FALSE)) -> 0
A206: 200175 | B206: =Distributors!B9 -> Push In Terminal Block Twin+Earth (50 pcs) | C206: =IF(ISNA(VLOOKUP(B206,Main!$B$81:$C$90,2,FALSE)),0,VLOOKUP(B206,Main!$B$81:$C$90,2,FALSE)) -> 0
A207: 200176 | B207: =Distributors!B10 -> End Bracket (20 pcs) | C207: =IF(ISNA(VLOOKUP(B207,Main!$B$81:$C$90,2,FALSE)),0,VLOOKUP(B207,Main!$B$81:$C$90,2,FALSE)) -> 0
A208: 200177 | B208: =Distributors!B11 -> End Plate for Twin+Earth Terminals (20 pcs) | C208: =IF(ISNA(VLOOKUP(B208,Main!$B$81:$C$90,2,FALSE)),0,VLOOKUP(B208,Main!$B$81:$C$90,2,FALSE)) -> 0
A209: 200178 | B209: =Distributors!B12 -> Push in Fused Terminal Block (25 pcs) | C209: =IF(ISNA(VLOOKUP(B209,Main!$B$81:$C$90,2,FALSE)),0,VLOOKUP(B209,Main!$B$81:$C$90,2,FALSE)) -> 0
A210: 200179 | B210: =Distributors!B13 -> End Plate For Fused Terminals (50 pcs) | C210: =IF(ISNA(VLOOKUP(B210,Main!$B$81:$C$90,2,FALSE)),0,VLOOKUP(B210,Main!$B$81:$C$90,2,FALSE)) -> 0
A211: 200180 | B211: =Distributors!B14 -> Cross Connector For Fused Terminals (10 pcs) | C211: =IF(ISNA(VLOOKUP(B211,Main!$B$81:$C$90,2,FALSE)),0,VLOOKUP(B211,Main!$B$81:$C$90,2,FALSE)) -> 0
A212: 200181 | B212: =Distributors!B15 -> Blade Fuse 2A (100 pcs) | C212: =IF(ISNA(VLOOKUP(B212,Main!$B$81:$C$90,2,FALSE)),0,VLOOKUP(B212,Main!$B$81:$C$90,2,FALSE)) -> 0
A213: 200183 | B213: =Distributors!B16 -> Blade Fuse 5A (100 pcs) | C213: =IF(ISNA(VLOOKUP(B213,Main!$B$81:$C$90,2,FALSE)),0,VLOOKUP(B213,Main!$B$81:$C$90,2,FALSE)) -> 0
A214: 200184 | B214: =Distributors!B17 -> Blade Fuse 10A (100 pcs) | C214: =IF(ISNA(VLOOKUP(B214,Main!$B$81:$C$90,2,FALSE)),0,VLOOKUP(B214,Main!$B$81:$C$90,2,FALSE)) -> 0
A215: 200129 | B215: =Distributors!B18 -> Loxone CAT7 Cable (250m) | C215: =IF(ISNA(VLOOKUP(B215,Main!$B$81:$C$90,2,FALSE)),0,VLOOKUP(B215,Main!$B$81:$C$90,2,FALSE)) -> 0
A216: 100150 | B216: =Products!D35 -> Loxone Tool Kit by Weidmüller | C216: =IF(ISNA(VLOOKUP(B216,Main!$B$81:$C$90,2,FALSE)),0,VLOOKUP(B216,Main!$B$81:$C$90,2,FALSE)) -> 0
B217: =Products!D159 -> Cross Connector for Mains Terminals (20 pcs) | C217: =IF(ISNA(VLOOKUP(B217,Main!$B$81:$C$90,2,FALSE)),0,VLOOKUP(B217,Main!$B$81:$C$90,2,FALSE)) -> 0
B218: =Products!D77 -> Coupling Relay | C218: =IF(ISNA(VLOOKUP(B218,Main!$B$81:$C$90,2,FALSE)),0,VLOOKUP(B218,Main!$B$81:$C$90,2,FALSE)) -> 0
B220: Funk | C220: Anzahl | D220: Air Base | E220: EnOcean | F220: Kanäle frei | G220: Info
A221: 100114 | B221: =Wireless!B2 -> Air Base Extension | C221: =IF(ISNA(VLOOKUP(B221,Main!$B$41:$C$50,2,FALSE)),0,VLOOKUP(B221,Main!$B$41:$C$50,2,FALSE)) -> 0 | F221: =Products!N24*C221 -> 0
... 267 more rows

Sheet Power
B3: =VLOOKUP(Main!C2,Translating_general!A29:P46,2,FALSE) -> Power Supply Calculator
B6: =VLOOKUP(Main!C2,Translating_general!A29:P46,3,FALSE) -> Power Supplies | C6: 0,4 A | D6: 1,3 A | E6: 4,2 A | F6: 10 A
C7: =W12 ->  | D7: =W13 -> 0 | E7: =W14 -> 0 | F7: =W15 -> 0
B9: =VLOOKUP(Main!C2,Translating_general!A29:P46,4,FALSE) -> Extensions | X9: =VLOOKUP(Main!C2,Translating_general!A29:P46,4,FALSE) -> Extensions
B10: =VLOOKUP(Main!C2,Translating_general!A29:P46,5,FALSE) -> Item number | C10: =VLOOKUP(Main!C2,Translating_general!A29:P46,6,FALSE) -> Products | D10: =VLOOKUP(Main!C2,Translating_general!A29:P46,7,FALSE) -> Quantity | E10: =VLOOKUP(Main!C2,Translating_general!A29:P46,8,FALSE) -> Ampere/item | F10: =VLOOKUP(Main!C2,Translating_general!A29:P46,9,FALSE) -> Total | X10: =VLOOKUP(Main!C2,Translating_general!A29:P46,10,FALSE) -> Ampere available | Y10: =W19*1.3+W20*4.2 -> 0
B11: 100001 | C11: =Calculation!B398 -> Miniserver | D11: =Products!B7 -> 0 | E11: =Calculation!D398 -> 0.12 | F11: =D11*E11 -> 0 | V11: Gesamt | X11: =VLOOKUP(Main!C2,Translating_general!A29:P46,11,FALSE) -> Ampere needed | Y11: =F26 -> 0
B12: 100002 | C12: =Calculation!B399 -> Extension | D12: =Products!B8 -> 0 | E12: =Calculation!D399 -> 0.06 | F12: 0 | V12: 0,4A Netzteil | W12: =D28 -> 
B13: 100011 | C13: =Calculation!B400 -> RS485 Extension | D13: =Products!B11 -> 0 | E13: =Calculation!D400 -> 0.03 | F13: 0 | V13: 1,3A Netzteil | W13: =W19+W55 -> 0
B14: 100012 | C14: =Calculation!B401 -> DMX Extension | D14: =Products!B12 -> 0 | E14: =Calculation!D401 -> 0.03 | F14: 0 | V14: 4,2A Netzteil | W14: =W20+W34+W56 -> 0
B15: 100013 | C15: =Calculation!B402 -> RS 232 Extension | D15: =Products!B13 -> 0 | E15: =Calculation!D402 -> 0.03 | F15: 0 | V15: 10A Netzteil | W15: =W35+W57 -> 0
B16: 100014 | C16: =Calculation!B403 -> 1-Wire Extension | D16: =Products!B14 -> 0 | E16: =Calculation!D403 -> 0.03 | F16: 0
B17: 100015 | C17: =Calculation!B404 -> not available in this country | D17: =Products!B15 -> 0 | E17: =Calculation!D404 -> 0.03 | F17: 0
B18: 100029 | C18: =Calculation!B405 -> Dimmer Extension | D18: =Products!B21 -> 0 | E18: =Calculation!D405 -> 0.06 | F18: 0
B19: 100035 | C19: =Calculation!B406 -> IR Set | D19: =Products!B22 -> 0 | E19: =Calculation!D406 -> 0.03 | F19: 0 | V19: 1,3A Netzteil | W19: =IF((F26-W20*4.2)<4.2,ROUNDUP((F26-W20*4.2)/1.3,0),0) -> 0
B20: 100038 | C20: =Calculation!B407 -> Relay Extension | D20: =Products!B23 -> 0 | E20: =Calculation!D407 -> 0.3 | F20: 0 | V20: 4,2A Netzteil | W20: =ROUNDDOWN(F26/4.2,0) -> 0
B21: 100114 | C21: =Calculation!B408 -> Air Base Extension | D21: =Products!B24 -> 0 | E21: =Calculation!D408 -> 0.006 | F21: 0
B22: 100124 | C22: =Calculation!B409 -> Modbus Extension | D22: =Products!B28 -> 0 | E22: =Calculation!D409 -> 0.03 | F22: 0
B23: 100158 | C23: =Calculation!B410 -> not available in this country | D23: =Products!B40 -> 0 | E23: =Calculation!D410 -> 0.03 | F23: 0
B24: =Products!C150 -> 100218 | C24: =Calculation!B411 -> Tree Extension | D24: =Products!B150 -> 0 | E24: =Products!O150 -> 0.0048 | F24: 0
B25: =Products!C160 -> 100200 | C25: =Products!D160 -> Dali Extension | D25: =Products!B160 -> 0 | E25: 0.134 | F25: 0
E26: =VLOOKUP(Main!C2,Translating_general!A29:P46,12,FALSE) -> Total | F26: =SUM(F11:O25) -> 0
B28: 100116 | C28: =Calculation!B416 -> Multi Extension Air | E28: =VLOOKUP(Main!C2,Translating_general!A29:P46,15,FALSE) -> 0,4 Ampere Power Supply / item | V28: 0,4A Netzteil | W28: =D28 -> 
B31: =VLOOKUP(Main!C2,Translating_general!A29:P46,13,FALSE) -> LED | X31: =VLOOKUP(Main!C2,Translating_general!A29:P46,13,FALSE) -> LED
B32: =VLOOKUP(Main!C2,Translating_general!A29:P46,5,FALSE) -> Item number | C32: =VLOOKUP(Main!C2,Translating_general!A29:P46,6,FALSE) -> Products | D32: =VLOOKUP(Main!C2,Translating_general!A29:P46,7,FALSE) -> Quantity | E32: =VLOOKUP(Main!C2,Translating_general!A29:P46,8,FALSE) -> Ampere/item | F32: =VLOOKUP(Main!C2,Translating_general!A29:P46,9,FALSE) -> Total | X32: =VLOOKUP(Main!C2,Translating_general!A29:P46,10,FALSE) -> Ampere available | Y32: =W34*4.2+W35*10 -> 0
B33: 200042 | C33: =Calculation!B418 -> RGB LED Strip 5m | D33: =Products!B73 -> 0 | E33: =Calculation!D418 -> 3 | F33: =D33*E33 -> 0 | X33: =VLOOKUP(Main!C2,Translating_general!A29:P46,11,FALSE) -> Ampere needed | Y33: =F49 -> 0
B34: 200043 | C34: =Calculation!B419 -> Warm White LED Strip 5m | D34: =Products!B74 -> 0 | E34: =Calculation!D419 -> 3 | F34: 0 | V34: 4,2A Netzteil | W34: =IF((F49-W35*10)<10,ROUNDUP((F49-W35*10)/4.2,0),0) -> 0
B35: 200046 | C35: =Calculation!B421 -> RGB LED Strip 5m IP68 | D35: =Products!B75 -> 0 | E35: =Calculation!D421 -> 3 | F35: 0 | V35: 10A Netzteil | W35: =ROUNDDOWN(F49/10,0) -> 0
B36: 200061 | C36: =Calculation!B422 -> Warm White LED Strip 5m IP65 | D36: =Products!B82 -> 0 | E36: =Calculation!D422 -> 3 | F36: 0
B37: 200092 | C37: =Calculation!B423 -> Warm White LED Strip 5m IP68 | D37: =Products!B93 -> 0 | E37: =Calculation!D423 -> 3 | F37: 0
B38: 200098 | C38: =Calculation!B424 -> RGBW LED Strip 5m IP20 | D38: =Products!B98 -> 0 | E38: =Calculation!D424 -> 3.6 | F38: 0
B39: 200099 | C39: =Calculation!B425 -> RGBW LED Strip 5m IP65 | D39: =Products!B99 -> 0 | E39: =Calculation!D425 -> 3.6 | F39: 0
B40: 200100 | C40: =Calculation!B426 -> RGBW LED Strip 5m IP68 | D40: =Products!B100 -> 0 | E40: =Calculation!D426 -> 3.6 | F40: 0
B41: 100204 | C41: =Calculation!B427 -> LED Spot RGBW | D41: =Products!B147 -> 0 | E41: =Calculation!D427 -> 0.2 | F41: 0
B42: 100203 | C42: =Calculation!B428 -> LED Spot Warm White | D42: =Products!B148 -> 0 | E42: =Calculation!D428 -> 0.2 | F42: 0
B43: =Products!C180 -> 100235 | C43: =Light!B23 -> LED Ceiling Spot RGBW | D43: =Products!B180 -> 0 | E43: =Calculation!D429 -> 0.392 | F43: 0
B44: =Products!C181 -> 100236 | C44: =Light!B24 -> LED Ceiling Spot WW | D44: =Products!B181 -> 0 | E44: =Calculation!D430 -> 0.392 | F44: 0
B45: =Products!C182 -> 100237 | C45: =Light!B25 -> LED Ceiling Spot Tree RGBW | D45: =Products!B182 -> 0 | E45: =Calculation!D431 -> 0.392 | F45: 0
B46: =Products!C183 -> 100238 | C46: =Light!B26 -> LED Ceiling Spot Tree WW | D46: =Products!B183 -> 0 | E46: =Calculation!D432 -> 0.392 | F46: 0
B47: =Products!C184 -> 100268 | C47: =Light!B27 -> LED Spot Tree WW | D47: =Products!B184 -> 0 | E47: =Calculation!D433 -> 0.23 | F47: 0
B48: =Products!C185 -> 100269 | C48: =Light!B28 -> LED Spot Tree RGBW | D48: =Products!B185 -> 0 | E48: =Calculation!D434 -> 0.23 | F48: 0
E49: =VLOOKUP(Main!C2,Translating_general!A29:P46,12,FALSE) -> Total | F49: =SUM(F33:F48) -> 0
B51: =VLOOKUP(Main!C2,Translating_general!A29:P46,14,FALSE) -> Periphery | X51: =VLOOKUP(Main!C2,Translating_general!A29:P46,14,FALSE) -> Periphery
B52: =VLOOKUP(Main!C2,Translating_general!A29:P46,5,FALSE) -> Item number | C52: =VLOOKUP(Main!C2,Translating_general!A29:P46,6,FALSE) -> Products | D52: =VLOOKUP(Main!C2,Translating_general!A29:P46,7,FALSE) -> Quantity | E52: =VLOOKUP(Main!C2,Translating_general!A29:P46,8,FALSE) -> Ampere/item | F52: =VLOOKUP(Main!C2,Translating_general!A29:P46,9,FALSE) -> Total | X52: =VLOOKUP(Main!C2,Translating_general!A29:P46,10,FALSE) -> Ampere available | Y52: =W55*1.3+W56*4.2+W57*10 -> 0
B53: 200003 | C53: =Calculation!B437 -> Outside Temperature Sensor 0-10V | D53: =Products!B57 -> 0 | E53: =Calculation!D437 -> 0.005 | F53: =D53*E53 -> 0 | X53: =VLOOKUP(Main!C2,Translating_general!A29:P46,11,FALSE) -> Ampere needed | Y53: =F73 -> 0
B54: 200004 | C54: =Calculation!B438 -> No longer sold | D54: =Products!B58 -> 0 | E54: =Calculation!D438 -> 0.042 | F54: 0
B55: 200006 | C55: =Calculation!B439 -> Indoor Temperature Sensor 0-10V | D55: =Products!B60 -> 0 | E55: =Calculation!D439 -> 0.005 | F55: 0 | V55: 1,3A Netzteil | W55: =IF(F73>(W57*10+W56*4.2),ROUNDUP((F73-W57*10-W56*4.2)/1.3,0),0) -> 0
B56: 200010 | C56: =Calculation!B440 -> Indoor Temperature & Humidity Sensor 0-10V | D56: =Products!B62 -> 0 | E56: =Calculation!D440 -> 0.005 | F56: 0 | V56: 4,2A Netzteil | W56: =IF((F73-W57*10)<1.3,0,IF((F73>W57*10),ROUNDUP((F73-W57*10)/4.2,0),0)) -> 0
B57: 200017 | C57: =Calculation!B441 -> Indoor Temperature, Humidty & CO2 Sensor 0-10V | D57: =Products!B65 -> 0 | E57: =Calculation!D441 -> 0.01 | F57: 0 | V57: 10A Netzteil | W57: =ROUNDDOWN(F73/10,0) -> 0
B58: 200018 | C58: =Calculation!B442 -> Rain Sensor (24V) | D58: =Products!B66 -> 0 | E58: =Calculation!D442 -> 0.06 | F58: 0
B59: 200031 | C59: =Calculation!B443 -> Outdoor Temperature & Humidy Sensor 0-10V | D59: =Products!B67 -> 0 | E59: =Calculation!D443 -> 0.005 | F59: 0
B60: 200032 | C60: =Calculation!B444 -> Brightness Sensor 0-10V | D60: =Products!B68 -> 0 | E60: =Calculation!D444 -> 0.005 | F60: 0
B61: 200054 | C61: =Calculation!B446 -> Ultrasonic Sensor 0-10V | D61: =Products!B79 -> 0 | E61: =Calculation!D446 -> 0.06 | F61: 0
B62: 200112 | C62: =Calculation!B447 -> Outside Motion Sensor (24V) | D62: =Products!B105 -> 0 | E62: =Calculation!D447 -> 0.015 | F62: 0
B63: 200136 | C63: =Calculation!B448 -> Temperature & Humidity Sensor For Saunas | D63: =Products!B109 -> 0 | E63: =Calculation!D448 -> 0.005 | F63: 0
B64: 200154 | C64: =Calculation!B449 -> Pressure Sensor 0-10V | D64: =Products!B115 -> 0 | E64: =Calculation!D449 -> 0.01 | F64: 0
B65: 100221 | C65: =Calculation!B450 -> Touch Tree White | D65: =Products!B151 -> 0 | E65: =Products!O151 -> 0.0048 | F65: 0
B66: 100222 | C66: =Calculation!B451 -> Touch Tree Black | D66: =Products!B152 -> 0 | E66: =Products!O152 -> 0.0048 | F66: 0
B67: 100223 | C67: =Calculation!B452 -> Motion Sensor Tree White | D67: =Products!B153 -> 0 | E67: =Products!O153 -> 0.0048 | F67: 0
B68: =Products!C164 -> 100219 | C68: =Calculation!B455 -> Touch pure Tree White | D68: =Products!B164 -> 0 | E68: 0.0048 | F68: 0
B69: =Products!C154 -> 100225 | C69: =Products!D154 -> Valve Actuator Tree | D69: =Products!B154 -> 0 | E69: 0.05 | F69: =Calculation!E456 -> 0
B70: =Products!C178 -> 100220 | C70: =Products!D178 -> Touch pure Tree Black | D70: =Products!B178 -> 0 | E70: 0.0048 | F70: =D70*E70 -> 0
E73: =VLOOKUP(Main!C2,Translating_general!A29:P46,12,FALSE) -> Total | F73: =SUM(F53:F70) -> 0
B75: Please note that the power calculation assumes you have everything centrally in one cabinet!
B76: You have to double check it for your project.

Sheet Sample Quote (hidden)

Sheet Project information (hidden)
M1: Cathegory/Rooms | N1: =Main!D3 ->  | O1: =Main!E3 ->  | P1: =Main!F3 ->  | Q1: =Main!G3 ->  | R1: =Main!H3 ->  | S1: =Main!I3 ->  | T1: =Main!J3 ->  | U1: =Main!K3 ->  | V1: =Main!L3 ->  | W1: =Main!M3 ->  | X1: =Main!N3 ->  | Y1: =Main!O3 ->  | Z1: =Main!P3 ->  | AA1: =Main!Q3 ->  | AB1: =Main!R3 ->  | AC1: =Main!S3 ->  | AD1: =Main!T3 ->  | AE1: =Main!U3 ->  | AF1: =Main!V3 ->  | AG1: =Main!W3 ->  | AH1: =Main!X3 ->  | AI1: =Main!Y3 ->  | AJ1: =Main!Z3 ->  | AK1: =Main!AA3 ->  | AL1: =Main!AB3 ->  | AM1: =Main!AC3 ->  | AN1: =Main!AD3 ->  | AO1: =Main!AE3 ->  | AP1: =Main!AF3 ->  | AQ1: =Main!AG3 ->  | AR1: =Main!AH3 ->  | AS1: =Main!AI3 ->  | AT1: =Main!AJ3 ->  | AU1: =Main!AK3 ->  | AV1: =Main!AL3 ->  | AW1: =Main!AM3 ->  | AX1: =Main!AN3 ->  | AY1: =Main!AO3 -> 
M2: Lighting
M3: Heating
M4: Shading
M5: Music
M6: Access
M14: =Products!D7 -> Miniserver
M15: =Products!D8 -> Extension
M16: =Products!D9 -> Rollup Banner English
M17: =Products!D10 -> Micro SD Card with firmware
M18: =Products!D11 -> RS485 Extension
M19: =Products!D12 -> DMX Extension
M20: =Products!D13 -> RS 232 Extension
M21: =Products!D14 -> 1-Wire Extension
M22: =Products!D15 -> not available in this country
M23: =Products!D16 -> No longer sold
M24: =Products!D17 -> Weather Service 1 Year
M25: =Products!D18 -> Weather Service 10 Year
M26: =Products!D19 -> Caller Service 1 Year
M27: =Products!D20 -> Caller Service 10 Years
M28: =Products!D21 -> Dimmer Extension
M29: =Products!D22 -> IR Set
M30: =Products!D23 -> Relay Extension
M31: =Products!D24 -> Air Base Extension
M32: =Products!D25 -> not available in this country
M33: =Products!D26 -> Multi Extension Air
M34: =Products!D27 -> RGBW 24V Dimmer DMX
M35: =Products!D28 -> Modbus Extension
M36: =Products!D29 -> RGBW 24V Dimmer Air
M37: =Products!D30 -> Miniserver Go
M38: =Products!D31 -> Remote Air
M39: =Products!D32 -> IR Control Air
M40: =Products!D33 -> Smoke Detector Air
M41: =Products!D34 -> Temperature & Humidity Sesnor Air
M42: =Products!D35 -> Loxone Tool Kit by Weidmüller
M43: =Products!D36 -> not available in this country
M44: =Products!D37 -> Nano IO Air
M45: =Products!D38 -> Loxone Touch for Nano White
M46: =Products!D39 -> Loxone Touch Air White
M47: =Products!D40 -> not available in this country
M48: =Products!D41 -> Valve Actuator Air
M49: =Products!D42 -> Loxone Music Server 4 Zone
M50: =Products!D43 -> Loxone Music Server 8 Zone
M51: =Products!D44 -> Loxone Music Server 12 Zone
M52: =Products!D45 -> Loxone Music Server 16 Zone
M53: =Products!D46 -> Loxone Music Server 20 Zone
M54: =Products!D47 -> not available in this country
M55: =Products!D48 -> AquaStar Air 1.5"
M56: =Products!D49 -> AquaStar Air 2"
M57: =Products!D50 -> Loxone Touch Air Anthracite
M58: =Products!D51 -> Loxone Touch for Nano Anthracite
M59: =Products!D52 -> not available in this country
M60: =Products!D53 -> not available in this country
M61: =Products!D54 -> not available in this country
M62: =Products!D55 -> 24V Power Supply (1.3A)
M63: =Products!D56 -> 24V Power Supply (4.2A)
M64: =Products!D57 -> Outside Temperature Sensor 0-10V
M65: =Products!D58 -> No longer sold
M66: =Products!D59 -> No longer sold
M67: =Products!D60 -> Indoor Temperature Sensor 0-10V
M68: =Products!D61 -> not available in this country
M69: =Products!D62 -> Indoor Temperature & Humidity Sensor 0-10V
M70: =Products!D63 -> Valve Adaptor VA80
M71: =Products!D64 -> not available in this country
M72: =Products!D65 -> Indoor Temperature, Humidty & CO2 Sensor 0-10V
M73: =Products!D66 -> Rain Sensor (24V)
M74: =Products!D67 -> Outdoor Temperature & Humidy Sensor 0-10V
M75: =Products!D68 -> Brightness Sensor 0-10V
M76: =Products!D69 -> Wind Sensor (24V)
M77: =Products!D70 -> Wind Sensor Mount
M78: =Products!D71 -> 24V Power Supply (10A)
M79: =Products!D72 -> Surface Mount Box - IP20
M80: =Products!D73 -> RGB LED Strip 5m
M81: =Products!D74 -> Warm White LED Strip 5m
M82: =Products!D75 -> RGB LED Strip 5m IP68
M83: =Products!D76 -> SMA Antenna 868 MHz
M84: =Products!D77 -> Coupling Relay
M85: =Products!D78 -> Loxone Sticker
M86: =Products!D79 -> Ultrasonic Sensor 0-10V
M87: =Products!D80 -> not available in this country
M88: =Products!D81 -> not available in this country
M89: =Products!D82 -> Warm White LED Strip 5m IP65
M90: =Products!D83 -> iButton Reader 1-Wire
M91: =Products!D84 -> iButton Electronic Key Fob
M92: =Products!D85 -> not available in this country
M93: =Products!D86 -> not available in this country
M94: =Products!D87 -> Temperature Probe 1-Wire
M95: =Products!D88 -> Fanshirt S
M96: =Products!D89 -> Fanshirt M
M97: =Products!D90 -> Fanshirt L
M98: =Products!D91 -> Fanshirt XL
M99: =Products!D92 -> Fanshirt XXL
M100: =Products!D93 -> Warm White LED Strip 5m IP68
M101: =Products!D94 -> Loxone Intercom
M102: =Products!D95 -> Flush-mounted box for the Loxone intercom
M103: =Products!D96 -> Surface Box for Loxone Intercom
M104: =Products!D97 -> Loxone Speaker
M105: =Products!D98 -> RGBW LED Strip 5m IP20
M106: =Products!D99 -> RGBW LED Strip 5m IP65
M107: =Products!D100 -> RGBW LED Strip 5m IP68
M108: =Products!D101 -> Water Sensor
M109: =Products!D102 -> not available in this country
M110: =Products!D103 -> Temperature Sensor Set 1-Wire
M111: =Products!D104 -> Loxone 12 Channel Amplifier
M112: =Products!D105 -> Outside Motion Sensor (24V)
M113: =Products!D106 -> Window & Door Contact
M114: =Products!D107 -> Loxone Cat 7 Cable (820ft)
M115: =Products!D108 -> not available in this country
M116: =Products!D109 -> Temperature & Humidity Sensor For Saunas
M117: =Products!D110 -> not available in this country
M118: =Products!D111 -> 24V Power Supply (0.4A)
M119: =Products!D112 -> Loxone Speaker Back Box
M120: =Products!D113 -> SMA Antenna 4dBi 868 MHz
M121: =Products!D114 -> Loxone Wall Speaker
M122: =Products!D115 -> Pressure Sensor 0-10V
M123: =Products!D116 -> Glass Break Sensor 24V
M124: =Products!D117 -> not available in this country
M125: =Products!D118 -> not available in this country
M126: =Products!D119 -> not available in this country
M127: =Products!D120 -> Push In Terminal Block 8x4 Interconnected (20 pcs)
M128: =Products!D121 -> Push In Terminal Block 8x4 Seperated (20pcs)
M129: =Products!D122 -> Partition for 8x4 Terminals (10pcs)
M130: =Products!D123 -> Label Holder 8 Levels (20 pcs)
M131: =Products!D124 -> End Plate for 8x4 Terminals (10 pcs)
M132: =Products!D125 -> Push In Terminal Block 3+Earth (50 pcs)
M133: =Products!D126 -> End Plate for 3+Earth Terminals (20 pcs)
M134: =Products!D127 -> Push In Terminal Block Twin+Earth (50 pcs)
M135: =Products!D128 -> End Plate for Twin+Earth Terminals (20 pcs)
M136: =Products!D129 -> End Bracket (20 pcs)
M137: =Products!D130 -> Push in Fused Terminal Block (25 pcs)
M138: =Products!D131 -> End Plate For Fused Terminals (50 pcs)
M139: =Products!D132 -> Cross Connector For Fused Terminals (10 pcs)
M140: =Products!D133 -> Blade Fuse 2A (100 pcs)
M141: =Products!D134 -> Blade Fuse 5A (100 pcs)
M142: =Products!D135 -> Blade Fuse 10A (100 pcs)
M143: =Products!D136 -> Loxone Brochure (25 pcs)
M144: =Products!D137 -> iButton Reader 1-Wire Outdoor
M145: =Products!D138 -> not available in this country
M146: =Products!D139 -> Loxone Speaker Back Box For Suspended Ceilings
M147: =Products!D140 -> LED Strip Accessories Set - RGBW
M148: =Products!D141 -> LED Strip Accessories Set - Warm White
M149: =Products!D142 -> Power Adapter 24V 6.25A
M150: =Products!D143 -> Loxone Music Server Upgrade
M151: =Products!D144 -> Loxone Intercom XL
M152: =Products!D145 -> Motion Sensor Air
M153: =Products!D146 -> NFC Smart Tags
M154: =Products!D147 -> LED Spot RGBW
M155: =Products!D148 -> LED Spot Warm White
M156: =Products!D149 -> not available in this country
M157: =Products!D150 -> Tree Extension
M158: =Products!D151 -> Touch Tree White
M159: =Products!D152 -> Touch Tree Black
M160: =Products!D153 -> Motion Sensor Tree White
M161: =Products!D154 -> Valve Actuator Tree
M162: =Products!D155 -> Water Sensor Air
M163: =Products!D156 -> Door & Window Contact Air Black
M164: =Products!D157 -> Door & Window Contact Air White
M165: =Products!D158 -> Motion Sensor Tree Black
M166: =Products!D159 -> Cross Connector for Mains Terminals (20 pcs)
M167: =Products!D160 -> Dali Extension
M168: =Products!D161 -> 24V LED Power Supply (2.5A)
M169: =Products!D162 -> Touch pure Air White
M170: =Products!D163 -> Touch pure for Nano White
M171: =Products!D164 -> Touch pure Tree White
M172: =Products!D165 -> not available in this country
M173: =Products!D166 -> not available in this country
M174: =Products!D167 -> Panel wire (328ft) blue/white
M175: =Products!D168 -> Panel wire (328ft) orange/white
M176: =Products!D169 -> Panel wire (328ft) green/white
M177: =Products!D170 -> not available in this country
M178: =Products!D171 -> not available in this country
M179: =Products!D172 -> not available in this country
M180: =Products!D173 -> not available in this country
M181: =Products!D174 -> not available in this country
M182: =Products!D175 -> Nano DI Tree
M183: =Products!D176 -> not available in this country
M184: =Products!D177 -> Touch pure Nano Black
M185: =Products!D178 -> Touch pure Tree Black
M186: =Products!D179 -> Touch pure Air Black
M187: =Products!D180 -> LED Ceiling Spot RGBW
M188: =Products!D181 -> LED Ceiling Spot WW
M189: =Products!D182 -> LED Ceiling Spot Tree RGBW
M190: =Products!D183 -> LED Ceiling Spot Tree WW
M191: =Products!D184 -> LED Spot Tree WW
M192: =Products!D185 -> LED Spot Tree RGBW
M193: =Products!D186 -> RGBW 24V Dimmer Tree
M194: =Products!D187 -> Window Handle Air

Sheet Space
B3: =VLOOKUP(Main!C2,Translating_general!A53:P70,2,FALSE) -> Required Space Calculator
B6: =VLOOKUP(Main!C2,Translating_general!A53:P70,3,FALSE) -> Item Numer | C6: =VLOOKUP(Main!C2,Translating_general!A53:P70,4,FALSE) -> Products | D6: =VLOOKUP(Main!C2,Translating_general!A53:P70,5,FALSE) -> Quantity | E6: =VLOOKUP(Main!C2,Translating_general!A53:P70,6,FALSE) -> Required Space | F6: =VLOOKUP(Main!C2,Translating_general!A53:P70,7,FALSE) -> Total
B7: 100001 | C7: =Calculation!B465 -> Miniserver | D7: =Products!B7 -> 0 | E7: =Calculation!D465 -> 155 | F7: =D7*E7 -> 0
B8: 100002 | C8: =Calculation!B466 -> Extension | D8: =Products!B8 -> 0 | E8: =Calculation!D466 -> 155 | F8: 0 | H8: =VLOOKUP(Main!C2,Translating_general!A53:P70,8,FALSE) -> Total Space
B9: 100011 | C9: =Calculation!B467 -> RS485 Extension | D9: =Products!B11 -> 0 | E9: =Calculation!D467 -> 34 | F9: 0 | H9: =VLOOKUP(Main!C2,Translating_general!A53:P70,9,FALSE) -> Required Space in mm | I9: =SUM(F7:F35) -> 0
B10: 100012 | C10: =Calculation!B468 -> DMX Extension | D10: =Products!B12 -> 0 | E10: =Calculation!D468 -> 34 | F10: 0 | H10: =VLOOKUP(Main!C2,Translating_general!A53:P70,10,FALSE) -> Required Space in splitting units | I10: =ROUNDUP(I9/17.2,0) -> 0
B11: 100013 | C11: =Calculation!B469 -> RS 232 Extension | D11: =Products!B13 -> 0 | E11: =Calculation!D469 -> 34 | F11: 0
B12: 100014 | C12: =Calculation!B470 -> 1-Wire Extension | D12: =Products!B14 -> 0 | E12: =Calculation!D470 -> 34 | F12: 0
B13: 100015 | C13: =Calculation!B471 -> not available in this country | D13: =Products!B15 -> 0 | E13: =Calculation!D471 -> 34 | F13: 0
B14: 100029 | C14: =Calculation!B472 -> Dimmer Extension | D14: =Products!B21 -> 0 | E14: =Calculation!D472 -> 155 | F14: 0
B15: 100035 | C15: =Calculation!B473 -> IR Set | D15: =Products!B22 -> 0 | E15: =Calculation!D473 -> 34 | F15: 0
B16: 100038 | C16: =Calculation!B474 -> Relay Extension | D16: =Products!B23 -> 0 | E16: =Calculation!D474 -> 155 | F16: 0
B17: 100114 | C17: =Calculation!B475 -> Air Base Extension | D17: =Products!B24 -> 0 | E17: =Calculation!D475 -> 34 | F17: 0
B18: 100124 | C18: =Calculation!B476 -> Modbus Extension | D18: =Products!B28 -> 0 | E18: =Calculation!D476 -> 34 | F18: 0
B19: 100158 | C19: =Calculation!B477 -> not available in this country | D19: =Products!B40 -> 0 | E19: =Calculation!D477 -> 35 | F19: 0
B20: 200049 | C20: =Calculation!B478 -> Coupling Relay | D20: =Products!B77 -> 0 | E20: =Calculation!D478 -> 17 | F20: 0
B21: 100117 | C21: =Calculation!B479 -> RGBW 24V Dimmer DMX | D21: =Products!B27 -> 0 | E21: =Calculation!D479 -> 34 | F21: 0
B22: 200001 | C22: =Calculation!B480 -> 24V Power Supply (1.3A) | D22: =Products!B55 -> 0 | E22: =Calculation!D480 -> 53 | F22: 0
B23: 200002 | C23: =Calculation!B481 -> 24V Power Supply (4.2A) | D23: =Products!B56 -> 0 | E23: =Calculation!D481 -> 90 | F23: 0
B24: 200035 | C24: =Calculation!B482 -> 24V Power Supply (10A) | D24: =Products!B71 -> 0 | E24: =Calculation!D482 -> 83 | F24: 0
B25: 200143 | C25: =Calculation!B483 -> 24V Power Supply (0.4A) | D25: =Products!B111 -> 0 | E25: =Calculation!D483 -> 18 | F25: 0
B26: 200156 | C26: =Calculation!B484 -> not available in this country | D26: =Products!B117 -> 0 | E26: =Calculation!D484 -> 17.5 | F26: 0
B27: 200157 | C27: =Calculation!B485 -> not available in this country | D27: =Products!B118 -> 0 | E27: =Calculation!D485 -> 70 | F27: 0
B28: 200168 | C28: =Calculation!B486 -> Push In Terminal Block 8x4 Interconnected (20 pcs) | D28: =Products!B120 -> 0 | E28: =Calculation!D486 -> 120 | F28: 0
B29: 200169 | C29: =Calculation!B487 -> Push In Terminal Block 8x4 Seperated (20pcs) | D29: =Products!B121 -> 0 | E29: =Calculation!D487 -> 120 | F29: 0
B30: 200173 | C30: =Calculation!B488 -> Push In Terminal Block 3+Earth (50 pcs) | D30: =Products!B125 -> 0 | E30: =Calculation!D488 -> 104 | F30: 0
B31: 200175 | C31: =Calculation!B489 -> Push In Terminal Block Twin+Earth (50 pcs) | D31: =Products!B127 -> 0 | E31: =Calculation!D489 -> 100 | F31: 0
B32: 200178 | C32: =Calculation!B490 -> Push in Fused Terminal Block (25 pcs) | D32: =Products!B130 -> 0 | E32: =Calculation!D490 -> 70 | F32: 0
B33: =Products!C160 -> 100200 | C33: =Calculation!B492 -> Dali Extension | D33: =Products!B160 -> 0 | E33: =Calculation!D492 -> 34 | F33: 0
B34: =Products!C150 -> 100218 | C34: =Calculation!B491 -> Tree Extension | D34: =Products!B150 -> 0 | E34: =Calculation!D491 -> 34 | F34: 0
B35: =Products!C186 -> 100239 | C35: =Calculation!B493 -> RGBW 24V Dimmer Tree | D35: =Products!B186 -> 0 | E35: =Calculation!D493 -> 34 | F35: 0

Sheet Products
B3: =VLOOKUP(Main!C2,Translating_general!A77:AF94,2,FALSE) -> Parts List
B6: =VLOOKUP(Main!C2,Translating_general!A77:AF94,3,FALSE) -> Quantity | C6: =VLOOKUP(Main!C2,Translating_general!A77:AF94,4,FALSE) -> Nr. | D6: =VLOOKUP(Main!C2,Translating_general!A77:AF94,5,FALSE) -> Description | E6: =VLOOKUP(Main!C2,Translating_general!A77:AF94,6,FALSE) -> Unit Net | F6: =VLOOKUP(Main!C2,Translating_general!A77:AF94,7,FALSE) -> Unit Gross | G6: =VLOOKUP(Main!C2,Translating_general!A77:AF94,8,FALSE) -> Total | I6: Kategorie | J6: AI (Eingang) | K6: DI (Eingang) | L6: AO (Ausgang) | M6: DO (Ausgang) | N6: Kanäle | O6: Ampere gesamt pro Produkt | P6: Watt gesamt pro Produkt
B7: =Calculation!C5+Calculation!C46+Calculation!C380 -> 0 | C7: =HLOOKUP(Main!$C$2,Translating_products!$CN$4:$DD$216,Translating_products!CM5, FALSE) -> 100001 | D7: =HLOOKUP(Main!$C$2,Translating_products!$DI$4:$DY$216,Translating_products!CM5, FALSE) -> Miniserver | E7: =IF(ISBLANK($Q$1),HLOOKUP(Main!$C$2,Translating_products!$EE$4:$EU$216,Translating_products!CM5,FALSE),HLOOKUP($Q$1,Translating_products!$EE$4:$EU$216,Translating_products!CM5,FALSE)) -> 549 | F7: =E7*(1+$E$191*0.01) -> 549 | G7: =B7*F7 -> 0 | H7: =SUM(G7:G137) -> 0 | I7: Extension | J7: 4 | K7: 8 | L7: 4 | M7: 8 | O7: =0.12*B7 -> 0 | Q7: =IF(ISBLANK($Q$1),VLOOKUP(Main!C2,Translating_general!A77:AG94,33,FALSE),VLOOKUP($Q$1,Translating_general!A77:AG94,33,FALSE)) -> $
B8: =Calculation!C381+Calculation!C27+Calculation!C34 -> 0 | C8: =HLOOKUP(Main!$C$2,Translating_products!$CN$4:$DD$216,Translating_products!CM6, FALSE) -> 100002 | D8: =HLOOKUP(Main!$C$2,Translating_products!$DI$4:$DY$216,Translating_products!CM6, FALSE) -> Extension | E8: =IF(ISBLANK($Q$1),HLOOKUP(Main!$C$2,Translating_products!$EE$4:$EU$216,Translating_products!CM6,FALSE),HLOOKUP($Q$1,Translating_products!$EE$4:$EU$216,Translating_products!CM6,FALSE)) -> 449 | F8: 449 | G8: 0 | H8: =IF(B7:B137>0,1,0) -> 0 | I8: Extension | J8: 4 | K8: 12 | L8: 4 | M8: 8 | O8: =B8*0.06 -> 0 | Q8: =$Q$7 -> $
B9: =Calculation!C326 -> 0 | C9: =HLOOKUP(Main!$C$2,Translating_products!$CN$4:$DD$216,Translating_products!CM7, FALSE) -> 100005 | D9: =HLOOKUP(Main!$C$2,Translating_products!$DI$4:$DY$216,Translating_products!CM7, FALSE) -> Rollup Banner English | E9: =IF(ISBLANK($Q$1),HLOOKUP(Main!$C$2,Translating_products!$EE$4:$EU$216,Translating_products!CM7,FALSE),HLOOKUP($Q$1,Translating_products!$EE$4:$EU$216,Translating_products!CM7,FALSE)) -> 119 | F9: 119 | G9: 0 | I9: Sonstiges | O9: nix | Q9: $
B10: =Calculation!C281 -> 0 | C10: =HLOOKUP(Main!$C$2,Translating_products!$CN$4:$DD$216,Translating_products!CM8, FALSE) -> 100008 | D10: =HLOOKUP(Main!$C$2,Translating_products!$DI$4:$DY$216,Translating_products!CM8, FALSE) -> Micro SD Card with firmware | E10: =IF(ISBLANK($Q$1),HLOOKUP(Main!$C$2,Translating_products!$EE$4:$EU$216,Translating_products!CM8,FALSE),HLOOKUP($Q$1,Translating_products!$EE$4:$EU$216,Translating_products!CM8,FALSE)) -> 14 | F10: 14 | G10: 0 | I10: Sonstiges | O10: nix | Q10: $
B11: =Calculation!C282+Calculation!C382 -> 0 | C11: =HLOOKUP(Main!$C$2,Translating_products!$CN$4:$DD$216,Translating_products!CM9, FALSE) -> 100011 | D11: =HLOOKUP(Main!$C$2,Translating_products!$DI$4:$DY$216,Translating_products!CM9, FALSE) -> RS485 Extension | E11: =IF(ISBLANK($Q$1),HLOOKUP(Main!$C$2,Translating_products!$EE$4:$EU$216,Translating_products!CM9,FALSE),HLOOKUP($Q$1,Translating_products!$EE$4:$EU$216,Translating_products!CM9,FALSE)) -> 199 | F11: 199 | G11: 0 | H11: Sonstiges wird einfach ausgewählt | I11: Sonstiges/Extension | O11: =B11*0.03 -> 0 | Q11: $
B12: =Calculation!C76+Calculation!C383+Calculation!E512 -> 0 | C12: =HLOOKUP(Main!$C$2,Translating_products!$CN$4:$DD$216,Translating_products!CM10, FALSE) -> 100012 | D12: =HLOOKUP(Main!$C$2,Translating_products!$DI$4:$DY$216,Translating_products!CM10, FALSE) -> DMX Extension | E12: =IF(ISBLANK($Q$1),HLOOKUP(Main!$C$2,Translating_products!$EE$4:$EU$216,Translating_products!CM10,FALSE),HLOOKUP($Q$1,Translating_products!$EE$4:$EU$216,Translating_products!CM10,FALSE)) -> 299 | F12: 299 | G12: 0 | I12: Licht/Extension | N12: 128 | O12: 0.03 | Q12: $
B13: =Calculation!C283+Calculation!C384 -> 0 | C13: =HLOOKUP(Main!$C$2,Translating_products!$CN$4:$DD$216,Translating_products!CM11, FALSE) -> 100013 | D13: =HLOOKUP(Main!$C$2,Translating_products!$DI$4:$DY$216,Translating_products!CM11, FALSE) -> RS 232 Extension | E13: =IF(ISBLANK($Q$1),HLOOKUP(Main!$C$2,Translating_products!$EE$4:$EU$216,Translating_products!CM11,FALSE),HLOOKUP($Q$1,Translating_products!$EE$4:$EU$216,Translating_products!CM11,FALSE)) -> 199 | F13: 199 | G13: 0 | H13: Sonstiges wird einfach ausgewählt | I13: Sonstiges/Extension | O13: =0.03*B13 -> 0 | Q13: $
B14: =Calculation!C12+Calculation!C39+Calculation!C385+Calculation!G157 -> 0 | C14: =HLOOKUP(Main!$C$2,Translating_products!$CN$4:$DD$216,Translating_products!CM12, FALSE) -> 100014 | D14: =HLOOKUP(Main!$C$2,Translating_products!$DI$4:$DY$216,Translating_products!CM12, FALSE) -> 1-Wire Extension | E14: =IF(ISBLANK($Q$1),HLOOKUP(Main!$C$2,Translating_products!$EE$4:$EU$216,Translating_products!CM12,FALSE),HLOOKUP($Q$1,Translating_products!$EE$4:$EU$216,Translating_products!CM12,FALSE)) -> 199 | F14: 199 | G14: 0 | H14: Temparaturfühler & iButton; 20 Fühler möglich, Lesegerät für Zutritt 1x Fühler benötigt | I14: Extension | N14: 20 | O14: 0 | Q14: $
B15: =Calculation!C41+Calculation!C284+Calculation!C386 -> 0 | C15: =HLOOKUP(Main!$C$2,Translating_products!$CN$4:$DD$216,Translating_products!CM13, FALSE) -> not available in this country | D15: =HLOOKUP(Main!$C$2,Translating_products!$DI$4:$DY$216,Translating_products!CM13, FALSE) -> not available in this country | E15: =IF(ISBLANK($Q$1),HLOOKUP(Main!$C$2,Translating_products!$EE$4:$EU$216,Translating_products!CM13,FALSE),HLOOKUP($Q$1,Translating_products!$EE$4:$EU$216,Translating_products!CM13,FALSE)) -> 0 | F15: 0 | G15: 0 | H15: Sonstiges wird einfach ausgewählt | I15: Sonstiges/Extension | N15: 128 | O15: 0 | Q15: $
B16: =Calculation!C285 -> 0 | C16: =HLOOKUP(Main!$C$2,Translating_products!$CN$4:$DD$216,Translating_products!CM14, FALSE) -> No longer sold | D16: =HLOOKUP(Main!$C$2,Translating_products!$DI$4:$DY$216,Translating_products!CM14, FALSE) -> No longer sold | E16: =IF(ISBLANK($Q$1),HLOOKUP(Main!$C$2,Translating_products!$EE$4:$EU$216,Translating_products!CM14,FALSE),HLOOKUP($Q$1,Translating_products!$EE$4:$EU$216,Translating_products!CM14,FALSE)) -> 0 | F16: 0 | G16: 0 | I16: Sonstiges | O16: nix | Q16: $
B17: =Calculation!C286 -> 0 | C17: =HLOOKUP(Main!$C$2,Translating_products!$CN$4:$DD$216,Translating_products!CM15, FALSE) -> 100025 | D17: =HLOOKUP(Main!$C$2,Translating_products!$DI$4:$DY$216,Translating_products!CM15, FALSE) -> Weather Service 1 Year | E17: =IF(ISBLANK($Q$1),HLOOKUP(Main!$C$2,Translating_products!$EE$4:$EU$216,Translating_products!CM15,FALSE),HLOOKUP($Q$1,Translating_products!$EE$4:$EU$216,Translating_products!CM15,FALSE)) -> 69 | F17: 69 | G17: 0 | H17: Sonstiges | I17: Sonstiges | O17: nix | Q17: $
B18: =Calculation!C287 -> 0 | C18: =HLOOKUP(Main!$C$2,Translating_products!$CN$4:$DD$216,Translating_products!CM16, FALSE) -> 100201 | D18: =HLOOKUP(Main!$C$2,Translating_products!$DI$4:$DY$216,Translating_products!CM16, FALSE) -> Weather Service 10 Year | E18: =IF(ISBLANK($Q$1),HLOOKUP(Main!$C$2,Translating_products!$EE$4:$EU$216,Translating_products!CM16,FALSE),HLOOKUP($Q$1,Translating_products!$EE$4:$EU$216,Translating_products!CM16,FALSE)) -> 325 | F18: 325 | G18: 0 | H18: Sonstiges | I18: Sonstiges | O18: nix | Q18: $
B19: =Calculation!C288 -> 0 | C19: =HLOOKUP(Main!$C$2,Translating_products!$CN$4:$DD$216,Translating_products!CM17, FALSE) -> 100027 | D19: =HLOOKUP(Main!$C$2,Translating_products!$DI$4:$DY$216,Translating_products!CM17, FALSE) -> Caller Service 1 Year | E19: =IF(ISBLANK($Q$1),HLOOKUP(Main!$C$2,Translating_products!$EE$4:$EU$216,Translating_products!CM17,FALSE),HLOOKUP($Q$1,Translating_products!$EE$4:$EU$216,Translating_products!CM17,FALSE)) -> 69 | F19: 69 | G19: 0 | H19: Sonstiges | I19: Sonstiges | O19: nix | Q19: $
B20: =Calculation!C289 -> 0 | C20: =HLOOKUP(Main!$C$2,Translating_products!$CN$4:$DD$216,Translating_products!CM18, FALSE) -> 100028 | D20: =HLOOKUP(Main!$C$2,Translating_products!$DI$4:$DY$216,Translating_products!CM18, FALSE) -> Caller Service 10 Years | E20: =IF(ISBLANK($Q$1),HLOOKUP(Main!$C$2,Translating_products!$EE$4:$EU$216,Translating_products!CM18,FALSE),HLOOKUP($Q$1,Translating_products!$EE$4:$EU$216,Translating_products!CM18,FALSE)) -> 325 | F20: 325 | G20: 0 | H20: Sonstiges | I20: Sonstiges | O20: nix | Q20: $
B21: =Calculation!C388+Calculation!C77 -> 0 | C21: =HLOOKUP(Main!$C$2,Translating_products!$CN$4:$DD$216,Translating_products!CM19, FALSE) -> 100029 | D21: =HLOOKUP(Main!$C$2,Translating_products!$DI$4:$DY$216,Translating_products!CM19, FALSE) -> Dimmer Extension | E21: =IF(ISBLANK($Q$1),HLOOKUP(Main!$C$2,Translating_products!$EE$4:$EU$216,Translating_products!CM19,FALSE),HLOOKUP($Q$1,Translating_products!$EE$4:$EU$216,Translating_products!CM19,FALSE)) -> 499 | F21: 499 | G21: 0 | H21: Kein Netzteil 230V Dimmkanal (4 Dimmkanäle = 4 Kanäle) | I21: Licht/Extension | K21: 8 | L21: 4 | O21: =B21*0.06 -> 0 | Q21: $
B22: =Calculation!C290 -> 0 | C22: =HLOOKUP(Main!$C$2,Translating_products!$CN$4:$DD$216,Translating_products!CM20, FALSE) -> 100035 | D22: =HLOOKUP(Main!$C$2,Translating_products!$DI$4:$DY$216,Translating_products!CM20, FALSE) -> IR Set | E22: =IF(ISBLANK($Q$1),HLOOKUP(Main!$C$2,Translating_products!$EE$4:$EU$216,Translating_products!CM20,FALSE),HLOOKUP($Q$1,Translating_products!$EE$4:$EU$216,Translating_products!CM20,FALSE)) -> 229 | F22: 229 | G22: 0 | I22: Sonstiges | O22: 0.03 | Q22: $
B23: =Calculation!C389+Calculation!C37 -> 0 | C23: =HLOOKUP(Main!$C$2,Translating_products!$CN$4:$DD$216,Translating_products!CM21, FALSE) -> 100038 | D23: =HLOOKUP(Main!$C$2,Translating_products!$DI$4:$DY$216,Translating_products!CM21, FALSE) -> Relay Extension | E23: =IF(ISBLANK($Q$1),HLOOKUP(Main!$C$2,Translating_products!$EE$4:$EU$216,Translating_products!CM21,FALSE),HLOOKUP($Q$1,Translating_products!$EE$4:$EU$216,Translating_products!CM21,FALSE)) -> 539 | F23: 539 | G23: 0 | I23: Extension | M23: 14 | O23: =0.3*B23 -> 0 | Q23: $
B24: =Calculation!C221+Calculation!C390+Calculation!C43 -> 0 | C24: =HLOOKUP(Main!$C$2,Translating_products!$CN$4:$DD$216,Translating_products!CM22, FALSE) -> 100114 | D24: =HLOOKUP(Main!$C$2,Translating_products!$DI$4:$DY$216,Translating_products!CM22, FALSE) -> Air Base Extension | E24: =IF(ISBLANK($Q$1),HLOOKUP(Main!$C$2,Translating_products!$EE$4:$EU$216,Translating_products!CM22,FALSE),HLOOKUP($Q$1,Translating_products!$EE$4:$EU$216,Translating_products!CM22,FALSE)) -> 113 | F24: 113 | G24: 0 | H24: 128 Sockets/Geräte gelernt werden | I24: Air/Extension | N24: 128 | O24: 0.006 | Q24: $
B25: =Calculation!C222 -> 0 | C25: =IF(ISBLANK($Q$1), HLOOKUP(Main!$C$2,Translating_products!$CN$4:$DD$216,Translating_products!CM23,FALSE),HLOOKUP($Q$1,Translating_products!$CN$4:$DD$216,Translating_products!CM23,FALSE)) -> not available in this country | D25: =IF(ISBLANK($Q$1),HLOOKUP(Main!$C$2,Translating_products!$DI$4:$DY$216,Translating_products!CM23, FALSE), HLOOKUP($Q$1,Translating_products!$DI$4:$DY$216,Translating_products!CM23, FALSE)) -> not available in this country | E25: =IF(ISBLANK($Q$1),HLOOKUP(Main!$C$2,Translating_products!$EE$4:$EU$216,Translating_products!CM23,FALSE),HLOOKUP($Q$1,Translating_products!$EE$4:$EU$216,Translating_products!CM23,FALSE)) -> 0 | F25: 0 | G25: 0 | H25: belegt 1 Kanal auf AirBaseExtension | I25: Air | N25: 1 | O25: nix | Q25: $
B26: =Calculation!C223+Calculation!C391 -> 0 | C26: =HLOOKUP(Main!$C$2,Translating_products!$CN$4:$DD$216,Translating_products!CM24, FALSE) -> 100116 | D26: =HLOOKUP(Main!$C$2,Translating_products!$DI$4:$DY$216,Translating_products!CM24, FALSE) -> Multi Extension Air | E26: =IF(ISBLANK($Q$1),HLOOKUP(Main!$C$2,Translating_products!$EE$4:$EU$216,Translating_products!CM24,FALSE),HLOOKUP($Q$1,Translating_products!$EE$4:$EU$216,Translating_products!CM24,FALSE)) -> 539 | F26: 539 | G26: 0 | H26: Stück-Auswahl | I26: Air/Extension | K26: 12 | M26: 8 | N26: 20 | O26: 0,4 A Netzt. Pro Ext. | Q26: $
B27: =Calculation!C78 -> 0 | C27: =HLOOKUP(Main!$C$2,Translating_products!$CN$4:$DD$216,Translating_products!CM25, FALSE) -> 100117 | D27: =HLOOKUP(Main!$C$2,Translating_products!$DI$4:$DY$216,Translating_products!CM25, FALSE) -> RGBW 24V Dimmer DMX | E27: =IF(ISBLANK($Q$1),HLOOKUP(Main!$C$2,Translating_products!$EE$4:$EU$216,Translating_products!CM25,FALSE),HLOOKUP($Q$1,Translating_products!$EE$4:$EU$216,Translating_products!CM25,FALSE)) -> 82 | F27: 82 | G27: 0 | H27: belegt 4Kanäle auf DMX Extension | I27: Licht | N27: 4 | O27: nix | Q27: $
B28: =Calculation!C387 -> 0 | C28: =HLOOKUP(Main!$C$2,Translating_products!$CN$4:$DD$216,Translating_products!CM26, FALSE) -> 100124 | D28: =HLOOKUP(Main!$C$2,Translating_products!$DI$4:$DY$216,Translating_products!CM26, FALSE) -> Modbus Extension | E28: =IF(ISBLANK($Q$1),HLOOKUP(Main!$C$2,Translating_products!$EE$4:$EU$216,Translating_products!CM26,FALSE),HLOOKUP($Q$1,Translating_products!$EE$4:$EU$216,Translating_products!CM26,FALSE)) -> 255 | F28: 255 | G28: 0 | H28: Sonstiges-Auswählen | I28: Sonstiges | O28: =B28*0.03 -> 0 | Q28: $
B29: =Calculation!C79 -> 0 | C29: =HLOOKUP(Main!$C$2,Translating_products!$CN$4:$DD$216,Translating_products!CM27, FALSE) -> 100125 | D29: =HLOOKUP(Main!$C$2,Translating_products!$DI$4:$DY$216,Translating_products!CM27, FALSE) -> RGBW 24V Dimmer Air | E29: =IF(ISBLANK($Q$1),HLOOKUP(Main!$C$2,Translating_products!$EE$4:$EU$216,Translating_products!CM27,FALSE),HLOOKUP($Q$1,Translating_products!$EE$4:$EU$216,Translating_products!CM27,FALSE)) -> 96 | F29: 96 | G29: 0 | H29: belegt 1 Kanal auf AirbaseExtension | I29: Licht | N29: 1 | O29: nix | Q29: $
B30: =Calculation!C224+Calculation!C392+Calculation!C6 -> 0 | C30: =HLOOKUP(Main!$C$2,Translating_products!$CN$4:$DD$216,Translating_products!CM28, FALSE) -> 100139 | D30: =HLOOKUP(Main!$C$2,Translating_products!$DI$4:$DY$216,Translating_products!CM28, FALSE) -> Miniserver Go | E30: =IF(ISBLANK($Q$1),HLOOKUP(Main!$C$2,Translating_products!$EE$4:$EU$216,Translating_products!CM28,FALSE),HLOOKUP($Q$1,Translating_products!$EE$4:$EU$216,Translating_products!CM28,FALSE)) -> 349 | F30: 349 | G30: 0 | H30: wird ausgewählt (für Nachrüster) | I30: Air/Extension | N30: 128 | O30: nix | Q30: $
B31: =Calculation!C225 -> 0 | C31: =HLOOKUP(Main!$C$2,Translating_products!$CN$4:$DD$216,Translating_products!CM29, FALSE) -> 100140 | D31: =HLOOKUP(Main!$C$2,Translating_products!$DI$4:$DY$216,Translating_products!CM29, FALSE) -> Remote Air | E31: =IF(ISBLANK($Q$1),HLOOKUP(Main!$C$2,Translating_products!$EE$4:$EU$216,Translating_products!CM29,FALSE),HLOOKUP($Q$1,Translating_products!$EE$4:$EU$216,Translating_products!CM29,FALSE)) -> 55.5 | F31: 55.5 | G31: 0 | H31: belegt 1 Kanal auf MsGo oder Extension | I31: Air | N31: 1 | O31: nix | Q31: $
B32: =Calculation!C226 -> 0 | C32: =HLOOKUP(Main!$C$2,Translating_products!$CN$4:$DD$216,Translating_products!CM30, FALSE) -> 100141 | D32: =HLOOKUP(Main!$C$2,Translating_products!$DI$4:$DY$216,Translating_products!CM30, FALSE) -> IR Control Air | E32: =IF(ISBLANK($Q$1),HLOOKUP(Main!$C$2,Translating_products!$EE$4:$EU$216,Translating_products!CM30,FALSE),HLOOKUP($Q$1,Translating_products!$EE$4:$EU$216,Translating_products!CM30,FALSE)) -> 124.9 | F32: 124.9 | G32: 0 | H32: belegt 1 Kanal auf MsGo oder Extension | I32: Air | N32: 1 | O32: nix | Q32: $
B33: =Calculation!C227 -> 0 | C33: =HLOOKUP(Main!$C$2,Translating_products!$CN$4:$DD$216,Translating_products!CM31, FALSE) -> 100142 | D33: =HLOOKUP(Main!$C$2,Translating_products!$DI$4:$DY$216,Translating_products!CM31, FALSE) -> Smoke Detector Air | E33: =IF(ISBLANK($Q$1),HLOOKUP(Main!$C$2,Translating_products!$EE$4:$EU$216,Translating_products!CM31,FALSE),HLOOKUP($Q$1,Translating_products!$EE$4:$EU$216,Translating_products!CM31,FALSE)) -> 99 | F33: 99 | G33: 0 | H33: belegt 1 Kanal auf MsGo oder Extension | I33: Air | N33: 1 | O33: nix | Q33: $
B34: =Calculation!C228 -> 0 | C34: =HLOOKUP(Main!$C$2,Translating_products!$CN$4:$DD$216,Translating_products!CM32, FALSE) -> 100149 | D34: =HLOOKUP(Main!$C$2,Translating_products!$DI$4:$DY$216,Translating_products!CM32, FALSE) -> Temperature & Humidity Sesnor Air | E34: =IF(ISBLANK($Q$1),HLOOKUP(Main!$C$2,Translating_products!$EE$4:$EU$216,Translating_products!CM32,FALSE),HLOOKUP($Q$1,Translating_products!$EE$4:$EU$216,Translating_products!CM32,FALSE)) -> 79 | F34: 79 | G34: 0 | H34: belegt 1 Kanal auf MsGo oder Extension | I34: Air | N34: 1 | O34: nix | Q34: $
B35: =Calculation!C216 -> 0 | C35: =HLOOKUP(Main!$C$2,Translating_products!$CN$4:$DD$216,Translating_products!CM33, FALSE) -> 100150 | D35: =HLOOKUP(Main!$C$2,Translating_products!$DI$4:$DY$216,Translating_products!CM33, FALSE) -> Loxone Tool Kit by Weidmüller | E35: =IF(ISBLANK($Q$1),HLOOKUP(Main!$C$2,Translating_products!$EE$4:$EU$216,Translating_products!CM33,FALSE),HLOOKUP($Q$1,Translating_products!$EE$4:$EU$216,Translating_products!CM33,FALSE)) -> 339 | F35: 339 | G35: 0 | H35: Stück-Auswahl Sonstiges | I35: Sonstiges | O35: nix | Q35: $
B36: =Calculation!C229 -> 0 | C36: =HLOOKUP(Main!$C$2,Translating_products!$CN$4:$DD$216,Translating_products!CM34, FALSE) -> not available in this country | D36: =HLOOKUP(Main!$C$2,Translating_products!$DI$4:$DY$216,Translating_products!CM34, FALSE) -> not available in this country | E36: =IF(ISBLANK($Q$1),HLOOKUP(Main!$C$2,Translating_products!$EE$4:$EU$216,Translating_products!CM34,FALSE),HLOOKUP($Q$1,Translating_products!$EE$4:$EU$216,Translating_products!CM34,FALSE)) -> 0 | F36: 0 | G36: 0 | H36: belegt 1 Kanal auf MsGo oder Extension | I36: Air | N36: 1 | O36: nix | Q36: $
B37: =Calculation!C245+Calculation!C92+Calculation!C339 -> 0 | C37: =HLOOKUP(Main!$C$2,Translating_products!$CN$4:$DD$216,Translating_products!CM35, FALSE) -> 100153 | D37: =HLOOKUP(Main!$C$2,Translating_products!$DI$4:$DY$216,Translating_products!CM35, FALSE) -> Nano IO Air | E37: =IF(ISBLANK($Q$1),HLOOKUP(Main!$C$2,Translating_products!$EE$4:$EU$216,Translating_products!CM35,FALSE),HLOOKUP($Q$1,Translating_products!$EE$4:$EU$216,Translating_products!CM35,FALSE)) -> 119 | F37: 119 | G37: 0 | H37: belegt 1 Kanal auf MsGo oder Extension | I37: Beschattung | N37: 1 | O37: nix | Q37: $
B38: =Calculation!C230+Calculation!C361 -> 0 | C38: =HLOOKUP(Main!$C$2,Translating_products!$CN$4:$DD$216,Translating_products!CM36, FALSE) -> 100154 | D38: =HLOOKUP(Main!$C$2,Translating_products!$DI$4:$DY$216,Translating_products!CM36, FALSE) -> Loxone Touch for Nano White | E38: =IF(ISBLANK($Q$1),HLOOKUP(Main!$C$2,Translating_products!$EE$4:$EU$216,Translating_products!CM36,FALSE),HLOOKUP($Q$1,Translating_products!$EE$4:$EU$216,Translating_products!CM36,FALSE)) -> 49 | F38: 49 | G38: 0 | I38: Air | O38: nix | Q38: $
B39: =Calculation!C231+Calculation!C362 -> 0 | C39: =HLOOKUP(Main!$C$2,Translating_products!$CN$4:$DD$216,Translating_products!CM37, FALSE) -> 100155 | D39: =HLOOKUP(Main!$C$2,Translating_products!$DI$4:$DY$216,Translating_products!CM37, FALSE) -> Loxone Touch Air White | E39: =IF(ISBLANK($Q$1),HLOOKUP(Main!$C$2,Translating_products!$EE$4:$EU$216,Translating_products!CM37,FALSE),HLOOKUP($Q$1,Translating_products!$EE$4:$EU$216,Translating_products!CM37,FALSE)) -> 124 | F39: 124 | G39: 0 | H39: belegt 1 Kanal auf MsGo oder Extension | I39: Air | N39: 1 | O39: nix | Q39: $
B40: =Calculation!C393 -> 0 | C40: =HLOOKUP(Main!$C$2,Translating_products!$CN$4:$DD$216,Translating_products!CM38, FALSE) -> not available in this country | D40: =HLOOKUP(Main!$C$2,Translating_products!$DI$4:$DY$216,Translating_products!CM38, FALSE) -> not available in this country | E40: =IF(ISBLANK($Q$1),HLOOKUP(Main!$C$2,Translating_products!$EE$4:$EU$216,Translating_products!CM38,FALSE),HLOOKUP($Q$1,Translating_products!$EE$4:$EU$216,Translating_products!CM38,FALSE)) -> 0 | F40: 0 | G40: 0 | H40: Sonstiges -kann man einfach kaufen | I40: Sonstiges | O40: 0.03 | Q40: $
B41: =Calculation!C232+Calculation!C133 -> 0 | C41: =HLOOKUP(Main!$C$2,Translating_products!$CN$4:$DD$216,Translating_products!CM39, FALSE) -> 100163 | D41: =HLOOKUP(Main!$C$2,Translating_products!$DI$4:$DY$216,Translating_products!CM39, FALSE) -> Valve Actuator Air | E41: =IF(ISBLANK($Q$1),HLOOKUP(Main!$C$2,Translating_products!$EE$4:$EU$216,Translating_products!CM39,FALSE),HLOOKUP($Q$1,Translating_products!$EE$4:$EU$216,Translating_products!CM39,FALSE)) -> 86 | F41: 86 | G41: 0 | H41: belegt 1 Kanal auf MsGo oder Extension | I41: Air | N41: 1 | O41: nix | Q41: $
B42: =Calculation!C117+Calculation!H119 -> 0 | C42: =HLOOKUP(Main!$C$2,Translating_products!$CN$4:$DD$216,Translating_products!CM40, FALSE) -> 100165 | D42: =HLOOKUP(Main!$C$2,Translating_products!$DI$4:$DY$216,Translating_products!CM40, FALSE) -> Loxone Music Server 4 Zone | E42: =IF(ISBLANK($Q$1),HLOOKUP(Main!$C$2,Translating_products!$EE$4:$EU$216,Translating_products!CM40,FALSE),HLOOKUP($Q$1,Translating_products!$EE$4:$EU$216,Translating_products!CM40,FALSE)) -> 1249 | F42: 1249 | G42: 0 | H42: Stück-Auswahl | I42: Musik | O42: nix | Q42: $
B43: =Calculation!C118+Calculation!H120 -> 0 | C43: =HLOOKUP(Main!$C$2,Translating_products!$CN$4:$DD$216,Translating_products!CM41, FALSE) -> 100166 | D43: =HLOOKUP(Main!$C$2,Translating_products!$DI$4:$DY$216,Translating_products!CM41, FALSE) -> Loxone Music Server 8 Zone | E43: =IF(ISBLANK($Q$1),HLOOKUP(Main!$C$2,Translating_products!$EE$4:$EU$216,Translating_products!CM41,FALSE),HLOOKUP($Q$1,Translating_products!$EE$4:$EU$216,Translating_products!CM41,FALSE)) -> 1849 | F43: 1849 | G43: 0 | H43: Stück-Auswahl | I43: Musik | O43: nix | Q43: $
B44: =Calculation!C119+Calculation!H121 -> 0 | C44: =HLOOKUP(Main!$C$2,Translating_products!$CN$4:$DD$216,Translating_products!CM42, FALSE) -> 100167 | D44: =HLOOKUP(Main!$C$2,Translating_products!$DI$4:$DY$216,Translating_products!CM42, FALSE) -> Loxone Music Server 12 Zone | E44: =IF(ISBLANK($Q$1),HLOOKUP(Main!$C$2,Translating_products!$EE$4:$EU$216,Translating_products!CM42,FALSE),HLOOKUP($Q$1,Translating_products!$EE$4:$EU$216,Translating_products!CM42,FALSE)) -> 2099 | F44: 2099 | G44: 0 | H44: Stück-Auswahl | I44: Musik | O44: nix | Q44: $
B45: =Calculation!C120+Calculation!H122 -> 0 | C45: =HLOOKUP(Main!$C$2,Translating_products!$CN$4:$DD$216,Translating_products!CM43, FALSE) -> 100168 | D45: =HLOOKUP(Main!$C$2,Translating_products!$DI$4:$DY$216,Translating_products!CM43, FALSE) -> Loxone Music Server 16 Zone | E45: =IF(ISBLANK($Q$1),HLOOKUP(Main!$C$2,Translating_products!$EE$4:$EU$216,Translating_products!CM43,FALSE),HLOOKUP($Q$1,Translating_products!$EE$4:$EU$216,Translating_products!CM43,FALSE)) -> 2649 | F45: 2649 | G45: 0 | H45: Stück-Auswahl | I45: Musik | O45: nix | Q45: $
B46: =Calculation!C121+Calculation!H123 -> 0 | C46: =HLOOKUP(Main!$C$2,Translating_products!$CN$4:$DD$216,Translating_products!CM44, FALSE) -> 100169 | D46: =HLOOKUP(Main!$C$2,Translating_products!$DI$4:$DY$216,Translating_products!CM44, FALSE) -> Loxone Music Server 20 Zone | E46: =IF(ISBLANK($Q$1),HLOOKUP(Main!$C$2,Translating_products!$EE$4:$EU$216,Translating_products!CM44,FALSE),HLOOKUP($Q$1,Translating_products!$EE$4:$EU$216,Translating_products!CM44,FALSE)) -> 2999 | F46: 2999 | G46: 0 | H46: Stück-Auswahl | I46: Musik | O46: nix | Q46: $
B47: =Calculation!C327 -> 0 | C47: =HLOOKUP(Main!$C$2,Translating_products!$CN$4:$DD$216,Translating_products!CM45, FALSE) -> not available in this country | D47: =HLOOKUP(Main!$C$2,Translating_products!$DI$4:$DY$216,Translating_products!CM45, FALSE) -> not available in this country | E47: =IF(ISBLANK($Q$1),HLOOKUP(Main!$C$2,Translating_products!$EE$4:$EU$216,Translating_products!CM45,FALSE),HLOOKUP($Q$1,Translating_products!$EE$4:$EU$216,Translating_products!CM45,FALSE)) -> 0 | F47: 0 | G47: 0 | H47: Stück-Auswahl | I47: Sonstiges | O47: nix | Q47: $
B48: =Calculation!C292 -> 0 | C48: =HLOOKUP(Main!$C$2,Translating_products!$CN$4:$DD$216,Translating_products!CM46, FALSE) -> 100178 | D48: =HLOOKUP(Main!$C$2,Translating_products!$DI$4:$DY$216,Translating_products!CM46, FALSE) -> AquaStar Air 1.5" | E48: =IF(ISBLANK($Q$1),HLOOKUP(Main!$C$2,Translating_products!$EE$4:$EU$216,Translating_products!CM46,FALSE),HLOOKUP($Q$1,Translating_products!$EE$4:$EU$216,Translating_products!CM46,FALSE)) -> 1549 | F48: 1549 | G48: 0 | H48: Stück-Auswahl | I48: Sonstiges | O48: nix | Q48: $
B49: =Calculation!C293 -> 0 | C49: =HLOOKUP(Main!$C$2,Translating_products!$CN$4:$DD$216,Translating_products!CM47, FALSE) -> 100179 | D49: =HLOOKUP(Main!$C$2,Translating_products!$DI$4:$DY$216,Translating_products!CM47, FALSE) -> AquaStar Air 2" | E49: =IF(ISBLANK($Q$1),HLOOKUP(Main!$C$2,Translating_products!$EE$4:$EU$216,Translating_products!CM47,FALSE),HLOOKUP($Q$1,Translating_products!$EE$4:$EU$216,Translating_products!CM47,FALSE)) -> 1649 | F49: 1649 | G49: 0 | H49: Stück-Auswahl | I49: Sonstiges | O49: nix | Q49: $
B50: =Calculation!C239+Calculation!C364 -> 0 | C50: =HLOOKUP(Main!$C$2,Translating_products!$CN$4:$DD$216,Translating_products!CM48, FALSE) -> 100180 | D50: =HLOOKUP(Main!$C$2,Translating_products!$DI$4:$DY$216,Translating_products!CM48, FALSE) -> Loxone Touch Air Anthracite | E50: =IF(ISBLANK($Q$1),HLOOKUP(Main!$C$2,Translating_products!$EE$4:$EU$216,Translating_products!CM48,FALSE),HLOOKUP($Q$1,Translating_products!$EE$4:$EU$216,Translating_products!CM48,FALSE)) -> 124 | F50: 124 | G50: 0 | H50: belegt 1 Kanal auf MsGo oder Extension | I50: Air | N50: 1 | O50: nix | Q50: $
B51: =Calculation!C240+Calculation!C365 -> 0 | C51: =HLOOKUP(Main!$C$2,Translating_products!$CN$4:$DD$216,Translating_products!CM49, FALSE) -> 100181 | D51: =HLOOKUP(Main!$C$2,Translating_products!$DI$4:$DY$216,Translating_products!CM49, FALSE) -> Loxone Touch for Nano Anthracite | E51: =IF(ISBLANK($Q$1),HLOOKUP(Main!$C$2,Translating_products!$EE$4:$EU$216,Translating_products!CM49,FALSE),HLOOKUP($Q$1,Translating_products!$EE$4:$EU$216,Translating_products!CM49,FALSE)) -> 49 | F51: 49 | G51: 0 | I51: Air | O51: nix | Q51: $
B52: =Calculation!C241+Calculation!C341 -> 0 | C52: =HLOOKUP(Main!$C$2,Translating_products!$CN$4:$DD$216,Translating_products!CM50, FALSE) -> not available in this country | D52: =HLOOKUP(Main!$C$2,Translating_products!$DI$4:$DY$216,Translating_products!CM50, FALSE) -> not available in this country | E52: =IF(ISBLANK($Q$1),HLOOKUP(Main!$C$2,Translating_products!$EE$4:$EU$216,Translating_products!CM50,FALSE),HLOOKUP($Q$1,Translating_products!$EE$4:$EU$216,Translating_products!CM50,FALSE)) -> 0 | F52: 0 | G52: 0 | H52: belegt 1 Kanal auf MsGo oder Extension | I52: Air | N52: 1 | O52: nix | Q52: $
B53: =Calculation!C242+Calculation!C342 -> 0 | C53: =HLOOKUP(Main!$C$2,Translating_products!$CN$4:$DD$216,Translating_products!CM51, FALSE) -> not available in this country | D53: =HLOOKUP(Main!$C$2,Translating_products!$DI$4:$DY$216,Translating_products!CM51, FALSE) -> not available in this country | E53: =IF(ISBLANK($Q$1),HLOOKUP(Main!$C$2,Translating_products!$EE$4:$EU$216,Translating_products!CM51,FALSE),HLOOKUP($Q$1,Translating_products!$EE$4:$EU$216,Translating_products!CM51,FALSE)) -> 0 | F53: 0 | G53: 0 | H53: belegt 1 Kanal auf MsGo oder Extension | I53: Air | N53: 1 | O53: nix | Q53: $
B54: =Calculation!C243+Calculation!C343 -> 0 | C54: =HLOOKUP(Main!$C$2,Translating_products!$CN$4:$DD$216,Translating_products!CM52, FALSE) -> not available in this country | D54: =HLOOKUP(Main!$C$2,Translating_products!$DI$4:$DY$216,Translating_products!CM52, FALSE) -> not available in this country | E54: =IF(ISBLANK($Q$1),HLOOKUP(Main!$C$2,Translating_products!$EE$4:$EU$216,Translating_products!CM52,FALSE),HLOOKUP($Q$1,Translating_products!$EE$4:$EU$216,Translating_products!CM52,FALSE)) -> 0 | F54: 0 | G54: 0 | H54: belegt 1 Kanal auf MsGo oder Extension | I54: Air | N54: 1 | O54: nix | Q54: $
B55: =Calculation!C294+Calculation!L401 -> 0 | C55: =HLOOKUP(Main!$C$2,Translating_products!$CN$4:$DD$216,Translating_products!CM53, FALSE) -> 200001 | D55: =HLOOKUP(Main!$C$2,Translating_products!$DI$4:$DY$216,Translating_products!CM53, FALSE) -> 24V Power Supply (1.3A) | E55: =IF(ISBLANK($Q$1),HLOOKUP(Main!$C$2,Translating_products!$EE$4:$EU$216,Translating_products!CM53,FALSE),HLOOKUP($Q$1,Translating_products!$EE$4:$EU$216,Translating_products!CM53,FALSE)) -> 49 | F55: 49 | G55: 0 | H55: Auswählen & stehen auch mit anderen Produkten in Beziehung | I55: Sonstiges | O55: nix | Q55: $
B56: =Calculation!C295+Calculation!L402 -> 0 | C56: =HLOOKUP(Main!$C$2,Translating_products!$CN$4:$DD$216,Translating_products!CM54, FALSE) -> 200002 | D56: =HLOOKUP(Main!$C$2,Translating_products!$DI$4:$DY$216,Translating_products!CM54, FALSE) -> 24V Power Supply (4.2A) | E56: =IF(ISBLANK($Q$1),HLOOKUP(Main!$C$2,Translating_products!$EE$4:$EU$216,Translating_products!CM54,FALSE),HLOOKUP($Q$1,Translating_products!$EE$4:$EU$216,Translating_products!CM54,FALSE)) -> 76 | F56: 76 | G56: 0 | H56: Auswählen & stehen auch mit anderen Produkten in Beziehung | I56: Sonstiges | O56: nix | Q56: $
B57: =Calculation!C134+Calculation!C168 -> 0 | C57: =HLOOKUP(Main!$C$2,Translating_products!$CN$4:$DD$216,Translating_products!CM55, FALSE) -> 200003 | D57: =HLOOKUP(Main!$C$2,Translating_products!$DI$4:$DY$216,Translating_products!CM55, FALSE) -> Outside Temperature Sensor 0-10V | E57: =IF(ISBLANK($Q$1),HLOOKUP(Main!$C$2,Translating_products!$EE$4:$EU$216,Translating_products!CM55,FALSE),HLOOKUP($Q$1,Translating_products!$EE$4:$EU$216,Translating_products!CM55,FALSE)) -> 59 | F57: 59 | G57: 0 | I57: Heizung | J57: 1 | O57: =B57*0.005 -> 0 | Q57: $
B58: 0 | C58: =HLOOKUP(Main!$C$2,Translating_products!$CN$4:$DD$216,Translating_products!CM56, FALSE) -> 0 | D58: =HLOOKUP(Main!$C$2,Translating_products!$DI$4:$DY$216,Translating_products!CM56, FALSE) -> No longer sold | E58: =IF(ISBLANK($Q$1),HLOOKUP(Main!$C$2,Translating_products!$EE$4:$EU$216,Translating_products!CM56,FALSE),HLOOKUP($Q$1,Translating_products!$EE$4:$EU$216,Translating_products!CM56,FALSE)) -> 0 | F58: 0 | G58: 0 | I58: Heizung | L58: 1 | O58: =B58*0.27 -> 0 | Q58: $
B59: 0 | C59: =HLOOKUP(Main!$C$2,Translating_products!$CN$4:$DD$216,Translating_products!CM57, FALSE) -> 0 | D59: =HLOOKUP(Main!$C$2,Translating_products!$DI$4:$DY$216,Translating_products!CM57, FALSE) -> No longer sold | E59: =IF(ISBLANK($Q$1),HLOOKUP(Main!$C$2,Translating_products!$EE$4:$EU$216,Translating_products!CM57,FALSE),HLOOKUP($Q$1,Translating_products!$EE$4:$EU$216,Translating_products!CM57,FALSE)) -> 0 | F59: 0 | G59: 0 | I59: Heizung | M59: 1 | O59: nix | Q59: $
B60: =Calculation!C135+Calculation!C169 -> 0 | C60: =HLOOKUP(Main!$C$2,Translating_products!$CN$4:$DD$216,Translating_products!CM58, FALSE) -> 200006 | D60: =HLOOKUP(Main!$C$2,Translating_products!$DI$4:$DY$216,Translating_products!CM58, FALSE) -> Indoor Temperature Sensor 0-10V | E60: =IF(ISBLANK($Q$1),HLOOKUP(Main!$C$2,Translating_products!$EE$4:$EU$216,Translating_products!CM58,FALSE),HLOOKUP($Q$1,Translating_products!$EE$4:$EU$216,Translating_products!CM58,FALSE)) -> 59 | F60: 59 | G60: 0 | I60: Heizung | J60: 1 | O60: =B60*0.005 -> 0 | Q60: $
B61: =Calculation!C296 -> 0 | C61: =HLOOKUP(Main!$C$2,Translating_products!$CN$4:$DD$216,Translating_products!CM59, FALSE) -> not available in this country | D61: =HLOOKUP(Main!$C$2,Translating_products!$DI$4:$DY$216,Translating_products!CM59, FALSE) -> not available in this country | E61: =IF(ISBLANK($Q$1),HLOOKUP(Main!$C$2,Translating_products!$EE$4:$EU$216,Translating_products!CM59,FALSE),HLOOKUP($Q$1,Translating_products!$EE$4:$EU$216,Translating_products!CM59,FALSE)) -> 0 | F61: 0 | G61: 0 | H61: Sonstiges-Stück | I61: Sonstiges | O61: nix | Q61: $
B62: =Calculation!C136+Calculation!C170 -> 0 | C62: =HLOOKUP(Main!$C$2,Translating_products!$CN$4:$DD$216,Translating_products!CM60, FALSE) -> 200010 | D62: =HLOOKUP(Main!$C$2,Translating_products!$DI$4:$DY$216,Translating_products!CM60, FALSE) -> Indoor Temperature & Humidity Sensor 0-10V | E62: =IF(ISBLANK($Q$1),HLOOKUP(Main!$C$2,Translating_products!$EE$4:$EU$216,Translating_products!CM60,FALSE),HLOOKUP($Q$1,Translating_products!$EE$4:$EU$216,Translating_products!CM60,FALSE)) -> 119 | F62: 119 | G62: 0 | I62: Heizung | J62: 2 | O62: =B62*0.005 -> 0 | Q62: $
B63: =Calculation!C297 -> 0 | C63: =HLOOKUP(Main!$C$2,Translating_products!$CN$4:$DD$216,Translating_products!CM61, FALSE) -> 200012 | D63: =HLOOKUP(Main!$C$2,Translating_products!$DI$4:$DY$216,Translating_products!CM61, FALSE) -> Valve Adaptor VA80 | E63: =IF(ISBLANK($Q$1),HLOOKUP(Main!$C$2,Translating_products!$EE$4:$EU$216,Translating_products!CM61,FALSE),HLOOKUP($Q$1,Translating_products!$EE$4:$EU$216,Translating_products!CM61,FALSE)) -> 2 | F63: 2 | G63: 0 | H63: Sonstiges-Stück | I63: Sonstiges | O63: nix | Q63: $
B64: =Calculation!C298 -> 0 | C64: =HLOOKUP(Main!$C$2,Translating_products!$CN$4:$DD$216,Translating_products!CM62, FALSE) -> not available in this country | D64: =HLOOKUP(Main!$C$2,Translating_products!$DI$4:$DY$216,Translating_products!CM62, FALSE) -> not available in this country | E64: =IF(ISBLANK($Q$1),HLOOKUP(Main!$C$2,Translating_products!$EE$4:$EU$216,Translating_products!CM62,FALSE),HLOOKUP($Q$1,Translating_products!$EE$4:$EU$216,Translating_products!CM62,FALSE)) -> 0 | F64: 0 | G64: 0 | H64: Sonstiges-Stück | I64: Sonstiges | O64: nix | Q64: $
B65: =Calculation!C137+Calculation!C171 -> 0 | C65: =HLOOKUP(Main!$C$2,Translating_products!$CN$4:$DD$216,Translating_products!CM63, FALSE) -> 200017 | D65: =HLOOKUP(Main!$C$2,Translating_products!$DI$4:$DY$216,Translating_products!CM63, FALSE) -> Indoor Temperature, Humidty & CO2 Sensor 0-10V | E65: =IF(ISBLANK($Q$1),HLOOKUP(Main!$C$2,Translating_products!$EE$4:$EU$216,Translating_products!CM63,FALSE),HLOOKUP($Q$1,Translating_products!$EE$4:$EU$216,Translating_products!CM63,FALSE)) -> 314 | F65: 314 | G65: 0 | I65: Heizung | J65: 3 | O65: =B65*0.01 -> 0 | Q65: $
B66: =Calculation!C172 -> 0 | C66: =HLOOKUP(Main!$C$2,Translating_products!$CN$4:$DD$216,Translating_products!CM64, FALSE) -> 200018 | D66: =HLOOKUP(Main!$C$2,Translating_products!$DI$4:$DY$216,Translating_products!CM64, FALSE) -> Rain Sensor (24V) | E66: =IF(ISBLANK($Q$1),HLOOKUP(Main!$C$2,Translating_products!$EE$4:$EU$216,Translating_products!CM64,FALSE),HLOOKUP($Q$1,Translating_products!$EE$4:$EU$216,Translating_products!CM64,FALSE)) -> 79 | F66: 79 | G66: 0 | I66: Sensoren | K66: 1 | O66: =0.06*B66 -> 0 | Q66: $
B67: =Calculation!C173 -> 0 | C67: =HLOOKUP(Main!$C$2,Translating_products!$CN$4:$DD$216,Translating_products!CM65, FALSE) -> 200031 | D67: =HLOOKUP(Main!$C$2,Translating_products!$DI$4:$DY$216,Translating_products!CM65, FALSE) -> Outdoor Temperature & Humidy Sensor 0-10V | E67: =IF(ISBLANK($Q$1),HLOOKUP(Main!$C$2,Translating_products!$EE$4:$EU$216,Translating_products!CM65,FALSE),HLOOKUP($Q$1,Translating_products!$EE$4:$EU$216,Translating_products!CM65,FALSE)) -> 159 | F67: 159 | G67: 0 | I67: Sensoren | J67: 2 | O67: =B67*0.005 -> 0 | Q67: $
B68: =Calculation!C174 -> 0 | C68: =HLOOKUP(Main!$C$2,Translating_products!$CN$4:$DD$216,Translating_products!CM66, FALSE) -> 200032 | D68: =HLOOKUP(Main!$C$2,Translating_products!$DI$4:$DY$216,Translating_products!CM66, FALSE) -> Brightness Sensor 0-10V | E68: =IF(ISBLANK($Q$1),HLOOKUP(Main!$C$2,Translating_products!$EE$4:$EU$216,Translating_products!CM66,FALSE),HLOOKUP($Q$1,Translating_products!$EE$4:$EU$216,Translating_products!CM66,FALSE)) -> 109 | F68: 109 | G68: 0 | I68: Sensoren | J68: 1 | O68: =0.005*B68 -> 0 | Q68: $
B69: =Calculation!C175 -> 0 | C69: =HLOOKUP(Main!$C$2,Translating_products!$CN$4:$DD$216,Translating_products!CM67, FALSE) -> 200033 | D69: =HLOOKUP(Main!$C$2,Translating_products!$DI$4:$DY$216,Translating_products!CM67, FALSE) -> Wind Sensor (24V) | E69: =IF(ISBLANK($Q$1),HLOOKUP(Main!$C$2,Translating_products!$EE$4:$EU$216,Translating_products!CM67,FALSE),HLOOKUP($Q$1,Translating_products!$EE$4:$EU$216,Translating_products!CM67,FALSE)) -> 99 | F69: 99 | G69: 0 | I69: Sensoren | K69: 1 | O69: nix | Q69: $
B70: =Calculation!C176 -> 0 | C70: =HLOOKUP(Main!$C$2,Translating_products!$CN$4:$DD$216,Translating_products!CM68, FALSE) -> 200034 | D70: =HLOOKUP(Main!$C$2,Translating_products!$DI$4:$DY$216,Translating_products!CM68, FALSE) -> Wind Sensor Mount | E70: =IF(ISBLANK($Q$1),HLOOKUP(Main!$C$2,Translating_products!$EE$4:$EU$216,Translating_products!CM68,FALSE),HLOOKUP($Q$1,Translating_products!$EE$4:$EU$216,Translating_products!CM68,FALSE)) -> 75 | F70: 75 | G70: 0 | H70: Stück-Auswahl | I70: Sensoren | O70: nix | Q70: $
B71: =Calculation!C299+Calculation!L403 -> 0 | C71: =HLOOKUP(Main!$C$2,Translating_products!$CN$4:$DD$216,Translating_products!CM69, FALSE) -> 200035 | D71: =HLOOKUP(Main!$C$2,Translating_products!$DI$4:$DY$216,Translating_products!CM69, FALSE) -> 24V Power Supply (10A) | E71: =IF(ISBLANK($Q$1),HLOOKUP(Main!$C$2,Translating_products!$EE$4:$EU$216,Translating_products!CM69,FALSE),HLOOKUP($Q$1,Translating_products!$EE$4:$EU$216,Translating_products!CM69,FALSE)) -> 179 | F71: 179 | G71: 0 | H71: Stück-Auswahl | I71: Sonstiges | O71: nix | Q71: $
B72: =Calculation!C300 -> 0 | C72: =HLOOKUP(Main!$C$2,Translating_products!$CN$4:$DD$216,Translating_products!CM71, FALSE) -> 200040 | D72: =IF(ISBLANK(Q1),HLOOKUP(Main!$C$2,Translating_products!$DI$4:$DY$216,Translating_products!CM71,FALSE),"Not available in this country") -> Surface Mount Box - IP20 | E72: =IF(ISBLANK($Q$1),HLOOKUP(Main!$C$2,Translating_products!$EE$4:$EU$216,Translating_products!CM71,FALSE),HLOOKUP($Q$1,Translating_products!$EE$4:$EU$216,Translating_products!CM71,FALSE)) -> 10 | F72: 10 | G72: 0 | H72: Stück-Auswahl | I72: Sonstiges | O72: nix | Q72: $
B73: =Calculation!C80 -> 0 | C73: =HLOOKUP(Main!$C$2,Translating_products!$CN$4:$DD$216,Translating_products!CM72, FALSE) -> 200042 | D73: =HLOOKUP(Main!$C$2,Translating_products!$DI$4:$DY$216,Translating_products!CM72, FALSE) -> RGB LED Strip 5m | E73: =IF(ISBLANK($Q$1),HLOOKUP(Main!$C$2,Translating_products!$EE$4:$EU$216,Translating_products!CM72,FALSE),HLOOKUP($Q$1,Translating_products!$EE$4:$EU$216,Translating_products!CM72,FALSE)) -> 109 | F73: 109 | G73: 0 | H73: Stück-Auswahl Licht | I73: Licht | O73: =14.4*5*B73 -> 0 | Q73: $
B74: =Calculation!C81 -> 0 | C74: =HLOOKUP(Main!$C$2,Translating_products!$CN$4:$DD$216,Translating_products!CM73, FALSE) -> 200043 | D74: =HLOOKUP(Main!$C$2,Translating_products!$DI$4:$DY$216,Translating_products!CM73, FALSE) -> Warm White LED Strip 5m | E74: =IF(ISBLANK($Q$1),HLOOKUP(Main!$C$2,Translating_products!$EE$4:$EU$216,Translating_products!CM73,FALSE),HLOOKUP($Q$1,Translating_products!$EE$4:$EU$216,Translating_products!CM73,FALSE)) -> 109 | F74: 109 | G74: 0 | H74: Stück-Auswahl Licht | I74: Licht | O74: 0 | Q74: $
B75: =Calculation!C83 -> 0 | C75: =HLOOKUP(Main!$C$2,Translating_products!$CN$4:$DD$216,Translating_products!CM75, FALSE) -> 200046 | D75: =HLOOKUP(Main!$C$2,Translating_products!$DI$4:$DY$216,Translating_products!CM75, FALSE) -> RGB LED Strip 5m IP68 | E75: =IF(ISBLANK($Q$1),HLOOKUP(Main!$C$2,Translating_products!$EE$4:$EU$216,Translating_products!CM75,FALSE),HLOOKUP($Q$1,Translating_products!$EE$4:$EU$216,Translating_products!CM75,FALSE)) -> 122 | F75: 122 | G75: 0 | H75: Stück-Auswahl Licht | I75: Licht | O75: 0 | Q75: $
B76: =Calculation!C233 -> 0 | C76: =HLOOKUP(Main!$C$2,Translating_products!$CN$4:$DD$216,Translating_products!CM76, FALSE) -> 200048 | D76: =HLOOKUP(Main!$C$2,Translating_products!$DI$4:$DY$216,Translating_products!CM76, FALSE) -> SMA Antenna 868 MHz | E76: =IF(ISBLANK($Q$1),HLOOKUP(Main!$C$2,Translating_products!$EE$4:$EU$216,Translating_products!CM76,FALSE),HLOOKUP($Q$1,Translating_products!$EE$4:$EU$216,Translating_products!CM76,FALSE)) -> 19 | F76: 19 | G76: 0 | H76: Stück-Auswahl | I76: Air | O76: nix | Q76: $
B77: =Calculation!C301+Calculation!C218 -> 0 | C77: =HLOOKUP(Main!$C$2,Translating_products!$CN$4:$DD$216,Translating_products!CM77, FALSE) -> 200049 | D77: =HLOOKUP(Main!$C$2,Translating_products!$DI$4:$DY$216,Translating_products!CM77, FALSE) -> Coupling Relay | E77: =IF(ISBLANK($Q$1),HLOOKUP(Main!$C$2,Translating_products!$EE$4:$EU$216,Translating_products!CM77,FALSE),HLOOKUP($Q$1,Translating_products!$EE$4:$EU$216,Translating_products!CM77,FALSE)) -> 23 | F77: 23 | G77: 0 | H77: Stück-Auswahl | I77: Sonstiges | O77: nix | Q77: $
B78: =Calculation!C328 -> 0 | C78: =HLOOKUP(Main!$C$2,Translating_products!$CN$4:$DD$216,Translating_products!CM78, FALSE) -> 200050 | D78: =HLOOKUP(Main!$C$2,Translating_products!$DI$4:$DY$216,Translating_products!CM78, FALSE) -> Loxone Sticker | E78: =IF(ISBLANK($Q$1),HLOOKUP(Main!$C$2,Translating_products!$EE$4:$EU$216,Translating_products!CM78,FALSE),HLOOKUP($Q$1,Translating_products!$EE$4:$EU$216,Translating_products!CM78,FALSE)) -> 5 | F78: 5 | G78: 0 | H78: Stück-Auswahl Sonstiges | I78: Sonstiges | O78: nix | Q78: $
B79: =Calculation!C177 -> 0 | C79: =HLOOKUP(Main!$C$2,Translating_products!$CN$4:$DD$216,Translating_products!CM79, FALSE) -> 200054 | D79: =HLOOKUP(Main!$C$2,Translating_products!$DI$4:$DY$216,Translating_products!CM79, FALSE) -> Ultrasonic Sensor 0-10V | E79: =IF(ISBLANK($Q$1),HLOOKUP(Main!$C$2,Translating_products!$EE$4:$EU$216,Translating_products!CM79,FALSE),HLOOKUP($Q$1,Translating_products!$EE$4:$EU$216,Translating_products!CM79,FALSE)) -> 289 | F79: 289 | G79: 0 | I79: Sensoren | J79: 1 | O79: =B79*0.06 -> 0 | Q79: $
B80: =Calculation!C363 -> 0 | C80: =HLOOKUP(Main!$C$2,Translating_products!$CN$4:$DD$216,Translating_products!CM80, FALSE) -> not available in this country | D80: =IF(ISBLANK(Q1),HLOOKUP(Main!$C$2,Translating_products!$DI$4:$DY$216,Translating_products!CM80,FALSE),"Not available in this country") -> not available in this country | E80: =IF(ISBLANK($Q$1),HLOOKUP(Main!$C$2,Translating_products!$EE$4:$EU$216,Translating_products!CM80,FALSE),HLOOKUP($Q$1,Translating_products!$EE$4:$EU$216,Translating_products!CM80,FALSE)) -> 0 | F80: 0 | G80: 0 | H80: enocean - extension 1 kanal | I80: Taster | N80: 1 | O80: nix | Q80: $
B81: =Calculation!C234 -> 0 | C81: =HLOOKUP(Main!$C$2,Translating_products!$CN$4:$DD$216,Translating_products!CM81, FALSE) -> not available in this country | D81: =IF(ISBLANK(Q1),HLOOKUP(Main!$C$2,Translating_products!$DI$4:$DY$216,Translating_products!CM81,FALSE),"Not available in this country") -> not available in this country | E81: =IF(ISBLANK($Q$1),HLOOKUP(Main!$C$2,Translating_products!$EE$4:$EU$216,Translating_products!CM81,FALSE),HLOOKUP($Q$1,Translating_products!$EE$4:$EU$216,Translating_products!CM81,FALSE)) -> 0 | F81: 0 | G81: 0 | H81: Stück-Auswahl | I81: Air | N81: 1 | O81: nix | Q81: $
B82: =Calculation!C84 -> 0 | C82: =HLOOKUP(Main!$C$2,Translating_products!$CN$4:$DD$216,Translating_products!CM82, FALSE) -> 200061 | D82: =HLOOKUP(Main!$C$2,Translating_products!$DI$4:$DY$216,Translating_products!CM82, FALSE) -> Warm White LED Strip 5m IP65 | E82: =IF(ISBLANK($Q$1),HLOOKUP(Main!$C$2,Translating_products!$EE$4:$EU$216,Translating_products!CM82,FALSE),HLOOKUP($Q$1,Translating_products!$EE$4:$EU$216,Translating_products!CM82,FALSE)) -> 115 | F82: 115 | G82: 0 | H82: Stück-Auswahl | I82: Licht | O82: =14.4*5*B82 -> 0 | Q82: $
B83: =Calculation!C150 -> 0 | C83: =HLOOKUP(Main!$C$2,Translating_products!$CN$4:$DD$216,Translating_products!CM83, FALSE) -> 200063 | D83: =HLOOKUP(Main!$C$2,Translating_products!$DI$4:$DY$216,Translating_products!CM83, FALSE) -> iButton Reader 1-Wire | E83: =IF(ISBLANK($Q$1),HLOOKUP(Main!$C$2,Translating_products!$EE$4:$EU$216,Translating_products!CM83,FALSE),HLOOKUP($Q$1,Translating_products!$EE$4:$EU$216,Translating_products!CM83,FALSE)) -> 13 | F83: 13 | G83: 0 | H83: belegt 1 kanal von 1 Wire (Temparatur und Zutritt) | I83: Zutritt | N83: 1 | O83: nix | Q83: $
B84: =Calculation!C151 -> 0 | C84: =HLOOKUP(Main!$C$2,Translating_products!$CN$4:$DD$216,Translating_products!CM84, FALSE) -> 200064 | D84: =HLOOKUP(Main!$C$2,Translating_products!$DI$4:$DY$216,Translating_products!CM84, FALSE) -> iButton Electronic Key Fob | E84: =IF(ISBLANK($Q$1),HLOOKUP(Main!$C$2,Translating_products!$EE$4:$EU$216,Translating_products!CM84,FALSE),HLOOKUP($Q$1,Translating_products!$EE$4:$EU$216,Translating_products!CM84,FALSE)) -> 5 | F84: 5 | G84: 0 | H84: Stück-Zutritt | I84: Zutritt | O84: nix | Q84: $
B85: =Calculation!C235 -> 0 | C85: =HLOOKUP(Main!$C$2,Translating_products!$CN$4:$DD$216,Translating_products!CM85, FALSE) -> not available in this country | D85: =IF(ISBLANK(Q1),HLOOKUP(Main!$C$2,Translating_products!$DI$4:$DY$216,Translating_products!CM85,FALSE),"Not available in this country") -> not available in this country | E85: =IF(ISBLANK($Q$1),HLOOKUP(Main!$C$2,Translating_products!$EE$4:$EU$216,Translating_products!CM85,FALSE),HLOOKUP($Q$1,Translating_products!$EE$4:$EU$216,Translating_products!CM85,FALSE)) -> 0 | F85: 0 | G85: 0 | H85: belegt 1 kanal enocean extension | I85: Air | N85: 1 | O85: nix | Q85: $
B86: =Calculation!C152 -> 0 | C86: =HLOOKUP(Main!$C$2,Translating_products!$CN$4:$DD$216,Translating_products!CM86, FALSE) -> not available in this country | D86: =HLOOKUP(Main!$C$2,Translating_products!$DI$4:$DY$216,Translating_products!CM86, FALSE) -> not available in this country | E86: =IF(ISBLANK($Q$1),HLOOKUP(Main!$C$2,Translating_products!$EE$4:$EU$216,Translating_products!CM86,FALSE),HLOOKUP($Q$1,Translating_products!$EE$4:$EU$216,Translating_products!CM86,FALSE)) -> 0 | F86: 0 | G86: 0 | H86: Stück-Auswahl Zutritt | I86: Zutritt | O86: nix | Q86: $
B87: =Calculation!C138+Calculation!C178 -> 0 | C87: =HLOOKUP(Main!$C$2,Translating_products!$CN$4:$DD$216,Translating_products!CM87, FALSE) -> 200077 | D87: =HLOOKUP(Main!$C$2,Translating_products!$DI$4:$DY$216,Translating_products!CM87, FALSE) -> Temperature Probe 1-Wire | E87: =IF(ISBLANK($Q$1),HLOOKUP(Main!$C$2,Translating_products!$EE$4:$EU$216,Translating_products!CM87,FALSE),HLOOKUP($Q$1,Translating_products!$EE$4:$EU$216,Translating_products!CM87,FALSE)) -> 15.5 | F87: 15.5 | G87: 0 | H87: 1-Wire Extension 1 Kanal | I87: Sensoren | N87: 1 | O87: nix | Q87: $
B88: =Calculation!C329 -> 0 | C88: =HLOOKUP(Main!$C$2,Translating_products!$CN$4:$DD$216,Translating_products!CM88, FALSE) -> 200086 | D88: =HLOOKUP(Main!$C$2,Translating_products!$DI$4:$DY$216,Translating_products!CM88, FALSE) -> Fanshirt S | E88: =IF(ISBLANK($Q$1),HLOOKUP(Main!$C$2,Translating_products!$EE$4:$EU$216,Translating_products!CM88,FALSE),HLOOKUP($Q$1,Translating_products!$EE$4:$EU$216,Translating_products!CM88,FALSE)) -> 19 | F88: 19 | G88: 0 | H88: Stück-Auswahl Sonstiges | I88: Sonstiges | O88: nix | Q88: $
B89: =Calculation!C330 -> 0 | C89: =HLOOKUP(Main!$C$2,Translating_products!$CN$4:$DD$216,Translating_products!CM89, FALSE) -> 200087 | D89: =HLOOKUP(Main!$C$2,Translating_products!$DI$4:$DY$216,Translating_products!CM89, FALSE) -> Fanshirt M | E89: =IF(ISBLANK($Q$1),HLOOKUP(Main!$C$2,Translating_products!$EE$4:$EU$216,Translating_products!CM89,FALSE),HLOOKUP($Q$1,Translating_products!$EE$4:$EU$216,Translating_products!CM89,FALSE)) -> 19 | F89: 19 | G89: 0 | H89: Stück-Auswahl Sonstiges | I89: Sonstiges | O89: nix | Q89: $
B90: =Calculation!C331 -> 0 | C90: =HLOOKUP(Main!$C$2,Translating_products!$CN$4:$DD$216,Translating_products!CM90, FALSE) -> 200088 | D90: =HLOOKUP(Main!$C$2,Translating_products!$DI$4:$DY$216,Translating_products!CM90, FALSE) -> Fanshirt L | E90: =IF(ISBLANK($Q$1),HLOOKUP(Main!$C$2,Translating_products!$EE$4:$EU$216,Translating_products!CM90,FALSE),HLOOKUP($Q$1,Translating_products!$EE$4:$EU$216,Translating_products!CM90,FALSE)) -> 19 | F90: 19 | G90: 0 | H90: Stück-Auswahl Sonstiges | I90: Sonstiges | O90: nix | Q90: $
B91: =Calculation!C332 -> 0 | C91: =HLOOKUP(Main!$C$2,Translating_products!$CN$4:$DD$216,Translating_products!CM91, FALSE) -> 200089 | D91: =HLOOKUP(Main!$C$2,Translating_products!$DI$4:$DY$216,Translating_products!CM91, FALSE) -> Fanshirt XL | E91: =IF(ISBLANK($Q$1),HLOOKUP(Main!$C$2,Translating_products!$EE$4:$EU$216,Translating_products!CM91,FALSE),HLOOKUP($Q$1,Translating_products!$EE$4:$EU$216,Translating_products!CM91,FALSE)) -> 19 | F91: 19 | G91: 0 | H91: Stück-Auswahl Sonstiges | I91: Sonstiges | O91: nix | Q91: $
B92: =Calculation!C333 -> 0 | C92: =HLOOKUP(Main!$C$2,Translating_products!$CN$4:$DD$216,Translating_products!CM92, FALSE) -> 200090 | D92: =HLOOKUP(Main!$C$2,Translating_products!$DI$4:$DY$216,Translating_products!CM92, FALSE) -> Fanshirt XXL | E92: =IF(ISBLANK($Q$1),HLOOKUP(Main!$C$2,Translating_products!$EE$4:$EU$216,Translating_products!CM92,FALSE),HLOOKUP($Q$1,Translating_products!$EE$4:$EU$216,Translating_products!CM92,FALSE)) -> 19 | F92: 19 | G92: 0 | H92: Stück-Auswahl Sonstiges | I92: Sonstiges | O92: nix | Q92: $
B93: =Calculation!C85 -> 0 | C93: =HLOOKUP(Main!$C$2,Translating_products!$CN$4:$DD$216,Translating_products!CM93, FALSE) -> 200092 | D93: =HLOOKUP(Main!$C$2,Translating_products!$DI$4:$DY$216,Translating_products!CM93, FALSE) -> Warm White LED Strip 5m IP68 | E93: =IF(ISBLANK($Q$1),HLOOKUP(Main!$C$2,Translating_products!$EE$4:$EU$216,Translating_products!CM93,FALSE),HLOOKUP($Q$1,Translating_products!$EE$4:$EU$216,Translating_products!CM93,FALSE)) -> 115 | F93: 115 | G93: 0 | H93: Stück-Auswahl | I93: Licht | O93: =14.4*5*B93 -> 0 | Q93: $
B94: =Calculation!C155 -> 0 | C94: =HLOOKUP(Main!$C$2,Translating_products!$CN$4:$DD$216,Translating_products!CM94, FALSE) -> 200103 | D94: =HLOOKUP(Main!$C$2,Translating_products!$DI$4:$DY$216,Translating_products!CM94, FALSE) -> Loxone Intercom | E94: =IF(ISBLANK($Q$1),HLOOKUP(Main!$C$2,Translating_products!$EE$4:$EU$216,Translating_products!CM94,FALSE),HLOOKUP($Q$1,Translating_products!$EE$4:$EU$216,Translating_products!CM94,FALSE)) -> 1149 | F94: 1149 | G94: 0 | H94: Stück-Auswähl Zutritt | I94: Zutritt | O94: nix | Q94: $
B95: =Calculation!C156 -> 0 | C95: =HLOOKUP(Main!$C$2,Translating_products!$CN$4:$DD$216,Translating_products!CM95, FALSE) -> 200094 | D95: =HLOOKUP(Main!$C$2,Translating_products!$DI$4:$DY$216,Translating_products!CM95, FALSE) -> Flush-mounted box for the Loxone intercom | E95: =IF(ISBLANK($Q$1),HLOOKUP(Main!$C$2,Translating_products!$EE$4:$EU$216,Translating_products!CM95,FALSE),HLOOKUP($Q$1,Translating_products!$EE$4:$EU$216,Translating_products!CM95,FALSE)) -> 70 | F95: 70 | G95: 0 | H95: Stück-Auswähl Zutritt | I95: Zutritt | O95: nix | Q95: $
B96: =Calculation!C157 -> 0 | C96: =HLOOKUP(Main!$C$2,Translating_products!$CN$4:$DD$216,Translating_products!CM96, FALSE) -> 200095 | D96: =HLOOKUP(Main!$C$2,Translating_products!$DI$4:$DY$216,Translating_products!CM96, FALSE) -> Surface Box for Loxone Intercom | E96: =IF(ISBLANK($Q$1),HLOOKUP(Main!$C$2,Translating_products!$EE$4:$EU$216,Translating_products!CM96,FALSE),HLOOKUP($Q$1,Translating_products!$EE$4:$EU$216,Translating_products!CM96,FALSE)) -> 130 | F96: 130 | G96: 0 | H96: Stück-Auswähl Zutritt | I96: Zutritt | O96: nix | Q96: $
B97: =Calculation!C122 -> 0 | C97: =HLOOKUP(Main!$C$2,Translating_products!$CN$4:$DD$216,Translating_products!CM97, FALSE) -> 200097 | D97: =HLOOKUP(Main!$C$2,Translating_products!$DI$4:$DY$216,Translating_products!CM97, FALSE) -> Loxone Speaker | E97: =IF(ISBLANK($Q$1),HLOOKUP(Main!$C$2,Translating_products!$EE$4:$EU$216,Translating_products!CM97,FALSE),HLOOKUP($Q$1,Translating_products!$EE$4:$EU$216,Translating_products!CM97,FALSE)) -> 117 | F97: 117 | G97: 0 | H97: Stück-Auswahl Musik (1 Kanal am Musikserver) | I97: Musik | N97: 1 | O97: nix | Q97: $
B98: =Calculation!C86 -> 0 | C98: =HLOOKUP(Main!$C$2,Translating_products!$CN$4:$DD$216,Translating_products!CM98, FALSE) -> 200098 | D98: =HLOOKUP(Main!$C$2,Translating_products!$DI$4:$DY$216,Translating_products!CM98, FALSE) -> RGBW LED Strip 5m IP20 | E98: =IF(ISBLANK($Q$1),HLOOKUP(Main!$C$2,Translating_products!$EE$4:$EU$216,Translating_products!CM98,FALSE),HLOOKUP($Q$1,Translating_products!$EE$4:$EU$216,Translating_products!CM98,FALSE)) -> 149 | F98: 149 | G98: 0 | H98: Stück-Auswahl Licht | I98: Licht | O98: =B98*4.2 -> 0 | Q98: $
B99: =Calculation!C87 -> 0 | C99: =HLOOKUP(Main!$C$2,Translating_products!$CN$4:$DD$216,Translating_products!CM99, FALSE) -> 200099 | D99: =HLOOKUP(Main!$C$2,Translating_products!$DI$4:$DY$216,Translating_products!CM99, FALSE) -> RGBW LED Strip 5m IP65 | E99: =IF(ISBLANK($Q$1),HLOOKUP(Main!$C$2,Translating_products!$EE$4:$EU$216,Translating_products!CM99,FALSE),HLOOKUP($Q$1,Translating_products!$EE$4:$EU$216,Translating_products!CM99,FALSE)) -> 156 | F99: 156 | G99: 0 | H99: Stück-Auswahl Licht | I99: Licht | O99: 0 | Q99: $
B100: =Calculation!C88 -> 0 | C100: =HLOOKUP(Main!$C$2,Translating_products!$CN$4:$DD$216,Translating_products!CM100, FALSE) -> 200100 | D100: =HLOOKUP(Main!$C$2,Translating_products!$DI$4:$DY$216,Translating_products!CM100, FALSE) -> RGBW LED Strip 5m IP68 | E100: =IF(ISBLANK($Q$1),HLOOKUP(Main!$C$2,Translating_products!$EE$4:$EU$216,Translating_products!CM100,FALSE),HLOOKUP($Q$1,Translating_products!$EE$4:$EU$216,Translating_products!CM100,FALSE)) -> 164 | F100: 164 | G100: 0 | H100: Stück-Auswahl Licht | I100: Licht | O100: 0 | Q100: $
B101: =Calculation!C179 -> 0 | C101: =HLOOKUP(Main!$C$2,Translating_products!$CN$4:$DD$216,Translating_products!CM101, FALSE) -> 200101 | D101: =HLOOKUP(Main!$C$2,Translating_products!$DI$4:$DY$216,Translating_products!CM101, FALSE) -> Water Sensor | E101: =IF(ISBLANK($Q$1),HLOOKUP(Main!$C$2,Translating_products!$EE$4:$EU$216,Translating_products!CM101,FALSE),HLOOKUP($Q$1,Translating_products!$EE$4:$EU$216,Translating_products!CM101,FALSE)) -> 23 | F101: 23 | G101: 0 | H101: Sensoren | I101: Sensoren | K101: 1 | O101: nix | Q101: $
B102: =Calculation!C302 -> 0 | C102: =HLOOKUP(Main!$C$2,Translating_products!$CN$4:$DD$216,Translating_products!CM102, FALSE) -> not available in this country | D102: =IF(ISBLANK(Q1),HLOOKUP(Main!$C$2,Translating_products!$DI$4:$DY$216,Translating_products!CM102,FALSE),"Not available in this country") -> not available in this country | E102: =IF(ISBLANK($Q$1),HLOOKUP(Main!$C$2,Translating_products!$EE$4:$EU$216,Translating_products!CM102,FALSE),HLOOKUP($Q$1,Translating_products!$EE$4:$EU$216,Translating_products!CM102,FALSE)) -> 0 | F102: 0 | G102: 0 | H102: Stück-Auswahl | I102: Sonstiges | O102: nix | Q102: $
B103: =Calculation!C139+Calculation!C180 -> 0 | C103: =HLOOKUP(Main!$C$2,Translating_products!$CN$4:$DD$216,Translating_products!CM103, FALSE) -> 200109 | D103: =HLOOKUP(Main!$C$2,Translating_products!$DI$4:$DY$216,Translating_products!CM103, FALSE) -> Temperature Sensor Set 1-Wire | E103: =IF(ISBLANK($Q$1),HLOOKUP(Main!$C$2,Translating_products!$EE$4:$EU$216,Translating_products!CM103,FALSE),HLOOKUP($Q$1,Translating_products!$EE$4:$EU$216,Translating_products!CM103,FALSE)) -> 53.9 | F103: 53.9 | G103: 0 | H103: 5 Temparaturfühler (11 in der Auswahl = 3 mal Paket (15)) | I103: Heizung | N103: 5 | O103: nix | Q103: $
B104: =Calculation!C123 -> 0 | C104: =HLOOKUP(Main!$C$2,Translating_products!$CN$4:$DD$216,Translating_products!CM104, FALSE) -> 200110 | D104: =HLOOKUP(Main!$C$2,Translating_products!$DI$4:$DY$216,Translating_products!CM104, FALSE) -> Loxone 12 Channel Amplifier | E104: =IF(ISBLANK($Q$1),HLOOKUP(Main!$C$2,Translating_products!$EE$4:$EU$216,Translating_products!CM104,FALSE),HLOOKUP($Q$1,Translating_products!$EE$4:$EU$216,Translating_products!CM104,FALSE)) -> 999 | F104: 999 | G104: 0 | H104: Stück-Auswahl Musik | I104: Musik | O104: nix | Q104: $
B105: =Calculation!C181 -> 0 | C105: =HLOOKUP(Main!$C$2,Translating_products!$CN$4:$DD$216,Translating_products!CM105, FALSE) -> 200112 | D105: =HLOOKUP(Main!$C$2,Translating_products!$DI$4:$DY$216,Translating_products!CM105, FALSE) -> Outside Motion Sensor (24V) | E105: =IF(ISBLANK($Q$1),HLOOKUP(Main!$C$2,Translating_products!$EE$4:$EU$216,Translating_products!CM105,FALSE),HLOOKUP($Q$1,Translating_products!$EE$4:$EU$216,Translating_products!CM105,FALSE)) -> 135 | F105: 135 | G105: 0 | I105: Sensoren | K105: 1 | O105: =B105*0.0033 -> 0 | Q105: $
B106: =Calculation!C183 -> 0 | C106: =HLOOKUP(Main!$C$2,Translating_products!$CN$4:$DD$216,Translating_products!CM106, FALSE) -> 200113 | D106: =HLOOKUP(Main!$C$2,Translating_products!$DI$4:$DY$216,Translating_products!CM106, FALSE) -> Window & Door Contact | E106: =IF(ISBLANK($Q$1),HLOOKUP(Main!$C$2,Translating_products!$EE$4:$EU$216,Translating_products!CM106,FALSE),HLOOKUP($Q$1,Translating_products!$EE$4:$EU$216,Translating_products!CM106,FALSE)) -> 13.5 | F106: 13.5 | G106: 0 | I106: Sensoren | K106: 1 | O106: nix | Q106: $
B107: =Calculation!C215 -> 0 | C107: =HLOOKUP(Main!$C$2,Translating_products!$CN$4:$DD$216,Translating_products!CM107, FALSE) -> 200129 | D107: =HLOOKUP(Main!$C$2,Translating_products!$DI$4:$DY$216,Translating_products!CM107, FALSE) -> Loxone Cat 7 Cable (820ft) | E107: =IF(ISBLANK($Q$1),HLOOKUP(Main!$C$2,Translating_products!$EE$4:$EU$216,Translating_products!CM107,FALSE),HLOOKUP($Q$1,Translating_products!$EE$4:$EU$216,Translating_products!CM107,FALSE)) -> 265 | F107: 265 | G107: 0 | H107: Stück-Auswahl | I107: Sonstiges | O107: nix | Q107: $
B108: =Calculation!C236 -> 0 | C108: =HLOOKUP(Main!$C$2,Translating_products!$CN$4:$DD$216,Translating_products!CM108, FALSE) -> not available in this country | D108: =HLOOKUP(Main!$C$2,Translating_products!$DI$4:$DY$216,Translating_products!CM108, FALSE) -> not available in this country | E108: =IF(ISBLANK($Q$1),HLOOKUP(Main!$C$2,Translating_products!$EE$4:$EU$216,Translating_products!CM108,FALSE),HLOOKUP($Q$1,Translating_products!$EE$4:$EU$216,Translating_products!CM108,FALSE)) -> 0 | F108: 0 | G108: 0 | H108: enocean - extension 1 kanal (für Licht und Temparatur) | I108: Air | N108: 1 | O108: nix | Q108: $
B109: =Calculation!C184 -> 0 | C109: =HLOOKUP(Main!$C$2,Translating_products!$CN$4:$DD$216,Translating_products!CM109, FALSE) -> 200136 | D109: =HLOOKUP(Main!$C$2,Translating_products!$DI$4:$DY$216,Translating_products!CM109, FALSE) -> Temperature & Humidity Sensor For Saunas | E109: =IF(ISBLANK($Q$1),HLOOKUP(Main!$C$2,Translating_products!$EE$4:$EU$216,Translating_products!CM109,FALSE),HLOOKUP($Q$1,Translating_products!$EE$4:$EU$216,Translating_products!CM109,FALSE)) -> 205 | F109: 205 | G109: 0 | I109: Sonstiges | J109: 2 | O109: =0.01*B109 -> 0 | Q109: $
B110: =Calculation!C237 -> 0 | C110: =HLOOKUP(Main!$C$2,Translating_products!$CN$4:$DD$216,Translating_products!CM110, FALSE) -> not available in this country | D110: =HLOOKUP(Main!$C$2,Translating_products!$DI$4:$DY$216,Translating_products!CM110, FALSE) -> not available in this country | E110: =IF(ISBLANK($Q$1),HLOOKUP(Main!$C$2,Translating_products!$EE$4:$EU$216,Translating_products!CM110,FALSE),HLOOKUP($Q$1,Translating_products!$EE$4:$EU$216,Translating_products!CM110,FALSE)) -> 0 | F110: 0 | G110: 0 | H110: enocean - extension 1 kanal (für Licht und Temparatur) | I110: Air | N110: 1 | O110: nix | Q110: $
B111: =Calculation!C303+Calculation!L400 -> 0 | C111: =HLOOKUP(Main!$C$2,Translating_products!$CN$4:$DD$216,Translating_products!CM111, FALSE) -> 200143 | D111: =HLOOKUP(Main!$C$2,Translating_products!$DI$4:$DY$216,Translating_products!CM111, FALSE) -> 24V Power Supply (0.4A) | E111: =IF(ISBLANK($Q$1),HLOOKUP(Main!$C$2,Translating_products!$EE$4:$EU$216,Translating_products!CM111,FALSE),HLOOKUP($Q$1,Translating_products!$EE$4:$EU$216,Translating_products!CM111,FALSE)) -> 36 | F111: 36 | G111: 0 | H111: Stück-Auswahl | I111: Sonstiges | O111: nix | Q111: $
B112: =Calculation!C124 -> 0 | C112: =HLOOKUP(Main!$C$2,Translating_products!$CN$4:$DD$216,Translating_products!CM112, FALSE) -> 200150 | D112: =HLOOKUP(Main!$C$2,Translating_products!$DI$4:$DY$216,Translating_products!CM112, FALSE) -> Loxone Speaker Back Box | E112: =IF(ISBLANK($Q$1),HLOOKUP(Main!$C$2,Translating_products!$EE$4:$EU$216,Translating_products!CM112,FALSE),HLOOKUP($Q$1,Translating_products!$EE$4:$EU$216,Translating_products!CM112,FALSE)) -> 58 | F112: 58 | G112: 0 | H112: Stück-Auswahl Musik (wählt Kunde aus) | I112: Musik | O112: nix | Q112: $
B113: =Calculation!C238 -> 0 | C113: =HLOOKUP(Main!$C$2,Translating_products!$CN$4:$DD$216,Translating_products!CM113, FALSE) -> 200151 | D113: =HLOOKUP(Main!$C$2,Translating_products!$DI$4:$DY$216,Translating_products!CM113, FALSE) -> SMA Antenna 4dBi 868 MHz | E113: =IF(ISBLANK($Q$1),HLOOKUP(Main!$C$2,Translating_products!$EE$4:$EU$216,Translating_products!CM113,FALSE),HLOOKUP($Q$1,Translating_products!$EE$4:$EU$216,Translating_products!CM113,FALSE)) -> 29.9 | F113: 29.9 | G113: 0 | H113: Stück-Auswahl Air | I113: Air | O113: nix | Q113: $
B114: =Calculation!C127 -> 0 | C114: =HLOOKUP(Main!$C$2,Translating_products!$CN$4:$DD$216,Translating_products!CM114, FALSE) -> 200153 | D114: =HLOOKUP(Main!$C$2,Translating_products!$DI$4:$DY$216,Translating_products!CM114, FALSE) -> Loxone Wall Speaker | E114: =IF(ISBLANK($Q$1),HLOOKUP(Main!$C$2,Translating_products!$EE$4:$EU$216,Translating_products!CM114,FALSE),HLOOKUP($Q$1,Translating_products!$EE$4:$EU$216,Translating_products!CM114,FALSE)) -> 149 | F114: 149 | G114: 0 | H114: Stück-Auswahl Musik | I114: Musik | O114: nix | Q114: $
B115: =Calculation!C185 -> 0 | C115: =HLOOKUP(Main!$C$2,Translating_products!$CN$4:$DD$216,Translating_products!CM115, FALSE) -> 200154 | D115: =HLOOKUP(Main!$C$2,Translating_products!$DI$4:$DY$216,Translating_products!CM115, FALSE) -> Pressure Sensor 0-10V | E115: =IF(ISBLANK($Q$1),HLOOKUP(Main!$C$2,Translating_products!$EE$4:$EU$216,Translating_products!CM115,FALSE),HLOOKUP($Q$1,Translating_products!$EE$4:$EU$216,Translating_products!CM115,FALSE)) -> 115 | F115: 115 | G115: 0 | I115: Sensoren | J115: 1 | O115: =B115*0.01 -> 0 | Q115: $
B116: =Calculation!C186 -> 0 | C116: =HLOOKUP(Main!$C$2,Translating_products!$CN$4:$DD$216,Translating_products!CM116, FALSE) -> 200155 | D116: =HLOOKUP(Main!$C$2,Translating_products!$DI$4:$DY$216,Translating_products!CM116, FALSE) -> Glass Break Sensor 24V | E116: =IF(ISBLANK($Q$1),HLOOKUP(Main!$C$2,Translating_products!$EE$4:$EU$216,Translating_products!CM116,FALSE),HLOOKUP($Q$1,Translating_products!$EE$4:$EU$216,Translating_products!CM116,FALSE)) -> 34 | F116: 34 | G116: 0 | I116: Sensoren | K116: 1 | O116: nix | Q116: $
B117: =Calculation!C304 -> 0 | C117: =HLOOKUP(Main!$C$2,Translating_products!$CN$4:$DD$216,Translating_products!CM117, FALSE) -> not available in this country | D117: =HLOOKUP(Main!$C$2,Translating_products!$DI$4:$DY$216,Translating_products!CM117, FALSE) -> not available in this country | E117: =IF(ISBLANK($Q$1),HLOOKUP(Main!$C$2,Translating_products!$EE$4:$EU$216,Translating_products!CM117,FALSE),HLOOKUP($Q$1,Translating_products!$EE$4:$EU$216,Translating_products!CM117,FALSE)) -> 0 | F117: 0 | G117: 0 | H117: selbst auswählen | I117: Sonstiges | O117: nix | Q117: $
B118: =Calculation!C305 -> 0 | C118: =HLOOKUP(Main!$C$2,Translating_products!$CN$4:$DD$216,Translating_products!CM118, FALSE) -> not available in this country | D118: =HLOOKUP(Main!$C$2,Translating_products!$DI$4:$DY$216,Translating_products!CM118, FALSE) -> not available in this country | E118: =IF(ISBLANK($Q$1),HLOOKUP(Main!$C$2,Translating_products!$EE$4:$EU$216,Translating_products!CM118,FALSE),HLOOKUP($Q$1,Translating_products!$EE$4:$EU$216,Translating_products!CM118,FALSE)) -> 0 | F118: 0 | G118: 0 | H118: selbst auswählen | I118: Sonstiges | O118: nix | Q118: $
B119: =Calculation!C334 -> 0 | C119: =HLOOKUP(Main!$C$2,Translating_products!$CN$4:$DD$216,Translating_products!CM119, FALSE) -> not available in this country | D119: =HLOOKUP(Main!$C$2,Translating_products!$DI$4:$DY$216,Translating_products!CM119, FALSE) -> not available in this country | E119: =IF(ISBLANK($Q$1),HLOOKUP(Main!$C$2,Translating_products!$EE$4:$EU$216,Translating_products!CM119,FALSE),HLOOKUP($Q$1,Translating_products!$EE$4:$EU$216,Translating_products!CM119,FALSE)) -> 0 | F119: 0 | G119: 0 | H119: buggy im shop | I119: Sonstiges | O119: nix | Q119: $
B120: =Calculation!C199 -> 0 | C120: =HLOOKUP(Main!$C$2,Translating_products!$CN$4:$DD$216,Translating_products!CM120, FALSE) -> 200168 | D120: =HLOOKUP(Main!$C$2,Translating_products!$DI$4:$DY$216,Translating_products!CM120, FALSE) -> Push In Terminal Block 8x4 Interconnected (20 pcs) | E120: =IF(ISBLANK($Q$1),HLOOKUP(Main!$C$2,Translating_products!$EE$4:$EU$216,Translating_products!CM120,FALSE),HLOOKUP($Q$1,Translating_products!$EE$4:$EU$216,Translating_products!CM120,FALSE)) -> 265 | F120: 265 | G120: 0 | H120: Stück-Auswahl Verteiler | I120: Verteiler | O120: nix | Q120: $
B121: =Calculation!C200 -> 0 | C121: =HLOOKUP(Main!$C$2,Translating_products!$CN$4:$DD$216,Translating_products!CM121, FALSE) -> 200169 | D121: =HLOOKUP(Main!$C$2,Translating_products!$DI$4:$DY$216,Translating_products!CM121, FALSE) -> Push In Terminal Block 8x4 Seperated (20pcs) | E121: =IF(ISBLANK($Q$1),HLOOKUP(Main!$C$2,Translating_products!$EE$4:$EU$216,Translating_products!CM121,FALSE),HLOOKUP($Q$1,Translating_products!$EE$4:$EU$216,Translating_products!CM121,FALSE)) -> 249 | F121: 249 | G121: 0 | H121: Stück-Auswahl Verteiler | I121: Verteiler | O121: nix | Q121: $
B122: =Calculation!C201 -> 0 | C122: =HLOOKUP(Main!$C$2,Translating_products!$CN$4:$DD$216,Translating_products!CM122, FALSE) -> 200170 | D122: =HLOOKUP(Main!$C$2,Translating_products!$DI$4:$DY$216,Translating_products!CM122, FALSE) -> Partition for 8x4 Terminals (10pcs) | E122: =IF(ISBLANK($Q$1),HLOOKUP(Main!$C$2,Translating_products!$EE$4:$EU$216,Translating_products!CM122,FALSE),HLOOKUP($Q$1,Translating_products!$EE$4:$EU$216,Translating_products!CM122,FALSE)) -> 14 | F122: 14 | G122: 0 | H122: Stück-Auswahl Verteiler | I122: Verteiler | O122: nix | Q122: $
B123: =Calculation!C202 -> 0 | C123: =HLOOKUP(Main!$C$2,Translating_products!$CN$4:$DD$216,Translating_products!CM123, FALSE) -> 200171 | D123: =HLOOKUP(Main!$C$2,Translating_products!$DI$4:$DY$216,Translating_products!CM123, FALSE) -> Label Holder 8 Levels (20 pcs) | E123: =IF(ISBLANK($Q$1),HLOOKUP(Main!$C$2,Translating_products!$EE$4:$EU$216,Translating_products!CM123,FALSE),HLOOKUP($Q$1,Translating_products!$EE$4:$EU$216,Translating_products!CM123,FALSE)) -> 34 | F123: 34 | G123: 0 | H123: Stück-Auswahl Verteiler | I123: Verteiler | O123: nix | Q123: $
B124: =Calculation!C203 -> 0 | C124: =HLOOKUP(Main!$C$2,Translating_products!$CN$4:$DD$216,Translating_products!CM124, FALSE) -> 200172 | D124: =HLOOKUP(Main!$C$2,Translating_products!$DI$4:$DY$216,Translating_products!CM124, FALSE) -> End Plate for 8x4 Terminals (10 pcs) | E124: =IF(ISBLANK($Q$1),HLOOKUP(Main!$C$2,Translating_products!$EE$4:$EU$216,Translating_products!CM124,FALSE),HLOOKUP($Q$1,Translating_products!$EE$4:$EU$216,Translating_products!CM124,FALSE)) -> 7 | F124: 7 | G124: 0 | H124: Stück-Auswahl Verteiler | I124: Verteiler | O124: nix | Q124: $
B125: =Calculation!C204 -> 0 | C125: =HLOOKUP(Main!$C$2,Translating_products!$CN$4:$DD$216,Translating_products!CM125, FALSE) -> 200173 | D125: =HLOOKUP(Main!$C$2,Translating_products!$DI$4:$DY$216,Translating_products!CM125, FALSE) -> Push In Terminal Block 3+Earth (50 pcs) | E125: =IF(ISBLANK($Q$1),HLOOKUP(Main!$C$2,Translating_products!$EE$4:$EU$216,Translating_products!CM125,FALSE),HLOOKUP($Q$1,Translating_products!$EE$4:$EU$216,Translating_products!CM125,FALSE)) -> 259 | F125: 259 | G125: 0 | H125: Stück-Auswahl Verteiler | I125: Verteiler | O125: nix | Q125: $
B126: =Calculation!C205 -> 0 | C126: =HLOOKUP(Main!$C$2,Translating_products!$CN$4:$DD$216,Translating_products!CM126, FALSE) -> 200174 | D126: =HLOOKUP(Main!$C$2,Translating_products!$DI$4:$DY$216,Translating_products!CM126, FALSE) -> End Plate for 3+Earth Terminals (20 pcs) | E126: =IF(ISBLANK($Q$1),HLOOKUP(Main!$C$2,Translating_products!$EE$4:$EU$216,Translating_products!CM126,FALSE),HLOOKUP($Q$1,Translating_products!$EE$4:$EU$216,Translating_products!CM126,FALSE)) -> 14 | F126: 14 | G126: 0 | H126: Stück-Auswahl Verteiler | I126: Verteiler | O126: nix | Q126: $
B127: =Calculation!C206 -> 0 | C127: =HLOOKUP(Main!$C$2,Translating_products!$CN$4:$DD$216,Translating_products!CM127, FALSE) -> 200175 | D127: =HLOOKUP(Main!$C$2,Translating_products!$DI$4:$DY$216,Translating_products!CM127, FALSE) -> Push In Terminal Block Twin+Earth (50 pcs) | E127: =IF(ISBLANK($Q$1),HLOOKUP(Main!$C$2,Translating_products!$EE$4:$EU$216,Translating_products!CM127,FALSE),HLOOKUP($Q$1,Translating_products!$EE$4:$EU$216,Translating_products!CM127,FALSE)) -> 141.5 | F127: 141.5 | G127: 0 | H127: Stück-Auswahl Verteiler | I127: Verteiler | O127: nix | Q127: $
B128: =Calculation!C207 -> 0 | C128: =HLOOKUP(Main!$C$2,Translating_products!$CN$4:$DD$216,Translating_products!CM128, FALSE) -> 200176 | D128: =HLOOKUP(Main!$C$2,Translating_products!$DI$4:$DY$216,Translating_products!CM128, FALSE) -> End Plate for Twin+Earth Terminals (20 pcs) | E128: =IF(ISBLANK($Q$1),HLOOKUP(Main!$C$2,Translating_products!$EE$4:$EU$216,Translating_products!CM128,FALSE),HLOOKUP($Q$1,Translating_products!$EE$4:$EU$216,Translating_products!CM128,FALSE)) -> 10 | F128: 10 | G128: 0 | H128: Stück-Auswahl Verteiler | I128: Verteiler | O128: nix | Q128: $
B129: =Calculation!C208 -> 0 | C129: =HLOOKUP(Main!$C$2,Translating_products!$CN$4:$DD$216,Translating_products!CM129, FALSE) -> 200177 | D129: =HLOOKUP(Main!$C$2,Translating_products!$DI$4:$DY$216,Translating_products!CM129, FALSE) -> End Bracket (20 pcs) | E129: =IF(ISBLANK($Q$1),HLOOKUP(Main!$C$2,Translating_products!$EE$4:$EU$216,Translating_products!CM129,FALSE),HLOOKUP($Q$1,Translating_products!$EE$4:$EU$216,Translating_products!CM129,FALSE)) -> 10 | F129: 10 | G129: 0 | H129: Stück-Auswahl Verteiler | I129: Verteiler | O129: nix | Q129: $
B130: =Calculation!C209 -> 0 | C130: =HLOOKUP(Main!$C$2,Translating_products!$CN$4:$DD$216,Translating_products!CM130, FALSE) -> 200178 | D130: =HLOOKUP(Main!$C$2,Translating_products!$DI$4:$DY$216,Translating_products!CM130, FALSE) -> Push in Fused Terminal Block (25 pcs) | E130: =IF(ISBLANK($Q$1),HLOOKUP(Main!$C$2,Translating_products!$EE$4:$EU$216,Translating_products!CM130,FALSE),HLOOKUP($Q$1,Translating_products!$EE$4:$EU$216,Translating_products!CM130,FALSE)) -> 159 | F130: 159 | G130: 0 | H130: Stück-Auswahl Verteiler | I130: Verteiler | O130: nix | Q130: $
B131: =Calculation!C210 -> 0 | C131: =HLOOKUP(Main!$C$2,Translating_products!$CN$4:$DD$216,Translating_products!CM131, FALSE) -> 200179 | D131: =HLOOKUP(Main!$C$2,Translating_products!$DI$4:$DY$216,Translating_products!CM131, FALSE) -> End Plate For Fused Terminals (50 pcs) | E131: =IF(ISBLANK($Q$1),HLOOKUP(Main!$C$2,Translating_products!$EE$4:$EU$216,Translating_products!CM131,FALSE),HLOOKUP($Q$1,Translating_products!$EE$4:$EU$216,Translating_products!CM131,FALSE)) -> 22 | F131: 22 | G131: 0 | H131: Stück-Auswahl Verteiler | I131: Verteiler | O131: nix | Q131: $
B132: =Calculation!C211 -> 0 | C132: =HLOOKUP(Main!$C$2,Translating_products!$CN$4:$DD$216,Translating_products!CM132, FALSE) -> 200180 | D132: =HLOOKUP(Main!$C$2,Translating_products!$DI$4:$DY$216,Translating_products!CM132, FALSE) -> Cross Connector For Fused Terminals (10 pcs) | E132: =IF(ISBLANK($Q$1),HLOOKUP(Main!$C$2,Translating_products!$EE$4:$EU$216,Translating_products!CM132,FALSE),HLOOKUP($Q$1,Translating_products!$EE$4:$EU$216,Translating_products!CM132,FALSE)) -> 79 | F132: 79 | G132: 0 | H132: Stück-Auswahl Verteiler | I132: Verteiler | O132: nix | Q132: $
B133: =Calculation!C212 -> 0 | C133: =HLOOKUP(Main!$C$2,Translating_products!$CN$4:$DD$216,Translating_products!CM133, FALSE) -> 200181 | D133: =HLOOKUP(Main!$C$2,Translating_products!$DI$4:$DY$216,Translating_products!CM133, FALSE) -> Blade Fuse 2A (100 pcs) | E133: =IF(ISBLANK($Q$1),HLOOKUP(Main!$C$2,Translating_products!$EE$4:$EU$216,Translating_products!CM133,FALSE),HLOOKUP($Q$1,Translating_products!$EE$4:$EU$216,Translating_products!CM133,FALSE)) -> 13 | F133: 13 | G133: 0 | H133: Stück-Auswahl Verteiler | I133: Verteiler | O133: nix | Q133: $
B134: =Calculation!C213 -> 0 | C134: =HLOOKUP(Main!$C$2,Translating_products!$CN$4:$DD$216,Translating_products!CM134, FALSE) -> 200183 | D134: =HLOOKUP(Main!$C$2,Translating_products!$DI$4:$DY$216,Translating_products!CM134, FALSE) -> Blade Fuse 5A (100 pcs) | E134: =IF(ISBLANK($Q$1),HLOOKUP(Main!$C$2,Translating_products!$EE$4:$EU$216,Translating_products!CM134,FALSE),HLOOKUP($Q$1,Translating_products!$EE$4:$EU$216,Translating_products!CM134,FALSE)) -> 13 | F134: 13 | G134: 0 | H134: Stück-Auswahl Verteiler | I134: Verteiler | O134: nix | Q134: $
B135: =Calculation!C214 -> 0 | C135: =HLOOKUP(Main!$C$2,Translating_products!$CN$4:$DD$216,Translating_products!CM135, FALSE) -> 200184 | D135: =HLOOKUP(Main!$C$2,Translating_products!$DI$4:$DY$216,Translating_products!CM135, FALSE) -> Blade Fuse 10A (100 pcs) | E135: =IF(ISBLANK($Q$1),HLOOKUP(Main!$C$2,Translating_products!$EE$4:$EU$216,Translating_products!CM135,FALSE),HLOOKUP($Q$1,Translating_products!$EE$4:$EU$216,Translating_products!CM135,FALSE)) -> 13 | F135: 13 | G135: 0 | H135: Stück-Auswahl Verteiler | I135: Verteiler | O135: nix | Q135: $
B136: =Calculation!C335 -> 0 | C136: =HLOOKUP(Main!$C$2,Translating_products!$CN$4:$DD$216,Translating_products!CM136, FALSE) -> 200186 | D136: =HLOOKUP(Main!$C$2,Translating_products!$DI$4:$DY$216,Translating_products!CM136, FALSE) -> Loxone Brochure (25 pcs) | E136: =IF(ISBLANK($Q$1),HLOOKUP(Main!$C$2,Translating_products!$EE$4:$EU$216,Translating_products!CM136,FALSE),HLOOKUP($Q$1,Translating_products!$EE$4:$EU$216,Translating_products!CM136,FALSE)) -> 5 | F136: 5 | G136: 0 | H136: Stück-Auswahl Sonstiges | I136: Sonstiges | O136: nix | Q136: $
B137: =Calculation!C158 -> 0 | C137: =HLOOKUP(Main!$C$2,Translating_products!$CN$4:$DD$216,Translating_products!CM137, FALSE) -> 200191 | D137: =HLOOKUP(Main!$C$2,Translating_products!$DI$4:$DY$216,Translating_products!CM137, FALSE) -> iButton Reader 1-Wire Outdoor | E137: =IF(ISBLANK($Q$1),HLOOKUP(Main!$C$2,Translating_products!$EE$4:$EU$216,Translating_products!CM137,FALSE),HLOOKUP($Q$1,Translating_products!$EE$4:$EU$216,Translating_products!CM137,FALSE)) -> 38 | F137: 38 | G137: 0 | H137: belegt 1 kanal von 1 Wire (Zutritt) | I137: Zutritt | N137: 1 | O137: nix | Q137: $
B138: =Calculation!C309 -> 0 | C138: =HLOOKUP(Main!$C$2,Translating_products!$CN$4:$DD$216,Translating_products!CM138, FALSE) -> not available in this country | D138: =HLOOKUP(Main!$C$2,Translating_products!$DI$4:$DY$216,Translating_products!CM138, FALSE) -> not available in this country | E138: =IF(ISBLANK($Q$1),HLOOKUP(Main!$C$2,Translating_products!$EE$4:$EU$216,Translating_products!CM138,FALSE),HLOOKUP($Q$1,Translating_products!$EE$4:$EU$216,Translating_products!CM138,FALSE)) -> 0 | F138: 0 | G138: 0 | H138: Stück-Auswahl Sonstiges | I138: Sonstiges | O138: nix | Q138: $
B139: =Calculation!C126 -> 0 | C139: =HLOOKUP(Main!$C$2,Translating_products!$CN$4:$DD$216,Translating_products!CM139, FALSE) -> 200202 | D139: =HLOOKUP(Main!$C$2,Translating_products!$DI$4:$DY$216,Translating_products!CM139, FALSE) -> Loxone Speaker Back Box For Suspended Ceilings | E139: =IF(ISBLANK($Q$1),HLOOKUP(Main!$C$2,Translating_products!$EE$4:$EU$216,Translating_products!CM139,FALSE),HLOOKUP($Q$1,Translating_products!$EE$4:$EU$216,Translating_products!CM139,FALSE)) -> 39 | F139: 39 | G139: 0 | H139: Stück-Auswahl Musik | I139: Musik | O139: nix | Q139: $
B140: =Calculation!C89 -> 0 | C140: =HLOOKUP(Main!$C$2,Translating_products!$CN$4:$DD$216,Translating_products!CM140, FALSE) -> 200280 | D140: =HLOOKUP(Main!$C$2,Translating_products!$DI$4:$DY$216,Translating_products!CM140, FALSE) -> LED Strip Accessories Set - RGBW | E140: =IF(ISBLANK($Q$1),HLOOKUP(Main!$C$2,Translating_products!$EE$4:$EU$216,Translating_products!CM140,FALSE),HLOOKUP($Q$1,Translating_products!$EE$4:$EU$216,Translating_products!CM140,FALSE)) -> 19 | F140: 19 | G140: 0 | Q140: $
B141: =Calculation!C90 -> 0 | C141: =HLOOKUP(Main!$C$2,Translating_products!$CN$4:$DD$216,Translating_products!CM141, FALSE) -> 200278 | D141: =HLOOKUP(Main!$C$2,Translating_products!$DI$4:$DY$216,Translating_products!CM141, FALSE) -> LED Strip Accessories Set - Warm White | E141: =IF(ISBLANK($Q$1),HLOOKUP(Main!$C$2,Translating_products!$EE$4:$EU$216,Translating_products!CM141,FALSE),HLOOKUP($Q$1,Translating_products!$EE$4:$EU$216,Translating_products!CM141,FALSE)) -> 14 | F141: 14 | G141: 0 | Q141: $
B142: =Calculation!C308 -> 0 | C142: =IF(ISBLANK($Q$1), HLOOKUP(Main!$C$2,Translating_products!$CN$4:$DD$216,Translating_products!CM142, FALSE), HLOOKUP($Q$1,Translating_products!$CN$4:$DD$216,Translating_products!CM142, FALSE)) -> 200161 | D142: =HLOOKUP(Main!$C$2,Translating_products!$DI$4:$DY$216,Translating_products!CM142, FALSE) -> Power Adapter 24V 6.25A | E142: =IF(ISBLANK($Q$1),HLOOKUP(Main!$C$2,Translating_products!$EE$4:$EU$216,Translating_products!CM142,FALSE),HLOOKUP($Q$1,Translating_products!$EE$4:$EU$216,Translating_products!CM142,FALSE)) -> 84.9 | F142: 84.9 | G142: 0 | Q142: $
B143: =Calculation!C125 -> 0 | C143: =HLOOKUP(Main!$C$2,Translating_products!$CN$4:$DD$216,Translating_products!CM143, FALSE) -> 100205 | D143: =HLOOKUP(Main!$C$2,Translating_products!$DI$4:$DY$216,Translating_products!CM143, FALSE) -> Loxone Music Server Upgrade | E143: =IF(ISBLANK($Q$1),HLOOKUP(Main!$C$2,Translating_products!$EE$4:$EU$216,Translating_products!CM143,FALSE),HLOOKUP($Q$1,Translating_products!$EE$4:$EU$216,Translating_products!CM143,FALSE)) -> 140.09 | F143: 140.09 | G143: 0 | Q143: $
B144: =Calculation!C159 -> 0 | C144: =IF(ISBLANK($Q$1),HLOOKUP(Main!$C$2,Translating_products!$CN$4:$DD$216,Translating_products!CM144,FALSE),HLOOKUP($Q$1,Translating_products!$CN$4:$DD$216,Translating_products!CM144,FALSE)) -> 200274 | D144: =HLOOKUP(Main!$C$2,Translating_products!$DI$4:$DY$216,Translating_products!CM144, FALSE) -> Loxone Intercom XL | E144: =IF(ISBLANK($Q$1),HLOOKUP(Main!$C$2,Translating_products!$EE$4:$EU$216,Translating_products!CM144,FALSE),HLOOKUP($Q$1,Translating_products!$EE$4:$EU$216,Translating_products!CM144,FALSE)) -> 1269 | F144: 1269 | G144: 0 | H144: Stück-Auswähl Zutritt | I144: Zutritt | O144: nix | Q144: $
B145: =Calculation!C244 -> 0 | C145: =HLOOKUP(Main!$C$2,Translating_products!$CN$4:$DD$216,Translating_products!CM145, FALSE) -> 100190 | D145: =HLOOKUP(Main!$C$2,Translating_products!$DI$4:$DY$216,Translating_products!CM145, FALSE) -> Motion Sensor Air | E145: =IF(ISBLANK($Q$1),HLOOKUP(Main!$C$2,Translating_products!$EE$4:$EU$216,Translating_products!CM145,FALSE),HLOOKUP($Q$1,Translating_products!$EE$4:$EU$216,Translating_products!CM145,FALSE)) -> 95 | F145: 95 | G145: 0 | N145: 1 | Q145: $
B146: =Calculation!C310 -> 0 | C146: =HLOOKUP(Main!$C$2,Translating_products!$CN$4:$DD$216,Translating_products!CM146, FALSE) -> 200281 | D146: =HLOOKUP(Main!$C$2,Translating_products!$DI$4:$DY$216,Translating_products!CM146, FALSE) -> NFC Smart Tags | E146: =IF(ISBLANK($Q$1),HLOOKUP(Main!$C$2,Translating_products!$EE$4:$EU$216,Translating_products!CM146,FALSE),HLOOKUP($Q$1,Translating_products!$EE$4:$EU$216,Translating_products!CM146,FALSE)) -> 26 | F146: 26 | G146: 0 | Q146: $
B147: =Calculation!C93 -> 0 | C147: =HLOOKUP(Main!$C$2,Translating_products!$CN$4:$DD$216,Translating_products!CM147, FALSE) -> 100204 | D147: =HLOOKUP(Main!$C$2,Translating_products!$DI$4:$DY$216,Translating_products!CM147, FALSE) -> LED Spot RGBW | E147: =IF(ISBLANK($Q$1),HLOOKUP(Main!$C$2,Translating_products!$EE$4:$EU$216,Translating_products!CM147,FALSE),HLOOKUP($Q$1,Translating_products!$EE$4:$EU$216,Translating_products!CM147,FALSE)) -> 55 | F147: 55 | G147: 0 | Q147: $
B148: =Calculation!C94 -> 0 | C148: =HLOOKUP(Main!$C$2,Translating_products!$CN$4:$DD$216,Translating_products!CM148, FALSE) -> 100203 | D148: =HLOOKUP(Main!$C$2,Translating_products!$DI$4:$DY$216,Translating_products!CM148, FALSE) -> LED Spot Warm White | E148: =IF(ISBLANK($Q$1),HLOOKUP(Main!$C$2,Translating_products!$EE$4:$EU$216,Translating_products!CM148,FALSE),HLOOKUP($Q$1,Translating_products!$EE$4:$EU$216,Translating_products!CM148,FALSE)) -> 39 | F148: 39 | G148: 0 | Q148: $
B149: =Calculation!C311 -> 0 | C149: =HLOOKUP(Main!$C$2,Translating_products!$CN$4:$DD$216,Translating_products!CM149, FALSE) -> not available in this country | D149: =HLOOKUP(Main!$C$2,Translating_products!$DI$4:$DY$216,Translating_products!CM149, FALSE) -> not available in this country | E149: =IF(ISBLANK($Q$1),HLOOKUP(Main!$C$2,Translating_products!$EE$4:$EU$216,Translating_products!CM149,FALSE),HLOOKUP($Q$1,Translating_products!$EE$4:$EU$216,Translating_products!CM149,FALSE)) -> 0 | F149: 0 | G149: 0 | Q149: $
B150: =Calculation!C260+Calculation!C44+Calculation!C394 -> 0 | C150: =HLOOKUP(Main!$C$2,Translating_products!$CN$4:$DD$216,Translating_products!CM150, FALSE) -> 100218 | D150: =HLOOKUP(Main!$C$2,Translating_products!$DI$4:$DY$216,Translating_products!CM150, FALSE) -> Tree Extension | E150: =IF(ISBLANK($Q$1),HLOOKUP(Main!$C$2,Translating_products!$EE$4:$EU$216,Translating_products!CM150,FALSE),HLOOKUP($Q$1,Translating_products!$EE$4:$EU$216,Translating_products!CM150,FALSE)) -> 99 | F150: 99 | G150: 0 | I150: Tree | N150: 100 | O150: 0.0048 | Q150: $
B151: =Calculation!C261+Calculation!C366 -> 0 | C151: =HLOOKUP(Main!$C$2,Translating_products!$CN$4:$DD$216,Translating_products!CM151, FALSE) -> 100221 | D151: =HLOOKUP(Main!$C$2,Translating_products!$DI$4:$DY$216,Translating_products!CM151, FALSE) -> Touch Tree White | E151: =IF(ISBLANK($Q$1),HLOOKUP(Main!$C$2,Translating_products!$EE$4:$EU$216,Translating_products!CM151,FALSE),HLOOKUP($Q$1,Translating_products!$EE$4:$EU$216,Translating_products!CM151,FALSE)) -> 79 | F151: 79 | G151: 0 | I151: Tree | N151: 1 | O151: 0.0048 | Q151: $
B152: =Calculation!C262+Calculation!C369 -> 0 | C152: =HLOOKUP(Main!$C$2,Translating_products!$CN$4:$DD$216,Translating_products!CM152, FALSE) -> 100222 | D152: =HLOOKUP(Main!$C$2,Translating_products!$DI$4:$DY$216,Translating_products!CM152, FALSE) -> Touch Tree Black | E152: =IF(ISBLANK($Q$1),HLOOKUP(Main!$C$2,Translating_products!$EE$4:$EU$216,Translating_products!CM152,FALSE),HLOOKUP($Q$1,Translating_products!$EE$4:$EU$216,Translating_products!CM152,FALSE)) -> 79 | F152: 79 | G152: 0 | I152: Tree | N152: 1 | O152: 0.0048 | Q152: $
B153: =Calculation!C263+Calculation!C188 -> 0 | C153: =HLOOKUP(Main!$C$2,Translating_products!$CN$4:$DD$216,Translating_products!CM153, FALSE) -> 100223 | D153: =HLOOKUP(Main!$C$2,Translating_products!$DI$4:$DY$216,Translating_products!CM153, FALSE) -> Motion Sensor Tree White | E153: =IF(ISBLANK($Q$1),HLOOKUP(Main!$C$2,Translating_products!$EE$4:$EU$216,Translating_products!CM153,FALSE),HLOOKUP($Q$1,Translating_products!$EE$4:$EU$216,Translating_products!CM153,FALSE)) -> 86 | F153: 86 | G153: 0 | I153: Tree | N153: 1 | O153: 0.0048 | Q153: $
B154: =Calculation!C264+Calculation!C140 -> 0 | C154: =HLOOKUP(Main!$C$2,Translating_products!$CN$4:$DD$216,Translating_products!CM154, FALSE) -> 100225 | D154: =HLOOKUP(Main!$C$2,Translating_products!$DI$4:$DY$216,Translating_products!CM154, FALSE) -> Valve Actuator Tree | E154: =IF(ISBLANK($Q$1),HLOOKUP(Main!$C$2,Translating_products!$EE$4:$EU$216,Translating_products!CM154,FALSE),HLOOKUP($Q$1,Translating_products!$EE$4:$EU$216,Translating_products!CM154,FALSE)) -> 76 | F154: 76 | G154: 0 | I154: Tree | N154: 1 | O154: 0.0625 | Q154: $
B155: =Calculation!C246+Calculation!C189 -> 0 | C155: =HLOOKUP(Main!$C$2,Translating_products!$CN$4:$DD$216,Translating_products!CM155, FALSE) -> 100211 | D155: =HLOOKUP(Main!$C$2,Translating_products!$DI$4:$DY$216,Translating_products!CM155, FALSE) -> Water Sensor Air | E155: =IF(ISBLANK($Q$1),HLOOKUP(Main!$C$2,Translating_products!$EE$4:$EU$216,Translating_products!CM155,FALSE),HLOOKUP($Q$1,Translating_products!$EE$4:$EU$216,Translating_products!CM155,FALSE)) -> 59 | F155: 59 | G155: 0 | I155: Air | N155: 1 | Q155: $
B156: =Calculation!C247+Calculation!C190 -> 0 | C156: =HLOOKUP(Main!$C$2,Translating_products!$CN$4:$DD$216,Translating_products!CM156, FALSE) -> 100213 | D156: =HLOOKUP(Main!$C$2,Translating_products!$DI$4:$DY$216,Translating_products!CM156, FALSE) -> Door & Window Contact Air Black | E156: =IF(ISBLANK($Q$1),HLOOKUP(Main!$C$2,Translating_products!$EE$4:$EU$216,Translating_products!CM156,FALSE),HLOOKUP($Q$1,Translating_products!$EE$4:$EU$216,Translating_products!CM156,FALSE)) -> 59 | F156: 59 | G156: 0 | I156: Air | N156: 1 | Q156: $
B157: =Calculation!C248+Calculation!C191 -> 0 | C157: =HLOOKUP(Main!$C$2,Translating_products!$CN$4:$DD$216,Translating_products!CM157, FALSE) -> 100210 | D157: =HLOOKUP(Main!$C$2,Translating_products!$DI$4:$DY$216,Translating_products!CM157, FALSE) -> Door & Window Contact Air White | E157: =IF(ISBLANK($Q$1),HLOOKUP(Main!$C$2,Translating_products!$EE$4:$EU$216,Translating_products!CM157,FALSE),HLOOKUP($Q$1,Translating_products!$EE$4:$EU$216,Translating_products!CM157,FALSE)) -> 59 | F157: 59 | G157: 0 | I157: Air | N157: 1 | Q157: $
B158: =Calculation!C265+Calculation!C187 -> 0 | C158: =HLOOKUP(Main!$C$2,Translating_products!$CN$4:$DD$216,Translating_products!CM158, FALSE) -> 100224 | D158: =HLOOKUP(Main!$C$2,Translating_products!$DI$4:$DY$216,Translating_products!CM158, FALSE) -> Motion Sensor Tree Black | E158: =IF(ISBLANK($Q$1),HLOOKUP(Main!$C$2,Translating_products!$EE$4:$EU$216,Translating_products!CM158,FALSE),HLOOKUP($Q$1,Translating_products!$EE$4:$EU$216,Translating_products!CM158,FALSE)) -> 86 | F158: 86 | G158: 0 | Q158: $
B159: =Calculation!C217 -> 0 | C159: =HLOOKUP(Main!$C$2,Translating_products!$CN$4:$DD$216,Translating_products!CM159, FALSE) -> 200204 | D159: =HLOOKUP(Main!$C$2,Translating_products!$DI$4:$DY$216,Translating_products!CM159, FALSE) -> Cross Connector for Mains Terminals (20 pcs) | E159: =IF(ISBLANK($Q$1),HLOOKUP(Main!$C$2,Translating_products!$EE$4:$EU$216,Translating_products!CM159,FALSE),HLOOKUP($Q$1,Translating_products!$EE$4:$EU$216,Translating_products!CM159,FALSE)) -> 96 | F159: 96 | G159: 0 | Q159: $
B160: =Calculation!C395+Calculation!C45 -> 0 | C160: =HLOOKUP(Main!$C$2,Translating_products!$CN$4:$DD$216,Translating_products!CM160, FALSE) -> 100200 | D160: =HLOOKUP(Main!$C$2,Translating_products!$DI$4:$DY$216,Translating_products!CM160, FALSE) -> Dali Extension | E160: =IF(ISBLANK($Q$1),HLOOKUP(Main!$C$2,Translating_products!$EE$4:$EU$216,Translating_products!CM160,FALSE),HLOOKUP($Q$1,Translating_products!$EE$4:$EU$216,Translating_products!CM160,FALSE)) -> 499 | F160: 499 | G160: 0 | Q160: $
B161: =Calculation!C312 -> 0 | C161: =HLOOKUP(Main!$C$2,Translating_products!$CN$4:$DD$216,Translating_products!CM161, FALSE) -> 200297 | D161: =HLOOKUP(Main!$C$2,Translating_products!$DI$4:$DY$216,Translating_products!CM161, FALSE) -> 24V LED Power Supply (2.5A) | E161: =IF(ISBLANK($Q$1),HLOOKUP(Main!$C$2,Translating_products!$EE$4:$EU$216,Translating_products!CM161,FALSE),HLOOKUP($Q$1,Translating_products!$EE$4:$EU$216,Translating_products!CM161,FALSE)) -> 35 | F161: 35 | G161: 0 | Q161: $
B162: =Calculation!C266+Calculation!C250+Calculation!C370 -> 0 | C162: =HLOOKUP(Main!$C$2,Translating_products!$CN$4:$DD$216,Translating_products!CM162, FALSE) -> 100206 | D162: =HLOOKUP(Main!$C$2,Translating_products!$DI$4:$DY$216,Translating_products!CM162, FALSE) -> Touch pure Air White | E162: =IF(ISBLANK($Q$1),HLOOKUP(Main!$C$2,Translating_products!$EE$4:$EU$216,Translating_products!CM162,FALSE),HLOOKUP($Q$1,Translating_products!$EE$4:$EU$216,Translating_products!CM162,FALSE)) -> 179 | F162: 179 | G162: 0 | Q162: $
B163: =Calculation!C266+Calculation!C249+Calculation!C367 -> 0 | C163: =HLOOKUP(Main!$C$2,Translating_products!$CN$4:$DD$216,Translating_products!CM163, FALSE) -> 100207 | D163: =HLOOKUP(Main!$C$2,Translating_products!$DI$4:$DY$216,Translating_products!CM163, FALSE) -> Touch pure for Nano White | E163: =IF(ISBLANK($Q$1),HLOOKUP(Main!$C$2,Translating_products!$EE$4:$EU$216,Translating_products!CM163,FALSE),HLOOKUP($Q$1,Translating_products!$EE$4:$EU$216,Translating_products!CM163,FALSE)) -> 119 | F163: 119 | G163: 0 | Q163: $
B164: =Calculation!C267+Calculation!C368 -> 0 | C164: =HLOOKUP(Main!$C$2,Translating_products!$CN$4:$DD$216,Translating_products!CM164, FALSE) -> 100219 | D164: =HLOOKUP(Main!$C$2,Translating_products!$DI$4:$DY$216,Translating_products!CM164, FALSE) -> Touch pure Tree White | E164: =IF(ISBLANK($Q$1),HLOOKUP(Main!$C$2,Translating_products!$EE$4:$EU$216,Translating_products!CM164,FALSE),HLOOKUP($Q$1,Translating_products!$EE$4:$EU$216,Translating_products!CM164,FALSE)) -> 179 | F164: 179 | G164: 0 | Q164: $
B165: =Calculation!C396 -> 0 | C165: =HLOOKUP(Main!$C$2,Translating_products!$CN$4:$DD$216,Translating_products!CM165, FALSE) -> not available in this country | D165: =IF(ISBLANK(Q1), HLOOKUP(Main!$C$2,Translating_products!$DI$4:$DY$216,Translating_products!CM165, FALSE),"Not available in this country") -> not available in this country | E165: =IF(ISBLANK($Q$1),HLOOKUP(Main!$C$2,Translating_products!$EE$4:$EU$216,Translating_products!CM165,FALSE),HLOOKUP($Q$1,Translating_products!$EE$4:$EU$216,Translating_products!CM165,FALSE)) -> 0 | F165: 0 | G165: 0 | Q165: $
B166: =Calculation!C251 -> 0 | C166: =HLOOKUP(Main!$C$2,Translating_products!$CN$4:$DD$216,Translating_products!CM166, FALSE) -> not available in this country | D166: =HLOOKUP(Main!$C$2,Translating_products!$DI$4:$DY$216,Translating_products!CM166, FALSE) -> not available in this country | E166: =IF(ISBLANK($Q$1),HLOOKUP(Main!$C$2,Translating_products!$EE$4:$EU$216,Translating_products!CM166,FALSE),HLOOKUP($Q$1,Translating_products!$EE$4:$EU$216,Translating_products!CM166,FALSE)) -> 0 | F166: 0 | G166: 0 | Q166: $
B167: =Calculation!C313 -> 0 | C167: =HLOOKUP(Main!$C$2,Translating_products!$CN$4:$DD$216,Translating_products!CM167, FALSE) -> 200300 | D167: =HLOOKUP(Main!$C$2,Translating_products!$DI$4:$DY$216,Translating_products!CM167, FALSE) -> Panel wire (328ft) blue/white | E167: =IF(ISBLANK($Q$1),HLOOKUP(Main!$C$2,Translating_products!$EE$4:$EU$216,Translating_products!CM167,FALSE),HLOOKUP($Q$1,Translating_products!$EE$4:$EU$216,Translating_products!CM167,FALSE)) -> 30.5 | F167: 30.5 | G167: 0 | Q167: $
B168: =Calculation!C314 -> 0 | C168: =HLOOKUP(Main!$C$2,Translating_products!$CN$4:$DD$216,Translating_products!CM168, FALSE) -> 200301 | D168: =HLOOKUP(Main!$C$2,Translating_products!$DI$4:$DY$216,Translating_products!CM168, FALSE) -> Panel wire (328ft) orange/white | E168: =IF(ISBLANK($Q$1),HLOOKUP(Main!$C$2,Translating_products!$EE$4:$EU$216,Translating_products!CM168,FALSE),HLOOKUP($Q$1,Translating_products!$EE$4:$EU$216,Translating_products!CM168,FALSE)) -> 30.5 | F168: 30.5 | G168: 0 | Q168: $
B169: =Calculation!C315 -> 0 | C169: =HLOOKUP(Main!$C$2,Translating_products!$CN$4:$DD$216,Translating_products!CM169, FALSE) -> 200302 | D169: =HLOOKUP(Main!$C$2,Translating_products!$DI$4:$DY$216,Translating_products!CM169, FALSE) -> Panel wire (328ft) green/white | E169: =IF(ISBLANK($Q$1),HLOOKUP(Main!$C$2,Translating_products!$EE$4:$EU$216,Translating_products!CM169,FALSE),HLOOKUP($Q$1,Translating_products!$EE$4:$EU$216,Translating_products!CM169,FALSE)) -> 30.5 | F169: 30.5 | G169: 0 | Q169: $
B170: =Calculation!C316 -> 0 | C170: =HLOOKUP(Main!$C$2,Translating_products!$CN$4:$DD$216,Translating_products!CM170, FALSE) -> not available in this country | D170: =HLOOKUP(Main!$C$2,Translating_products!$DI$4:$DY$216,Translating_products!CM170, FALSE) -> not available in this country | E170: =IF(ISBLANK($Q$1),HLOOKUP(Main!$C$2,Translating_products!$EE$4:$EU$216,Translating_products!CM170,FALSE),HLOOKUP($Q$1,Translating_products!$EE$4:$EU$216,Translating_products!CM170,FALSE)) -> 0 | F170: 0 | G170: 0 | Q170: $
B171: =Calculation!C317 -> 0 | C171: =HLOOKUP(Main!$C$2,Translating_products!$CN$4:$DD$216,Translating_products!CM171, FALSE) -> not available in this country | D171: =HLOOKUP(Main!$C$2,Translating_products!$DI$4:$DY$216,Translating_products!CM171, FALSE) -> not available in this country | E171: =IF(ISBLANK($Q$1),HLOOKUP(Main!$C$2,Translating_products!$EE$4:$EU$216,Translating_products!CM171,FALSE),HLOOKUP($Q$1,Translating_products!$EE$4:$EU$216,Translating_products!CM171,FALSE)) -> 0 | F171: 0 | G171: 0 | Q171: $
B172: =Calculation!C318 -> 0 | C172: =HLOOKUP(Main!$C$2,Translating_products!$CN$4:$DD$216,Translating_products!CM172, FALSE) -> not available in this country | D172: =HLOOKUP(Main!$C$2,Translating_products!$DI$4:$DY$216,Translating_products!CM172, FALSE) -> not available in this country | E172: =IF(ISBLANK($Q$1),HLOOKUP(Main!$C$2,Translating_products!$EE$4:$EU$216,Translating_products!CM172,FALSE),HLOOKUP($Q$1,Translating_products!$EE$4:$EU$216,Translating_products!CM172,FALSE)) -> 0 | F172: 0 | G172: 0 | Q172: $
B173: =Calculation!C319 -> 0 | C173: =HLOOKUP(Main!$C$2,Translating_products!$CN$4:$DD$216,Translating_products!CM173, FALSE) -> not available in this country | D173: =HLOOKUP(Main!$C$2,Translating_products!$DI$4:$DY$216,Translating_products!CM173, FALSE) -> not available in this country | E173: =IF(ISBLANK($Q$1),HLOOKUP(Main!$C$2,Translating_products!$EE$4:$EU$216,Translating_products!CM173,FALSE),HLOOKUP($Q$1,Translating_products!$EE$4:$EU$216,Translating_products!CM173,FALSE)) -> 0 | F173: 0 | G173: 0 | Q173: $
B174: =Calculation!C320 -> 0 | C174: =HLOOKUP(Main!$C$2,Translating_products!$CN$4:$DD$216,Translating_products!CM174, FALSE) -> not available in this country | D174: =HLOOKUP(Main!$C$2,Translating_products!$DI$4:$DY$216,Translating_products!CM174, FALSE) -> not available in this country | E174: =IF(ISBLANK($Q$1),HLOOKUP(Main!$C$2,Translating_products!$EE$4:$EU$216,Translating_products!CM174,FALSE),HLOOKUP($Q$1,Translating_products!$EE$4:$EU$216,Translating_products!CM174,FALSE)) -> 0 | F174: 0 | G174: 0 | Q174: $
B175: =Calculation!C268 -> 0 | C175: =HLOOKUP(Main!$C$2,Translating_products!$CN$4:$DD$216,Translating_products!CM175, FALSE) -> 100242 | D175: =HLOOKUP(Main!$C$2,Translating_products!$DI$4:$DY$216,Translating_products!CM175, FALSE) -> Nano DI Tree | E175: =IF(ISBLANK($Q$1),HLOOKUP(Main!$C$2,Translating_products!$EE$4:$EU$216,Translating_products!CM175,FALSE),HLOOKUP($Q$1,Translating_products!$EE$4:$EU$216,Translating_products!CM175,FALSE)) -> 69 | F175: 69 | G175: 0 | Q175: $
B176: =IF(ISBLANK(Q1),0,Calculation!C321) -> 0 | C176: =IF(ISBLANK(Q1),"0","100294") -> 0 | D176: =IF(ISBLANK(Q1),"not available in this country", HLOOKUP(Main!$C$2,Translating_products!$DI$4:$DY$216,Translating_products!CM176, FALSE)) -> not available in this country | E176: =IF(ISBLANK(Q1),"0",IF(ISBLANK($Q$1),HLOOKUP(Main!$C$2,Translating_products!$EE$4:$EU$216,Translating_products!CM176,FALSE),HLOOKUP($Q$1,Translating_products!$EE$4:$EU$216,Translating_products!CM176,FALSE))) -> 0 | F176: 0 | G176: 0 | Q176: $
B177: =Calculation!C371+Calculation!C252 -> 0 | C177: =HLOOKUP(Main!$C$2,Translating_products!$CN$4:$DD$216,Translating_products!CM177, FALSE) -> 100209 | D177: =HLOOKUP(Main!$C$2,Translating_products!$DI$4:$DY$216,Translating_products!CM177, FALSE) -> Touch pure Nano Black | E177: =IF(ISBLANK($Q$1),HLOOKUP(Main!$C$2,Translating_products!$EE$4:$EU$216,Translating_products!CM177,FALSE),HLOOKUP($Q$1,Translating_products!$EE$4:$EU$216,Translating_products!CM177,FALSE)) -> 119 | F177: 119 | G177: 0 | Q177: $
B178: =Calculation!C372+Calculation!C269 -> 0 | C178: =HLOOKUP(Main!$C$2,Translating_products!$CN$4:$DD$216,Translating_products!CM178, FALSE) -> 100220 | D178: =HLOOKUP(Main!$C$2,Translating_products!$DI$4:$DY$216,Translating_products!CM178, FALSE) -> Touch pure Tree Black | E178: =IF(ISBLANK($Q$1),HLOOKUP(Main!$C$2,Translating_products!$EE$4:$EU$216,Translating_products!CM178,FALSE),HLOOKUP($Q$1,Translating_products!$EE$4:$EU$216,Translating_products!CM178,FALSE)) -> 179 | F178: 179 | G178: 0 | Q178: $
B179: =Calculation!C253+Calculation!C373 -> 0 | C179: =HLOOKUP(Main!$C$2,Translating_products!$CN$4:$DD$216,Translating_products!CM179, FALSE) -> 100208 | D179: =HLOOKUP(Main!$C$2,Translating_products!$DI$4:$DY$216,Translating_products!CM179, FALSE) -> Touch pure Air Black | E179: =IF(ISBLANK($Q$1),HLOOKUP(Main!$C$2,Translating_products!$EE$4:$EU$216,Translating_products!CM179,FALSE),HLOOKUP($Q$1,Translating_products!$EE$4:$EU$216,Translating_products!CM179,FALSE)) -> 179 | F179: 179 | G179: 0 | Q179: $
B180: =Calculation!C96 -> 0 | C180: =HLOOKUP(Main!$C$2,Translating_products!$CN$4:$DD$216,Translating_products!CM180, FALSE) -> 100235 | D180: =HLOOKUP(Main!$C$2,Translating_products!$DI$4:$DY$216,Translating_products!CM180, FALSE) -> LED Ceiling Spot RGBW | E180: =IF(ISBLANK($Q$1),HLOOKUP(Main!$C$2,Translating_products!$EE$4:$EU$216,Translating_products!CM180,FALSE),HLOOKUP($Q$1,Translating_products!$EE$4:$EU$216,Translating_products!CM180,FALSE)) -> 89 | F180: 89 | G180: 0 | Q180: $
B181: =Calculation!C97 -> 0 | C181: =HLOOKUP(Main!$C$2,Translating_products!$CN$4:$DD$216,Translating_products!CM181, FALSE) -> 100236 | D181: =HLOOKUP(Main!$C$2,Translating_products!$DI$4:$DY$216,Translating_products!CM181, FALSE) -> LED Ceiling Spot WW | E181: =IF(ISBLANK($Q$1),HLOOKUP(Main!$C$2,Translating_products!$EE$4:$EU$216,Translating_products!CM181,FALSE),HLOOKUP($Q$1,Translating_products!$EE$4:$EU$216,Translating_products!CM181,FALSE)) -> 69 | F181: 69 | G181: 0 | Q181: $
B182: =Calculation!C98 -> 0 | C182: =HLOOKUP(Main!$C$2,Translating_products!$CN$4:$DD$216,Translating_products!CM182, FALSE) -> 100237 | D182: =HLOOKUP(Main!$C$2,Translating_products!$DI$4:$DY$216,Translating_products!CM182, FALSE) -> LED Ceiling Spot Tree RGBW | E182: =IF(ISBLANK($Q$1),HLOOKUP(Main!$C$2,Translating_products!$EE$4:$EU$216,Translating_products!CM182,FALSE),HLOOKUP($Q$1,Translating_products!$EE$4:$EU$216,Translating_products!CM182,FALSE)) -> 139 | F182: 139 | G182: 0 | Q182: $
B183: =Calculation!C99 -> 0 | C183: =HLOOKUP(Main!$C$2,Translating_products!$CN$4:$DD$216,Translating_products!CM183, FALSE) -> 100238 | D183: =HLOOKUP(Main!$C$2,Translating_products!$DI$4:$DY$216,Translating_products!CM183, FALSE) -> LED Ceiling Spot Tree WW | E183: =IF(ISBLANK($Q$1),HLOOKUP(Main!$C$2,Translating_products!$EE$4:$EU$216,Translating_products!CM183,FALSE),HLOOKUP($Q$1,Translating_products!$EE$4:$EU$216,Translating_products!CM183,FALSE)) -> 109 | F183: 109 | G183: 0 | Q183: $
B184: =Calculation!C100 -> 0 | C184: =HLOOKUP(Main!$C$2,Translating_products!$CN$4:$DD$216,Translating_products!CM184, FALSE) -> 100268 | D184: =HLOOKUP(Main!$C$2,Translating_products!$DI$4:$DY$216,Translating_products!CM184, FALSE) -> LED Spot Tree WW | E184: =IF(ISBLANK($Q$1),HLOOKUP(Main!$C$2,Translating_products!$EE$4:$EU$216,Translating_products!CM184,FALSE),HLOOKUP($Q$1,Translating_products!$EE$4:$EU$216,Translating_products!CM184,FALSE)) -> 69 | F184: 69 | G184: 0 | Q184: $
B185: =Calculation!C101 -> 0 | C185: =HLOOKUP(Main!$C$2,Translating_products!$CN$4:$DD$216,Translating_products!CM185, FALSE) -> 100269 | D185: =HLOOKUP(Main!$C$2,Translating_products!$DI$4:$DY$216,Translating_products!CM185, FALSE) -> LED Spot Tree RGBW | E185: =IF(ISBLANK($Q$1),HLOOKUP(Main!$C$2,Translating_products!$EE$4:$EU$216,Translating_products!CM185,FALSE),HLOOKUP($Q$1,Translating_products!$EE$4:$EU$216,Translating_products!CM185,FALSE)) -> 89 | F185: 89 | G185: 0 | Q185: $
B186: =Calculation!C102+Calculation!C274 -> 0 | C186: =HLOOKUP(Main!$C$2,Translating_products!$CN$4:$DD$216,Translating_products!CM186, FALSE) -> 100239 | D186: =HLOOKUP(Main!$C$2,Translating_products!$DI$4:$DY$216,Translating_products!CM186, FALSE) -> RGBW 24V Dimmer Tree | E186: =IF(ISBLANK($Q$1),HLOOKUP(Main!$C$2,Translating_products!$EE$4:$EU$216,Translating_products!CM186,FALSE),HLOOKUP($Q$1,Translating_products!$EE$4:$EU$216,Translating_products!CM186,FALSE)) -> 69 | F186: 69 | G186: 0 | Q186: $
B187: =Calculation!C254+Calculation!C194 -> 0 | C187: =HLOOKUP(Main!$C$2,Translating_products!$CN$4:$DD$216,Translating_products!CM189, FALSE) -> 100177 | D187: =HLOOKUP(Main!$C$2,Translating_products!$DI$4:$DY$216,Translating_products!CM189, FALSE) -> Window Handle Air | E187: =IF(ISBLANK($Q$1),HLOOKUP(Main!$C$2,Translating_products!$EE$4:$EU$216,Translating_products!CM189,FALSE),HLOOKUP($Q$1,Translating_products!$EE$4:$EU$216,Translating_products!CM189,FALSE)) -> 139 | F187: 139 | G187: 0 | Q187: $
D188: =VLOOKUP(Main!C2,Translating_general!A77:AF94,9,FALSE) -> Total without taxes | G188: =SUMPRODUCT(B7:B187,E7:E187) -> 0 | Q188: $
D189: =IF(ISBLANK($Q$1),VLOOKUP(Main!C2,Translating_general!A77:IH97,37,FALSE),VLOOKUP(Q1,Translating_general!A77:IH96,37,FALSE)) -> Discount | F189: % | G189: =G188/100*E189 -> 0 | Q189: $
D190: =IF(ISBLANK($Q$1),VLOOKUP(Main!C2,Translating_general!A77:IH97,38,FALSE),VLOOKUP(Q1,Translating_general!A77:IH96,38,FALSE)) -> Discounted Price | G190: =G188-G189 -> 0 | Q190: $
D191: =VLOOKUP(Main!C2,Translating_general!A77:AF94,10,FALSE) -> + Taxes | E191: =IF(ISBLANK($Q$1),VLOOKUP(Main!C2,Translating_general!A77:IH94,35,FALSE),VLOOKUP(Q1,Translating_general!A77:IH94,35,FALSE)) ->  | F191: % | G191: =G190*(1+E191*0.01)-G190 -> 0 | Q191: $
D192: =VLOOKUP(Main!C2,Translating_general!A77:AF94,11,FALSE) -> Total with taxes | G192: =G190+G191 -> 0 | Q192: $
C195: =VLOOKUP(Main!C2,Translating_general!A77:AF94,12,FALSE) -> Available | E195: =VLOOKUP(Main!C2,Translating_general!A77:AF94,13,FALSE) -> Needed | F195: =VLOOKUP(Main!C2,Translating_general!A77:AF94,14,FALSE) -> Left
C196: =Calculation!D52 -> 0 | D196: =VLOOKUP(Main!C2,Translating_general!A77:AF94,15,FALSE) -> Analog Inputs | E196: =Calculation!D53 -> 0 | F196: =Calculation!D54 -> 0
C197: =Calculation!E52 -> 0 | D197: =VLOOKUP(Main!C2,Translating_general!A77:AF94,16,FALSE) -> Digital Inputs | E197: =Calculation!E53 -> 0 | F197: =Calculation!E54 -> 0
C198: =Calculation!F52 -> 0 | D198: =VLOOKUP(Main!C2,Translating_general!A77:AF94,17,FALSE) -> Analog Outputs | E198: =Calculation!F53 -> 0 | F198: =Calculation!F54 -> 0
C199: =Calculation!G52 -> 0 | D199: =VLOOKUP(Main!C2,Translating_general!A77:AF94,18,FALSE) -> Digital Outputs 5A | E199: =Calculation!G53 -> 0 | F199: =Calculation!G54 -> 0
C200: =Calculation!H52 -> 0 | D200: =VLOOKUP(Main!C2,Translating_general!A77:AF94,19,FALSE) -> 1-Wire Channel | E200: =Calculation!H53 -> 0 | F200: =Calculation!H54 -> 0
C201: =Calculation!I52 -> 0 | D201: =VLOOKUP(Main!C2,Translating_general!A77:AF94,20,FALSE) -> Air Base Channels | E201: =Calculation!I53 -> 0 | F201: =Calculation!I54 -> 0
C202: =Calculation!J52 -> 0 | D202: =VLOOKUP(Main!C2,Translating_general!A77:AF94,21,FALSE) -> Not available in this country | E202: =Calculation!J53 -> 0 | F202: =Calculation!J54 -> 0
C203: =Calculation!L52 -> 0 | D203: =VLOOKUP(Main!C2,Translating_general!A77:AF94,22,FALSE) -> Digital Outputs 16A | E203: =Calculation!L53 -> 0 | F203: =Calculation!L54 -> 0
C204: =Calculation!C77*4 -> 0 | D204: =VLOOKUP(Main!C2,Translating_general!A77:AF94,23,FALSE) -> Dimmer Channels | E204: =Calculation!N77 -> 0 | F204: =C204-E204 -> 0
C205: =Calculation!O52 -> 0 | D205: =VLOOKUP(Main!C2,Translating_general!A101:AL118,38,FALSE) -> Dali Channels | E205: =Calculation!O53 -> 0 | F205: =Calculation!O54 -> 0
C206: =Calculation!K44+Calculation!C260*Calculation!K71+Calculation!C394*Calculation!K71 -> 0 | D206: =VLOOKUP(Main!C2,Translating_general!A77:AH95,34,FALSE) -> Tree Channels | E206: =Calculation!K42*(-1)+Calculation!C394*Calculation!K71 -> 0 | F206: =C206-E206 -> 0
... 10 more rows

Sheet News
A1: current version 2.8.6
B4: Changes at 2.8.4 | G4: Changes at 2.8.5 | L4: Changes at 2.8.6
B7: - Nano DI Tree added | G7: - Change log (NEWS) added into the Tool | L7: - Bug fixed when only a 1-wire reader was added (there was no Miniserver)
B9: - thermal valve actuator 0-10V deleted | G9: - added Light circuit 5-16A in light category | L9: - Some missing translations were added
B11: - Analog In (Reserve) added in sensor category | G11: - added coupling relay to distribution category | L11: - Bug fixed, Air device channels from cathegory "Sensors" were not counted
B13: - Feller Adapter Set added in CHE | G13: - corrected price of weather service 10 years | L13: - Window handle Air added
B15: - adjusted international prices | G15: - new products added (Touch Pure anthracite, RGBW Dimmer Tree, new Spots) | L15: - 2.8.6.'PRICE Window handle air + dimmer tree was not counted - fixed
G19: - a few issues with blank cells were corrected

Sheet Translating_general (hidden)
A2: General Translating of the "Eingabe", "Stückliste", "Netzteilrechner"; "Platzbedarfsrechner" sheets => Normally you do this translation just once, Translating_products has to be updated constantly
A4: Main
A5: DE | B5: Stückzahl | C5: Raumteilung | D5: Licht | E5: Beschattung | F5: Heizung | G5: Sensor | H5: Air | I5: Taster | J5: Zutritt | K5: Musik | L5: Miniserver&Extension | M5: Verteiler | N5: Zubehör | O5: Fans&Partner | P5: Tree | Q5: Drop-Down-Menü Auswahl | R5: Eingabe | S5: Tree
A6: EN_UK | B6: Quantity | C6: Rooms | D6: Lighting | E6: Shading | F6: Heating | G6: Sensor | H6: Air | I6: Switches | J6: Access | K6: Music | L6: Miniserver & Extension | M6: Cabinet | N6: Other | O6: Fans & Partner | P6: Tree | Q6: Drop Down Selection | R6: Configuration | S6: Tree
A7: EN_US | B7: Quantity | C7: Rooms | D7: Light | E7: Shading | F7: Heating | G7: Sensor | H7: Air | I7: Push-Buttons | J7: Access | K7: Music | L7: Miniserver&Extension | M7: Cabinet | N7: Other | O7: Fans&Partner | P7: Tree | Q7: Drop Down Selection | R7: Configuration | S7: Tree
A8: FR | B8: Quantité | C8: Pièces | D8: Eclairage | E8: Ouvrants | F8: Chauffage | G8: Capteurs | H8: Air | I8: Boutons Poussoirs | J8: Acccès | K8: Audio | L8: Miniserver&Extension | M8: Tableau | N8: Alimentations | O8: Fans&Partenaires | P8: Tree | Q8: Menu déroulant | R8: Configuration | S8: Tree
A9: ES | B9: Número de unidades | C9: Habitaciones | D9: Iluminación | E9: Sombreado | F9: Climatización | G9: Sensores | H9: Air | I9: Pulsadores | J9: Acceso | K9: Música | L9: Miniserver y Extensiones | M9: Conexión | N9: Accesorios | O9: Fans&Partner | P9: Tree | Q9: Seleccinar del desplegable | R9: Configuración | S9: Tree
A10: CZ | B10: Počet | C10: Místnosti | D10: Světlo | E10: Stínění | F10: Topení | G10: Sensor | H10: Air | I10: Tlačítka | J10: Přístup | K10: Hudba | L10: Miniserver&Extension | M10: Rozvaděč | N10: Příslušenství | O10: Fanoušci a Partneři | P10: Tree | Q10: Rozbalovací menu | R10: Vyplňte | S10: Tree
A11: IT | B11: Quantità | C11: Stanze | D11: Illuminazione | E11: Ombreggiatura | F11: Riscaldamento | G11: Sensori | H11: Air | I11: Pulsanti | J11: Accesso | K11: Musica | L11: Miniserver & Extension | M11: Distributore | N11: Accessori | O11: Fans & Partner | P11: Tree | Q11: Scelta a menu drop-down | R11: Immissione | S11: Tree
A12: CHE | B12: not translated yet | C12: not translated yet | D12: not translated yet | E12: not translated yet | F12: not translated yet | G12: not translated yet | H12: not translated yet | I12: not translated yet | J12: not translated yet | K12: not translated yet | L12: not translated yet | M12: not translated yet | N12: not translated yet | O12: not translated yet | P12: not translated yet | Q12: not translated yet | R12: not translated yet | S12: Tree
A13: SK | B13: Počet | C13: Místnosti | D13: Světlo | E13: Stínění | F13: Topení | G13: Sensor | H13: Air | I13: Tlačítka | J13: Přístup | K13: Hudba | L13: Miniserver&Extension | M13: Rozvaděč | N13: Příslušenství | O13: Fanoušci a Partneři | P13: Tree | Q13: Rozbalovací menu | R13: Vyplňte | S13: Tree
A14: NL | B14: Hoeveelheid | C14: Ruimtes | D14: Licht | E14: Beschaduwing | F14: Verwarming | G14: Sensor | H14: Air | I14: Drukknoppen | J14: Toegang | K14: Muziek | L14: Miniserver&Extension | M14: Verdeelbord | N14: Toebehoren | O14: Fans&Partner | P14: Tree | Q14: Drop-Down menu | R14: Configuratie | S14: Tree
A15: FI | B15: not translated yet | C15: not translated yet | D15: not translated yet | E15: not translated yet | F15: not translated yet | G15: not translated yet | H15: not translated yet | I15: not translated yet | J15: not translated yet | K15: not translated yet | L15: not translated yet | M15: not translated yet | N15: not translated yet | O15: not translated yet | P15: not translated yet | Q15: not translated yet | R15: not translated yet | S15: Tree
A16: HU | B16: not translated yet | C16: not translated yet | D16: not translated yet | E16: not translated yet | F16: not translated yet | G16: not translated yet | H16: not translated yet | I16: not translated yet | J16: not translated yet | K16: not translated yet | L16: not translated yet | M16: not translated yet | N16: not translated yet | O16: not translated yet | P16: not translated yet | Q16: not translated yet | R16: not translated yet | S16: Tree
A17: IE | B17: not translated yet | C17: not translated yet | D17: not translated yet | E17: not translated yet | F17: not translated yet | G17: not translated yet | H17: not translated yet | I17: not translated yet | J17: not translated yet | K17: not translated yet | L17: not translated yet | M17: not translated yet | N17: not translated yet | O17: not translated yet | P17: not translated yet | Q17: not translated yet | R17: not translated yet | S17: Tree
A18: reservated | S18: to translate
A19: reservated | S19: to translate
A20: reservated | S20: to translate
A21: reservated | S21: to translate
A22: reservated | S22: to translate
A28: Power
A29: DE | B29: Netzteilrechner | C29: Netzteile | D29: Extensions | E29: Artikelnummer | F29: Produkte | G29: Stück | H29: Ampere/Stück | I29: Gesamt | J29: Ampere verfügbar | K29: Ampere benötigt | L29: Summe | M29: LED | N29: Peripherie | O29: 0,4 Ampere Netzteil/Stück
A30: EN_UK | B30: Power Supply Calculator | C30: Power Supplies | D30: Extensions | E30: Item number | F30: Products | G30: Quantity | H30: Ampere/item | I30: Total | J30: Ampere available | K30: Ampere needed | L30: Total | M30: LED | N30: Periphery | O30: 0,4 Ampere Power Supply / item
A31: EN_US | B31: Power Supply Calculator | C31: Power Supplies | D31: Extensions | E31: Item number | F31: Products | G31: Quantity | H31: Ampere/item | I31: Total | J31: Ampere available | K31: Ampere needed | L31: Total | M31: LED | N31: Periphery | O31: 0,4 Ampere Power Supply / item
A32: FR | B32: Calcul d'Alimentation | C32: Alimentation | D32: Extensions | E32: Référence | F32: Produits | G32: Quantité | H32: Ampère/produit | I32: Total | J32: Ampère disponible | K32: Ampère nécessaire | L32: Total | M32: LED | N32: Periphérique | O32: 0,4 Ampère / produits
A33: ES | B33: Calculadora de fuentes de alimentación | C33: Fuentes de alimentación | D33: Extensiones | E33: Núm. de artículo | F33: Productos | G33: Unidades | H33: Amperios/Ud. | I33: Total | J33: Amperios disponibles | K33: Amperios necesarios | L33: Total | M33: LED | N33: Periferia | O33: 0,4 Amperios F. Alimentación/Ud.
A34: CZ | B34: Výpočet zdroje | C34: Zdroje | D34: Extensiony | E34: Číslo produktu | F34: Produkty | G34: Počet | H34: Ampér/jednotku | I34: Celkem | J34: Zbývající Ampéry | K34: Potřebné Ampéry | L34: Celkem | M34: LED | N34: Příslušenství | O34: 0,4 Ampérový zdroj / jednotka
A35: IT | B35: Calcolatore alimentatore | C35: Alimentatori | D35: Extensions | E35: numero articolo | F35: Prodotti | G35: Pezzi | H35: Ampere/pezzo | I35: Totale | J35: Ampere disponibile | K35: Ampere necessita | L35: Totale | M35: LED | N35: Periferia | O35: 0,4 Ampere alimentatore/pz
A36: CHE | B36: Netzteilrechner | C36: Netzteile | D36: Extensions | E36: Artikelnummer | F36: Produkte | G36: Stück | H36: Ampere/Stück | I36: Gesamt | J36: Ampere verfügbar | K36: Ampere benötigt | L36: Summe | M36: LED | N36: Peripherie | O36: 0,4 Ampere Netzteil/Stück
A37: SK | B37: Výpočet zdroje | C37: Zdroje | D37: Extensiony | E37: Číslo produktu | F37: Produkty | G37: Počet | H37: Ampér/jednotku | I37: Celkem | J37: Zbývající Ampéry | K37: Potřebné Ampéry | L37: Celkem | M37: LED | N37: Příslušenství | O37: 0,4 Ampérový zdroj / jednotka
A38: NL | B38: Voeding calculator | C38: Voeding | D38: Extentions | E38: Artikelnummer | F38: Producten | G38: Stuk | H38: Ampère/Stuk | I38: Totaal | J38: Ampère beschikbaar | K38: Ampère vereist | L38: Totaal | M38: LED | N38: Toebehoren | O38: 0,4 Ampère Voeding / stuk
A39: FI | B39: not translated yet | C39: not translated yet | D39: not translated yet | E39: not translated yet | F39: not translated yet | G39: not translated yet | H39: not translated yet | I39: not translated yet | J39: not translated yet | K39: not translated yet | L39: not translated yet | M39: not translated yet | N39: not translated yet | O39: not translated yet
A40: HU | B40: not translated yet | C40: not translated yet | D40: not translated yet | E40: not translated yet | F40: not translated yet | G40: not translated yet | H40: not translated yet | I40: not translated yet | J40: not translated yet | K40: not translated yet | L40: not translated yet | M40: not translated yet | N40: not translated yet | O40: not translated yet
A41: IE | B41: not translated yet | C41: not translated yet | D41: not translated yet | E41: not translated yet | F41: not translated yet | G41: not translated yet | H41: not translated yet | I41: not translated yet | J41: not translated yet | K41: not translated yet | L41: not translated yet | M41: not translated yet | N41: not translated yet | O41: not translated yet
A42: reservated
A43: reservated
A44: reservated
A45: reservated
A46: reservated
A52: Space
A53: DE | B53: Platzbedarfsrechner | C53: Artikelnummer | D53: Produkte | E53: Stück | F53: Platzbedarf | G53: Gesamt | H53: Platzbedarf gesamt | I53: Platzbedarf in mm | J53: Platzbedarf in Teilungseinheiten
A54: EN_UK | B54: Required Space Calculator | C54: Item Numer | D54: Products | E54: Quantity | F54: Required Space | G54: Total | H54: Total Space | I54: Required Space in mm | J54: Required Space in splitting units
A55: EN_US | B55: Required Space Calculator | C55: Item Numer | D55: Products | E55: Quantity | F55: Required Space | G55: Total | H55: Total Space | I55: Required Space in mm | J55: Required Space in splitting units
A56: FR | B56: Calcul Place Tableau | C56: Référence | D56: Produits | E56: Quantité | F56: Place nécessaire | G56: Total | H56: Place totale | I56: Place nécessaire en mm | J56: Place nécessaire en unité
A57: ES | B57: Dimensionamiento | C57: Nº de Arículo | D57: Productos | E57: Unidades | F57: Espacio requerido | G57: Total | H57: Espacio necesario | I57: Espacio necesario en mm | J57: Espacio necesario en unidades DIN
A58: CZ | B58: Výpočet požadovaného místa v rozvaděči | C58: Číslo produktu | D58: Produkty | E58: Počet | F58: Požadované místo | G58: Celkem | H58: Celkem místa | I58: Požadované místo v mm | J58: Počet modulů v rozvaděči
A59: IT | B59: Calcolatore spazio | C59: numero articolo | D59: Prodotti | E59: Pezzi | F59: Spazio richiesto | G59: Totale | H59: Spazio totale | I59: Spazio in mm | J59: Spazio in unità di divisione
A60: CHE | B60: not translated yet | C60: not translated yet | D60: not translated yet | E60: not translated yet | F60: not translated yet | G60: not translated yet | H60: not translated yet | I60: not translated yet | J60: not translated yet
A61: SK | B61: Výpočet požadovaného místa v rozvaděči | C61: Číslo produktu | D61: Produkty | E61: Počet | F61: Požadované místo | G61: Celkem | H61: Celkem místa | I61: Požadované místo v mm | J61: Počet modulů v rozvaděči
A62: NL | B62: Benodigde Ruimte Calculator | C62: Artikelnummer | D62: Producten | E62: Stuk | F62: Benodigde Ruimte | G62: Totaal | H62: Totale Ruimte | I62: Benodigde Ruimte in mm | J62: Benodigde Ruimte in Modules
A63: FI | B63: not translated yet | C63: not translated yet | D63: not translated yet | E63: not translated yet | F63: not translated yet | G63: not translated yet | H63: not translated yet | I63: not translated yet | J63: not translated yet
A64: HU | B64: not translated yet | C64: not translated yet | D64: not translated yet | E64: not translated yet | F64: not translated yet | G64: not translated yet | H64: not translated yet | I64: not translated yet | J64: not translated yet
A65: IE | B65: not translated yet | C65: not translated yet | D65: not translated yet | E65: not translated yet | F65: not translated yet | G65: not translated yet | H65: not translated yet | I65: not translated yet | J65: not translated yet
A66: reservated
A67: reservated
A68: reservated
A69: reservated
A70: reservated
A76: Products (general) | J76: set an ' otherwise excel thinks + is a function | AG76: currency/Währung | AI76: VAT in % | AK76: do a ' before the minus otherwise it coutns as a forumula
A77: DE | B77: Stückliste | C77: Stück | D77: Nr. | E77: Beschreibung | F77: Stück Netto | G77: Stück Brutto | H77: Gesamt | I77: Gesamtpreis exkl. Steuern | J77: + Steuern | K77: Gesamtpreis inkl. Steuern | L77: Verfügbar | M77: Benötigt | N77: Reserve | O77: Analoge Eingänge | P77: Digitale Eingänge | Q77: Analoge Ausgänge | R77: Digitale Ausgänge 5A | S77: 1-Wire Kanal | T77: Air Base Kanäle | U77: EnOcean | V77: Digitale Ausgänge 16A | W77: Dimmkanäle | X77: Platzbedarf im Verteiler | Y77: in mm | Z77: in Teilungseinheiten | AA77: Netzteilrechner in Ampere | AB77: Extension | AC77: LED | AD77: Peripherie | AE77: Verfügbar | AF77: Bedarf | AG77: € | AH77: Treekanäle | AI77: 20 | AJ77: DE | AK77: Rabatt | AL77: Rabattierter Betrag
A78: EN_UK | B78: Parts List | C78: Quantity | D78: No. | E78: Description | F78: Unit Net | G78: Unit Gross | H78: Total | I78: Total excl. VAT | J78: + VAT | K78: Total incl. VAT | L78: Available | M78: Required | N78: Spare | O78: Analogue Inputs | P78: Digital Inputs | Q78: Analogue Outputs | R78: Digital Outputs 5A | S78: 1-Wire Channel | T78: Air Base Channels | U78: EnOcean | V78: Digital Outputs 16A | W78: Dimmer Channels | X78: Space Requirement Cabinett | Y78: in mm | Z78: in breaker units | AA78: Power Supply Calc. In Amps | AB78: Extension | AC78: LED | AD78: Peripherals | AE78: Available | AF78: Requried | AG78: £ | AH78: Tree Channels | AI78: 20 | AJ78: EN_UK | AK78: Discount | AL78: Discounted Price
A79: EN_US | B79: Parts List | C79: Quantity | D79: Nr. | E79: Description | F79: Unit Net | G79: Unit Gross | H79: Total | I79: Total without taxes | J79: + Taxes | K79: Total with taxes | L79: Available | M79: Needed | N79: Left | O79: Analog Inputs | P79: Digital Inputs | Q79: Analog Outputs | R79: Digital Outputs 5A | S79: 1-Wire Channel | T79: Air Base Channels | U79: Not available in this country | V79: Digital Outputs 16A | W79: Dimmer Channels | X79: Space Requirement Cabinett | Y79: in mm | Z79: in splitting units | AA79: Powersupply Calc. In Ampere | AB79: Extension | AC79: LED | AD79: Periphery | AE79: Available | AF79: Needed | AG79: $ | AH79: Tree Channels | AJ79: EN_US | AK79: Discount | AL79: Discounted Price
A80: FR | B80: Liste de produits | C80: Quantité | D80: N° | E80: Description | F80: Pièce Net | G80: Pièce Brut | H80: Total | I80: Total HT | J80: +TVA | K80: Total TTC | L80: Disponible | M80: Nécessaire | N80: Restant | O80: Entrées analogiques | P80: Entrées numériques | Q80: Sorties analogiques | R80: Sorties numériques 5A | S80: canal 1-wire | T80: canal Air Base | U80: EnOcean | V80: Sorties numériques 16A | W80: Canal Dimmer | X80: Espace nécessaire Tableau | Y80: en mm | Z80: en unité U | AA80: Calc Alimentation en Ampère | AB80: Extension | AC80: LED | AD80: Périphérique | AE80: Disponible | AF80: Nécessaire | AG80: € | AH80: Tree Channels | AI80: 20 | AJ80: FR | AK80: Discount | AL80: Discounted Price
A81: ES | B81: Lista de productos | C81: Unidades | D81: Nº | E81: Descripción | F81: Precio sin IVA | G81: Precio con IVA | H81: Total | I81: Precio total IVA no incluido | J81: + IVA | K81: Precio total IVA incluido | L81: Disponible | M81: Necesario | N81: Reserva | O81: Entradas analógicas | P81: Entradas digitales | Q81: Salidas analógicas | R81: Salidas digitales 5A | S81: Canales 1-Wire | T81: Canales Air Base | U81: EnoCean | V81: Salidas digitales 16A | W81: Canales dimmer | X81: Espacio necesario en armario | Y81: en mm | Z81: En unidades de carril DIN | AA81: Calculadora de Fuentes de Alimentación (A) | AB81: Extensión | AC81: LED | AD81: Periferia | AE81: Disponible | AF81: Necesario | AG81: € | AH81: Canales Tree | AI81: 21 | AJ81: ES | AK81: Discount | AL81: Discounted Price
A82: CZ | B82: Seznam produktů | C82: Počet | D82: č. | E82: Popis | F82: Cena za kus bez DPH | G82: Cena za kus s DPH | H82: Celkem | I82: Celkem bez DPH | J82: + DPH | K82: Celkem s DPH | L82: Dostupné | M82: Potřebné | N82: Zbývající | O82: Analogové vstupy | P82: Digitální vstupy | Q82: Analogové výstupy | R82: Digitální výstupy 5A | S82: 1-Wire zařízení | T82: Air Base zařízení | U82: EnOcean | V82: Digitální výstupy 16A | W82: Kanály Dimmeru | X82: Požadované místo v rozvaděči | Y82: v mm | Z82: počet modulů | AA82: Výpočet zdroje v Ampérech | AB82: Extension | AC82: LED | AD82: Příslušenství | AE82: Dostupné | AF82: Potřebné | AG82: Kč | AH82: Tree Channels | AI82: 21 | AJ82: CZ | AK82: Discount | AL82: Discounted Price
A83: IT | B83: Distinta | C83: Pezzi | D83: Nr. | E83: Descrizione | F83: Pezzo senza IVA | G83: Pezzo con IVA | H83: Totale | I83: Prezzo totale senza IVA | J83: + IVA | K83: Prezzo totale con IVA | L83: Disponibile | M83: Necessita | N83: Riserva | O83: Ingressi analogici | P83: Ingressi digitali | Q83: Uscite analogiche | R83: Uscite digitali 5A | S83: Canale 1-Wire | T83: Canali Air Base | U83: EnOcean | V83: Uscite digitali 16A | W83: Canali dimmerabili | X83: Spazio nel distributore | Y83: in mm | Z83: in unità di divisione | AA83: Calcolatore alimentatore in Ampere | AB83: Extension | AC83: LED | AD83: Periferia | AE83: Disponibile | AF83: Necessita | AG83: € | AH83: Canali Tree | AI83: 22 | AJ83: IT | AK83: Sconto | AL83: Importo senza sconto
A84: CHE | B84: not translated yet | C84: not translated yet | D84: not translated yet | E84: not translated yet | F84: not translated yet | G84: not translated yet | H84: not translated yet | I84: not translated yet | J84: + not translated yet | K84: not translated yet | L84: not translated yet | M84: not translated yet | N84: not translated yet | O84: not translated yet | P84: not translated yet | Q84: not translated yet | R84: not translated yet | S84: not translated yet | T84: not translated yet | U84: not translated yet | V84: not translated yet | W84: not translated yet | X84: not translated yet | Y84: not translated yet | Z84: not translated yet | AA84: not translated yet | AB84: not translated yet | AC84: not translated yet | AD84: not translated yet | AE84: not translated yet | AF84: not translated yet | AG84: CHF | AH84: Tree Channels | AI84: 8 | AJ84: CHE | AK84: Discount | AL84: Discounted Price
A85: SK | B85: Seznam produktů | C85: Počet | D85: č. | E85: Popis | F85: Cena za kus bez DPH | G85: Cena za kus s DPH | H85: Celkem | I85: Celkem bez DPH | J85: + DPH | K85: Celkem s DPH | L85: Dostupné | M85: Potřebné | N85: Zbývající | O85: Analogové vstupy | P85: Digitální vstupy | Q85: Analogové výstupy | R85: Digitální výstupy 5A | S85: 1-Wire zařízení | T85: Air Base zařízení | U85: EnOcean | V85: Digitální výstupy 16A | W85: Kanály Dimmeru | X85: Požadované místo v rozvaděči | Y85: v mm | Z85: počet modulů | AA85: Výpočet zdroje v Ampérech | AB85: Extension | AC85: LED | AD85: Příslušenství | AE85: Dostupné | AF85: Potřebné | AG85: € | AH85: Tree Channels | AI85: 20 | AJ85: SK | AK85: Discount | AL85: Discounted Price
A86: NL | B86: Onderdelenlijst | C86: Aantal | D86: Nr. | E86: Omschrijving | F86: Stuk Netto | G86: Stuk Brutto | H86: Totaal | I86: to translate | J86: + BTW | K86: Totaal met BTW | L86: Beschikbaar | M86: Benodigd | N86: Reserve | O86: Analoge Ingang | P86: Digitale Ingang | Q86: Analoge Uitgang | R86: Digitale Uitgang 5A | S86: 1-Wire Kanaal | T86: Air Base Kanaal | U86: EnoCean | V86: Digitale Uitgang 16A | W86: Dimmer Kanalen | X86: Benodigde Ruimte in Verdeelbord | Y86: in mm | Z86: In Modules | AA86: Voeding Calculator in Ampère | AB86: Extension | AC86: LED | AD86: Toebehoren | AE86: Beschikbaar | AF86: Benodigd | AG86: € | AH86: Tree Channels | AI86: 21 | AJ86: NL | AK86: Discount | AL86: Discounted Price
A87: FI | B87: not translated yet | C87: not translated yet | D87: not translated yet | E87: not translated yet | F87: not translated yet | G87: not translated yet | H87: not translated yet | I87: not translated yet | J87: not translated yet | K87: not translated yet | L87: not translated yet | M87: not translated yet | N87: not translated yet | O87: not translated yet | P87: not translated yet | Q87: not translated yet | R87: not translated yet | S87: not translated yet | T87: not translated yet | U87: not translated yet | V87: not translated yet | W87: not translated yet | X87: not translated yet | Y87: not translated yet | Z87: not translated yet | AA87: not translated yet | AB87: not translated yet | AC87: not translated yet | AD87: not translated yet | AE87: not translated yet | AF87: not translated yet | AG87: not translated yet | AH87: Tree Channels | AI87: 24 | AJ87: FI | AK87: Discount | AL87: Discounted Price
A88: HU | B88: not translated yet | C88: not translated yet | D88: not translated yet | E88: not translated yet | F88: not translated yet | G88: not translated yet | H88: not translated yet | I88: not translated yet | J88: not translated yet | K88: not translated yet | L88: not translated yet | M88: not translated yet | N88: not translated yet | O88: not translated yet | P88: not translated yet | Q88: not translated yet | R88: not translated yet | S88: not translated yet | T88: not translated yet | U88: not translated yet | V88: not translated yet | W88: not translated yet | X88: not translated yet | Y88: not translated yet | Z88: not translated yet | AA88: not translated yet | AB88: not translated yet | AC88: not translated yet | AD88: not translated yet | AE88: not translated yet | AF88: not translated yet | AG88: not translated yet | AH88: Tree Channels | AI88: 27 | AJ88: HU | AK88: Discount | AL88: Discounted Price
A89: IE | B89: not translated yet | C89: not translated yet | D89: not translated yet | E89: not translated yet | F89: not translated yet | G89: not translated yet | H89: not translated yet | I89: not translated yet | J89: not translated yet | K89: not translated yet | L89: not translated yet | M89: not translated yet | N89: not translated yet | O89: not translated yet | P89: not translated yet | Q89: not translated yet | R89: not translated yet | S89: not translated yet | T89: not translated yet | U89: not translated yet | V89: not translated yet | W89: not translated yet | X89: not translated yet | Y89: not translated yet | Z89: not translated yet | AA89: not translated yet | AB89: not translated yet | AC89: not translated yet | AD89: not translated yet | AE89: not translated yet | AF89: not translated yet | AG89: not translated yet | AH89: Tree Channels | AI89: 23 | AJ89: IE | AK89: Discount | AL89: Discounted Price
A90: reservated | J90: to translate | K90: to translate | L90: to translate | M90: to translate | N90: to translate | O90: to translate | P90: to translate | Q90: to translate | R90: to translate | S90: to translate | T90: to translate | U90: to translate | V90: to translate | W90: to translate | X90: to translate | Y90: to translate | Z90: to translate | AA90: to translate | AB90: to translate | AC90: to translate | AD90: to translate | AE90: to translate | AF90: to translate | AG90: to change | AH90: Tree Channels
A91: reservated | J91: to translate | K91: to translate | L91: to translate | M91: to translate | N91: to translate | O91: to translate | P91: to translate | Q91: to translate | R91: to translate | S91: to translate | T91: to translate | U91: to translate | V91: to translate | W91: to translate | X91: to translate | Y91: to translate | Z91: to translate | AA91: to translate | AB91: to translate | AC91: to translate | AD91: to translate | AE91: to translate | AF91: to translate | AG91: to change | AH91: Tree Channels
A92: reservated | J92: to translate | K92: to translate | L92: to translate | M92: to translate | N92: to translate | O92: to translate | P92: to translate | Q92: to translate | R92: to translate | S92: to translate | T92: to translate | U92: to translate | V92: to translate | W92: to translate | X92: to translate | Y92: to translate | Z92: to translate | AA92: to translate | AB92: to translate | AC92: to translate | AD92: to translate | AE92: to translate | AF92: to translate | AG92: to change | AH92: Tree Channels
A93: reservated | J93: to translate | K93: to translate | L93: to translate | M93: to translate | N93: to translate | O93: to translate | P93: to translate | Q93: to translate | R93: to translate | S93: to translate | T93: to translate | U93: to translate | V93: to translate | W93: to translate | X93: to translate | Y93: to translate | Z93: to translate | AA93: to translate | AB93: to translate | AC93: to translate | AD93: to translate | AE93: to translate | AF93: to translate | AG93: to change | AH93: Tree Channels
A94: reservated | J94: to translate | K94: to translate | L94: to translate | M94: to translate | N94: to translate | O94: to translate | P94: to translate | Q94: to translate | R94: to translate | S94: to translate | T94: to translate | U94: to translate | V94: to translate | W94: to translate | X94: to translate | Y94: to translate | Z94: to translate | AA94: to translate | AB94: to translate | AC94: to translate | AD94: to translate | AE94: to translate | AF94: to translate | AG94: to change | AH94: Tree Channels
A100: Drop down (hidden pages) | P100: Just for inputs, not the real hardware
A101: DE | B101: Dimmer Extension [Kanalauswahl] | C101: Analog 1-10V | D101: Lichtkreis schaltbar 5A/Verbraucher 5A | E101: Lichtkreis dimmbar 230V | F101: Lichtkreis Dimmbar 0-10V EVG | G101: DMX Dimmkanal 50W | H101: Air Dimmkanal 50W | I101: 1-Wire Temperaturfühler | J101: Windsensor 24V (ben. Extension mit DI) | K101: Fensterkontakt (im Fenster integriert; DI) | L101: Verbraucher 5A | M101: Verbraucher 5-16A | N101: Beschattung (Rollo, Raffstore,...) | P101: Taster 1fach Digital | Q101: Taster 2fach Digital | R101: Taster 4fach Digital | S101: Taster 5fach Digital | T101: Musikserver Zonenauswahl | U101: Trennwand P-Reihe (10 Stk.) | V101: Bezeichnungsträger P-Reihe (20 Stk.) | W101: Abschlussplatte P-Reihe (10 Stk.) | X101: Jalousie Anschlussklemme PMAK4 (50 Stk.) | Y101: Abschlussplatte PMAK4 (20 Stk.) | Z101: Installations- Reihenklemme PDL (50 Stk.) | AA101: Endwinkel ZEW 35 (20 Stk.) | AB101: Abschlussplatte PDL (20 Stk.) | AC101: Sicherungs-Reihenklemme (25 Stk.) | AD101: Abschlussplatte Sicherungskl. (50 Stk.) | AE101: Querverbinder 24 Polig (10 Stk.) | AF101: Sicherung 2A (100 Stk.) | AG101: Sicherung 5A (100 Stk.) | AH101: Sicherung 10A (100 Stk.) | AI101: Loxone CAT7 Kabel (250m) | AK101: Dali Kanal | AL101: Dali Kanäle | AM101: Verbraucher 16A
A102: EN_UK | B102: Dimmer Channel (230V) | C102: Analogue 1-10V | D102: Light Circut (switched ) | E102: Light Circuit (dimmed 230V) | F102: Light Circuit (dimmed 0-10V) | G102: Light Circuit (24V 50W DMX) | H102: Light Circuit (24V 50W Air) | I102: 1-Wire Temperature Sensor | J102: Windsensor 24V | K102: Window Contact (integrated - only reserve DI) | L102: Other Load (5A) | M102: Other Load (5-16A) | N102: Shading (Blinds, Curtains, …) | O102: to translate | P102: Retractive Switch 1 Button (reserve 1 DI) | Q102: Retractive Switch 2 Buttons (reserve 2 DI) | R102: Retractive Switch 4 Buttons (reserve 4 DI) | S102: Retractive Switch 5 Buttons (reserve 5 DI) | T102: Music Server Zone | U102: Partition for 8x4 Terminals (10pcs) | V102: Label Holder 8 Levels (20 pcs) | W102: End Plate for 8x4 Terminals (10 pcs) | X102: Push In Terminal Block 3+Earth (50 pcs) | Y102: End Plate for 3+Earth Terminals (20 pcs) | Z102: Push In Terminal Block Twin+Earth (50 pcs) | AA102: End Bracket (20 pcs) | AB102: End Plate for Twin+Earth Terminals (20 pcs) | AC102: Push in Fused Terminal Block (25 pcs) | AD102: End Plate For Fused Terminals (50 pcs) | AE102: Cross Connector For Fused Terminals (10 pcs) | AF102: Blade Fuse 2A (100 pcs) | AG102: Blade Fuse 5A (100 pcs) | AH102: Blade Fuse 10A (100 pcs) | AI102: Loxone CAT7 Cable (250m) | AJ102: to translate | AK102: Dali Channel | AL102: Dali Channels | AM102: Circut (switched ) 16A
A103: EN_US | B103: Dimmer Channel (110V) | C103: Analogue 1-10V | D103: Light Circut (switched ) | E103: Light Circuit (dimmed 110V) | F103: Light Circuit (dimmed 0-10V) | G103: Light Circuit (24V 50W DMX) | H103: Light Circuit (24V 50W Air) | I103: 1-Wire Temperature Sensor | J103: Windsensor 24V | K103: Window Contact (integrated - only reserve DI) | L103: Other Load (5A) | M103: Other Load (5-16A) | N103: Shading (Blinds, Curtains, …) | O103: to translate | P103: Retractive Wattstoper 1 Push button (reserve 1 DI) | Q103: Retractive Wattstoper 2 Push buttons (reserve 2 DI) | R103: Retractive Wattstoper 4 Push buttons (reserve 4 DI) | S103: Retractive Wattstoper 5 Push buttons (reserve 5 DI) | T103: Music Server Zone | U103: Partition for 8x4 Terminals (10pcs) | V103: Label Holder 8 Levels (20 pcs) | W103: End Plate for 8x4 Terminals (10 pcs) | X103: Push In Terminal Block 3+Earth (50 pcs) | Y103: End Plate for 3+Earth Terminals (20 pcs) | Z103: Push In Terminal Block Twin+Earth (50 pcs) | AA103: End Bracket (20 pcs) | AB103: End Plate for Twin+Earth Terminals (20 pcs) | AC103: Push in Fused Terminal Block (25 pcs) | AD103: End Plate For Fused Terminals (50 pcs) | AE103: Cross Connector For Fused Terminals (10 pcs) | AF103: Blade Fuse 2A (100 pcs) | AG103: Blade Fuse 5A (100 pcs) | AH103: Blade Fuse 10A (100 pcs) | AI103: Loxone CAT7 Cable (250m) | AJ103: to translate | AK103: Dali Channel | AL103: Dali Channels | AM103: Circut (switched ) 16A
A104: FR | B104: Canal dimmer (230V) | C104: 1-10V | D104: Eclairage simple | E104: Eclairage variation 230V | F104: Eclairage 1-10V | G104: Eclairage variation 24V DMX | H104: Eclairage variation 24V Air | I104: Sonde de temp 1-wire | J104: Anémometre 24V | K104: Contact d'ouverture intégré | L104: Sortie numérique 5A | M104: Sortie numérique 5-16A | N104: Ouvrants (VR, stores ..) | O104: not translated yet | P104: BP 1 touche | Q104: BP 2 touches | R104: BP 4 touches | S104: BP 5 touches | T104: Zone Music Server | V104: Porte étiquette (8 niveaux) | W104: Plaque de fin pour bornier 8x4 (10pcs) | X104: Bornier 3 + terre PMAK4 (50 pcs) | Y104: Plaque de fin pour bornier 3 + terre PMAK4 (20 pcs) | Z104: Bornier 2 + Terre PDL (50 pcs) | AA104: Délimitateur de rail Din (20 pcs) | AB104: Plaque de fin pour bornier 2 + terre PDL (20 pcs) | AC104: Bloc de terminal de fusible à connexion rapide (25 pcs) | AD104: Plaque de fin pour terminal de fusible (50 pcs) | AE104: Connecteur en croix pour terminal de fusible (10 pcs) | AF104: Fusible 2A (100 pcs) | AG104: Fusible 5A (100 pcs) | AH104: Fusible 10A (100 pcs) | AI104: Cat 7 250m | AJ104: not translated yet | AK104: Dali Channel | AL104: Dali Channels | AM104: Eclairage simple 16A
A105: ES | B105: Dimmer Extension [Canales] | C105: Analógico 1-10V | D105: Luminario ON/OFF 5A | E105: Luminaria dimmer 230V | F105: Luminaria dimmer 0-10V EVG | G105: Canal dimmer DMX 50W | H105: Canal dimmer Air 50W | I105: Sensor de temperatura 1-Wire | J105: Anemómetro 24V (necesaria entrada digital de Extension) | K105: Contacto de ventana (integrado en ventana) | L105: Consumidor 5A | M105: Consumidor 5-16A | N105: Sombreado (persiana, store,…) | P105: Pulsador digital 1 fase | Q105: Pulsador digital 2 fases | R105: Pulsador digital 4 fases | S105: Pulsador digital 5 fases | T105: Music Server (seleccionar zonas) | U105: Separador para bornes de Weidmüller (10Ud.) | V105: Soporte de señalización para bornes (8 pisos) de Weidmüller (20Ud.) | W105: Tapa final para borne 8x4 de Weidmüller (10Ud.) | X105: Borne de 3 + tierra de Weidmüller | Y105: Tapa final para borne de 3 + tierra de Weidmüller (20Ud.) | Z105: Borne de 2 + tierra de Weidmüller (50Ud.) | AA105: Ángulo de fijación lateral de Weidmüller (20Ud.) | AB105: Tapa final para borne de 2 + tierra de Weidmüller (20Ud.) | AC105: Borne portafusibles de Weidmüller (25Ud.) | AD105: Tapa final para borne portafusibles de Weidmüller (50Ud.) | AE105: Conector transversal para borne portafusibles de Weidmüller (10Ud.) | AF105: Fusible 2A (100 unidades) | AG105: Fusible 5A (100 unidades) | AH105: Fusible 10A (100 unidades) | AI105: Cable CAT7 de Loxone | AJ105: to translate | AK105: Canal Dali | AL105: Canales Dali | AM105: Luminario ON/OFF 16A
A106: CZ | B106: Dimmer Extension (Výběr kanálu) | C106: Analog 1-10V | D106: Světelný okruh 5A | E106: Stmívatelný okruh 230V | F106: Stmívatelný okruh 0-10V s elektronickým předřadníkem | G106: DMX Dimmer 50W na kanál | H106: Air Dimmer kanál 50W | I106: 1-Wire teplotní senzor | J106: Senzor rychlosti větru 24V (s digitálním vstupem na Extensionu) | K106: Okenní kontakt (integrovaný v okně pouze DI) | L106: Spotřebič do 5A | M106: Spotřebič 5-16A | N106: Stínění | O106: to translate | P106: 1 Tlačítko | Q106: 2 Tlačítko | R106: 4 Tlačítko | S106: 5 Tlačítko | T106: Zóna Music Serveru | U106: Předělovací deska PRV8 (10 ks) | V106: Držák na značky pro PPV8/PRV8 (20ks) | W106: Bočnice pro PPV8/PRV8 (10 ks) | X106: Svorka na připojení motoru PMAK4 (50 ks) | Y106: Bočnice pro PMAK4 (20 ks) | Z106: Svorkovnice PDL (50ks) | AA106: Koncová podpěra svorkovnice ZEW (20 ks) | AB106: Bočnice pro PDL (20 ks) | AC106: Pojistková svorkovnice (25 ks) | AD106: Bočnice pojistkové svorkovnice (50 ks) | AE106: 24 pólová propojka WEIDMÜLLER (10ks) | AF106: Pojistka 2A | AG106: Pojistka 5A (100ks) | AH106: Pojistka 10A (100ks) | AI106: Loxone CAT7 kabel (250m) | AJ106: to translate | AK106: Dali Channel | AL106: Dali Channels | AM106: Světelný okruh 16A
A107: IT | B107: Dimmer Extension [scelta canale] | C107: Analogico 1-10V | D107: Luce commutabile 5A | E107: Luce dimmerabile 230V | F107: Luce dimmerabile 0-10V | G107: DMX canale dimmerabile 50W | H107: Air canale dimmerabile 50W | I107: Sensore temperatura 1-Wire | J107: Sensore del vento 24V (rich. Extension con DI) | K107: Contatto finestra (integrato nella finestra; DI) | L107: Consumatore 5A | M107: Consumatore 5-16A | N107: Ombreggiatura (tapparelle, veneziane,...) | O107: to translate | P107: Pulsante digitale 1x | Q107: Pulsante digitale 2x | R107: Pulsante digitale 4x | S107: Pulsante digitale 5x | T107: Music Server scelta canale | U107: Piastra di separazione P-serie (10pz.) | V107: Supporto per siglatura P-serie (20pz.) | W107: Piastra terminale P-serie (10pz.) | X107: Morsetto componibile colleg. motore PMAK4 (50pz.) | Y107: Piastra terminale PMAK4 (20pz.) | Z107: Morsetto per installazione ai piani PDL (50pz.) | AA107: Terminale di fissaggio ZEW 35 (20pz.) | AB107: Piastra terminale PDL (20pz.) | AC107: Morsetto componibile portafusibile (25pz.) | AD107: Piastra terminale portafusibile (50pz.) | AE107: Collegamento trasversale 24 poli (10pz.) | AF107: Fusibile 2A (100 pz.) | AG107: Fusibile 5A (100 pz.) | AH107: Fusibile 10A (100 pz.) | AI107: Loxone cavo CAT7 (250m) | AJ107: to translate | AK107: Dali Channel | AL107: Dali Channels | AM107: Luce commutabile 16A
A108: CHE | B108: not translated yet | C108: not translated yet | D108: not translated yet | E108: not translated yet | F108: not translated yet | G108: not translated yet | H108: not translated yet | I108: not translated yet | J108: not translated yet | K108: not translated yet | L108: not translated yet | M108: not translated yet | N108: not translated yet | O108: not translated yet | P108: not translated yet | Q108: not translated yet | R108: not translated yet | S108: not translated yet | T108: not translated yet | U108: not translated yet | V108: not translated yet | W108: not translated yet | X108: not translated yet | Y108: not translated yet | Z108: not translated yet | AA108: not translated yet | AB108: not translated yet | AC108: not translated yet | AD108: not translated yet | AE108: not translated yet | AF108: not translated yet | AG108: not translated yet | AH108: not translated yet | AI108: not translated yet | AJ108: not translated yet | AK108: Dali Channel | AL108: Dali Channels | AM108: not translated yet
A109: SK | B109: Dimmer Extension (Výběr kanálu) | C109: Analog 1-10V | D109: Světelný okruh 5A | E109: Stmívatelný okruh 230V | F109: Stmívatelný okruh 0-10V s elektronickým předřadníkem | G109: DMX Dimmer 50W na kanál | H109: Air Dimmer kanál 50W | I109: 1-Wire teplotní senzor | J109: Senzor rychlosti větru 24V (s digitálním vstupem na Extensionu) | K109: Okenní kontakt (integrovaný v okně pouze DI) | L109: Spotřebič do 5A | M109: Spotřebič 5-16A | N109: Stínění | O109: to translate | P109: 1 Tlačítko | Q109: 2 Tlačítko | R109: 4 Tlačítko | S109: 5 Tlačítko | T109: Zóna Music Serveru | U109: Předělovací deska PRV8 (10 ks) | V109: Držák na značky pro PPV8/PRV8 (20ks) | W109: Bočnice pro PPV8/PRV8 (10 ks) | X109: Svorka na připojení motoru PMAK4 (50 ks) | Y109: Bočnice pro PMAK4 (20 ks) | Z109: Svorkovnice PDL (50ks) | AA109: Koncová podpěra svorkovnice ZEW (20 ks) | AB109: Bočnice pro PDL (20 ks) | AC109: Pojistková svorkovnice (25 ks) | AD109: Bočnice pojistkové svorkovnice (50 ks) | AE109: 24 pólová propojka WEIDMÜLLER (10ks) | AF109: Pojistka 2A | AG109: Pojistka 5A (100ks) | AH109: Pojistka 10A (100ks) | AI109: Loxone CAT7 kabel (250m) | AJ109: to translate | AK109: Dali Channel | AL109: Dali Channels | AM109: Světelný okruh 16A
A110: NL | B110: Dimmer Extension [Kanaal keuze] | C110: Analoog 1-10V | D110: Lichtkring schakelbaar 5A | E110: Lichtking dimmbaar 230V | F110: Lichtkring dimmbaar 0-10V EVG | G110: DMX Dimkanaal 50W | H110: Air Dimkanaal 50W | I110: 1-Wire Temperatuurvoeler | J110: Windsensor 24V (voor Extension met DI) | K110: Raamcontact (in raam geïntegreerd; DI) | L110: Verbruiker 5A | M110: Verbruiker 5-16A | N110: Beschaduwing (rolluik, lammellen,...) | P110: 1-voudige digitale drukknop | Q110: 2-voudige digitale drukknop | R110: 4-voudige digitale drukknop | S110: 5-voudige digitale drukknop | T110: Muziek server zoneselectie | U110: Scheidingswand P-serie (10 st.) | V110: Markering houder P-serie (20 st.) | W110: Afsluitplaat P-serie (10 st.) | X110: Jaloezie afsluitplaat PMAK4 (50 st.) | Y110: Afsluitplaat PMAK4 (20 st.) | Z110: Installatie klem PDL (50 st.) | AA110: Eindklem ZEW 35 (20 st.) | AB110: Afsluitplaat PDL (20 st.) | AC110: Zekering klem (25 st.) | AD110: Afsluitplaat zekering klem (50 st.) | AE110: Kambrug voor klemmen 24 Polig (10 st.) | AF110: Zekering 2A (100 st.) | AG110: Zekering 5A (100 st.) | AH110: Zekering 10A (100 st.) | AI110: Loxone CAT7 Kabel (250m) | AK110: Dali Channel | AL110: Dali Channels | AM110: Lichtkring schakelbaar 16A
A111: FI | B111: not translated yet | C111: not translated yet | D111: not translated yet | E111: not translated yet | F111: not translated yet | G111: not translated yet | H111: not translated yet | I111: not translated yet | J111: not translated yet | K111: not translated yet | L111: not translated yet | M111: not translated yet | N111: not translated yet | O111: not translated yet | P111: not translated yet | Q111: not translated yet | R111: not translated yet | S111: not translated yet | T111: not translated yet | U111: not translated yet | V111: not translated yet | W111: not translated yet | X111: not translated yet | Y111: not translated yet | Z111: not translated yet | AA111: not translated yet | AB111: not translated yet | AC111: not translated yet | AD111: not translated yet | AE111: not translated yet | AF111: not translated yet | AG111: not translated yet | AH111: not translated yet | AI111: not translated yet | AJ111: not translated yet | AK111: Dali Channel | AL111: Dali Channels | AM111: not translated yet
A112: HU | B112: not translated yet | C112: not translated yet | D112: not translated yet | E112: not translated yet | F112: not translated yet | G112: not translated yet | H112: not translated yet | I112: not translated yet | J112: not translated yet | K112: not translated yet | L112: not translated yet | M112: not translated yet | N112: not translated yet | O112: not translated yet | P112: not translated yet | Q112: not translated yet | R112: not translated yet | S112: not translated yet | T112: not translated yet | U112: not translated yet | V112: not translated yet | W112: not translated yet | X112: not translated yet | Y112: not translated yet | Z112: not translated yet | AA112: not translated yet | AB112: not translated yet | AC112: not translated yet | AD112: not translated yet | AE112: not translated yet | AF112: not translated yet | AG112: not translated yet | AH112: not translated yet | AI112: not translated yet | AJ112: not translated yet | AK112: Dali Channel | AL112: Dali Channels | AM112: not translated yet
A113: IE | B113: not translated yet | C113: not translated yet | D113: not translated yet | E113: not translated yet | F113: not translated yet | G113: not translated yet | H113: not translated yet | I113: not translated yet | J113: not translated yet | K113: not translated yet | L113: not translated yet | M113: not translated yet | N113: not translated yet | O113: not translated yet | P113: not translated yet | Q113: not translated yet | R113: not translated yet | S113: not translated yet | T113: not translated yet | U113: not translated yet | V113: not translated yet | W113: not translated yet | X113: not translated yet | Y113: not translated yet | Z113: not translated yet | AA113: not translated yet | AB113: not translated yet | AC113: not translated yet | AD113: not translated yet | AE113: not translated yet | AF113: not translated yet | AG113: not translated yet | AH113: not translated yet | AI113: not translated yet | AJ113: not translated yet | AK113: Dali Channel | AL113: Dali Channels | AM113: not translated yet
A114: reservated | B114: not translated yet | C114: not translated yet | D114: not translated yet | E114: not translated yet | F114: not translated yet | G114: not translated yet | H114: not translated yet | I114: not translated yet | J114: not translated yet | K114: not translated yet | L114: not translated yet | M114: not translated yet | N114: not translated yet | O114: not translated yet | P114: not translated yet | Q114: not translated yet | R114: not translated yet | S114: not translated yet | T114: not translated yet | U114: not translated yet | V114: not translated yet | W114: not translated yet | X114: not translated yet | Y114: not translated yet | Z114: not translated yet | AA114: not translated yet | AB114: not translated yet | AC114: not translated yet | AD114: not translated yet | AE114: not translated yet | AF114: not translated yet | AG114: not translated yet | AH114: not translated yet | AI114: not translated yet | AJ114: not translated yet | AK114: Dali Channel | AL114: Dali Channels | AM114: not translated yet
A115: reservated | B115: not translated yet | C115: not translated yet | D115: not translated yet | E115: not translated yet | F115: not translated yet | G115: not translated yet | H115: not translated yet | I115: not translated yet | J115: not translated yet | K115: not translated yet | L115: not translated yet | M115: not translated yet | N115: not translated yet | O115: not translated yet | P115: not translated yet | Q115: not translated yet | R115: not translated yet | S115: not translated yet | T115: not translated yet | U115: not translated yet | V115: not translated yet | W115: not translated yet | X115: not translated yet | Y115: not translated yet | Z115: not translated yet | AA115: not translated yet | AB115: not translated yet | AC115: not translated yet | AD115: not translated yet | AE115: not translated yet | AF115: not translated yet | AG115: not translated yet | AH115: not translated yet | AI115: not translated yet | AJ115: not translated yet | AK115: Dali Channel | AL115: Dali Channels | AM115: not translated yet
A116: reservated | B116: not translated yet | C116: not translated yet | D116: not translated yet | E116: not translated yet | F116: not translated yet | G116: not translated yet | H116: not translated yet | I116: not translated yet | J116: not translated yet | K116: not translated yet | L116: not translated yet | M116: not translated yet | N116: not translated yet | O116: not translated yet | P116: not translated yet | Q116: not translated yet | R116: not translated yet | S116: not translated yet | T116: not translated yet | U116: not translated yet | V116: not translated yet | W116: not translated yet | X116: not translated yet | Y116: not translated yet | Z116: not translated yet | AA116: not translated yet | AB116: not translated yet | AC116: not translated yet | AD116: not translated yet | AE116: not translated yet | AF116: not translated yet | AG116: not translated yet | AH116: not translated yet | AI116: not translated yet | AJ116: not translated yet | AK116: Dali Channel | AL116: Dali Channels | AM116: not translated yet
A117: reservated | B117: not translated yet | C117: not translated yet | D117: not translated yet | E117: not translated yet | F117: not translated yet | G117: not translated yet | H117: not translated yet | I117: not translated yet | J117: not translated yet | K117: not translated yet | L117: not translated yet | M117: not translated yet | N117: not translated yet | O117: not translated yet | P117: not translated yet | Q117: not translated yet | R117: not translated yet | S117: not translated yet | T117: not translated yet | U117: not translated yet | V117: not translated yet | W117: not translated yet | X117: not translated yet | Y117: not translated yet | Z117: not translated yet | AA117: not translated yet | AB117: not translated yet | AC117: not translated yet | AD117: not translated yet | AE117: not translated yet | AF117: not translated yet | AG117: not translated yet | AH117: not translated yet | AI117: not translated yet | AJ117: not translated yet | AK117: Dali Channel | AL117: Dali Channels | AM117: not translated yet
A118: reservated | B118: not translated yet | C118: not translated yet | D118: not translated yet | E118: not translated yet | F118: not translated yet | G118: not translated yet | H118: not translated yet | I118: not translated yet | J118: not translated yet | K118: not translated yet | L118: not translated yet | M118: not translated yet | N118: not translated yet | O118: not translated yet | P118: not translated yet | Q118: not translated yet | R118: not translated yet | S118: not translated yet | T118: not translated yet | U118: not translated yet | V118: not translated yet | W118: not translated yet | X118: not translated yet | Y118: not translated yet | Z118: not translated yet | AA118: not translated yet | AB118: not translated yet | AC118: not translated yet | AD118: not translated yet | AE118: not translated yet | AF118: not translated yet | AG118: not translated yet | AH118: not translated yet | AI118: not translated yet | AJ118: not translated yet | AK118: Dali Channel | AL118: Dali Channels | AM118: not translated yet
A124: Message Box
A125: DE | B125: Bitte entsprechende/n Verstärker manuell hinzufügen! | C125: Bitte Dimmer (RGBW DMX/AIR) manuel hinzufügen je nach Lichtkreisen!
A126: EN_UK | B126: Please add an amplifier manually! | C126: Please add dimmer (dmx/air) manually due to your circuits!
A127: EN_US | B127: Please add an amplifier manually! | C127: Please add dimmer (dmx/air) manually due to your circuits!
A128: FR | B128: Please add an amplifier manually! | C128: Please add dimmer (dmx/air) manually due to your circuits!
A129: ES | B129: Please add an amplifier manually! | C129: Please add dimmer (dmx/air) manually due to your circuits!
A130: CZ | B130: Please add an amplifier manually! | C130: Please add dimmer (dmx/air) manually due to your circuits!
A131: IT | B131: Si prega di aggiungere manualmente l'amplificatore! | C131: Si prega di aggiungere manualmente il dimmer (RGBW DMX / AIR) secondo le luci commutabili!
A132: CHE | B132: Please add an amplifier manually! | C132: Please add dimmer (dmx/air) manually due to your circuits!
A133: SK | B133: Please add an amplifier manually! | C133: Please add dimmer (dmx/air) manually due to your circuits!
A134: NL | B134: Please add an amplifier manually! | C134: Please add dimmer (dmx/air) manually due to your circuits!
A135: FI | B135: Please add an amplifier manually! | C135: Please add dimmer (dmx/air) manually due to your circuits!
A136: HU | B136: Please add an amplifier manually! | C136: Please add dimmer (dmx/air) manually due to your circuits!
A137: IE | B137: Please add an amplifier manually! | C137: Please add dimmer (dmx/air) manually due to your circuits!
A138: reservated | B138: Please add an amplifier manually! | C138: Please add dimmer (dmx/air) manually due to your circuits!
A139: reservated | B139: Please add an amplifier manually! | C139: Please add dimmer (dmx/air) manually due to your circuits!
A140: reservated | B140: Please add an amplifier manually! | C140: Please add dimmer (dmx/air) manually due to your circuits!
A141: reservated | B141: Please add an amplifier manually! | C141: Please add dimmer (dmx/air) manually due to your circuits!
A142: reservated | B142: Please add an amplifier manually! | C142: Please add dimmer (dmx/air) manually due to your circuits!
A147: DE
A148: EN_UK
A149: EN_US
A150: FR
A151: ES
A152: CZ
A153: IT
A154: CHE
A155: SK
A156: NL
A157: FI
A158: HU
A159: IE
A160: reservated
A161: reservated
A162: reservated
A163: reservated
A164: reservated

Sheet Message Box (hidden)
B2: Verstärker: | C2: =VLOOKUP(Main!C2,Translating_general!A125:C142,2,FALSE) -> Please add an amplifier manually!
B3: Dimmer: | C3: =VLOOKUP(Main!C2,Translating_general!A125:C142,3,FALSE) -> Please add dimmer (dmx/air) manually due to your circuits!

Sheet Translating_products (hidden)
A1: DE | C1: PRICES WITH A , not a . | F1: EN_UK | K1: EN_US | P1: FR | U1: ES | Z1: CZ | AE1: IT | AJ1: CHE | AO1: SK | AT1: NL | AY1: FI | BD1: HU | BH1: IE | BM1: reserviert | BR1: reserviert | BW1: reserviert | CB1: reserviert
B2: Info: DO NOT CHANGE THE ORDER OF THE LIST | G2: Info: DO NOT CHANGE THE ORDER OF THE LIST | L2: Info: DO NOT CHANGE THE ORDER OF THE LIST | Q2: Info: DO NOT CHANGE THE ORDER OF THE LIST | V2: Info: DO NOT CHANGE THE ORDER OF THE LIST | AA2: Info: DO NOT CHANGE THE ORDER OF THE LIST | AF2: Info: DO NOT CHANGE THE ORDER OF THE LIST | AK2: Info: DO NOT CHANGE THE ORDER OF THE LIST | AP2: Info: DO NOT CHANGE THE ORDER OF THE LIST | AU2: Info: DO NOT CHANGE THE ORDER OF THE LIST | AZ2: Info: DO NOT CHANGE THE ORDER OF THE LIST | BE2: Info: DO NOT CHANGE THE ORDER OF THE LIST | BI2: Info: DO NOT CHANGE THE ORDER OF THE LIST | BN2: Info: DO NOT CHANGE THE ORDER OF THE LIST | BS2: Info: DO NOT CHANGE THE ORDER OF THE LIST | BX2: Info: DO NOT CHANGE THE ORDER OF THE LIST | CC2: Info: DO NOT CHANGE THE ORDER OF THE LIST | CH2: DO | CI2: NOT | CN2: Just for the easier use of the function
A3: Art. Nr. | B3: Name | C3: Netto | F3: Item Nr. | G3: Name | H3: excl. Taxes | K3: Item Nr. | L3: Name | M3: excl. Taxes | P3: Item Nr. | Q3: Name | R3: excl. Taxes | U3: Item Nr. | V3: Name | W3: excl. Taxes | Z3: Item Nr. | AA3: Name | AB3: excl. Taxes | AE3: Item Nr. | AF3: Name | AG3: excl. Taxes | AJ3: Item Nr. | AK3: Name | AL3: excl. Taxes | AO3: Item Nr. | AP3: Name | AQ3: excl. Taxes | AT3: Item Nr. | AU3: Name | AV3: excl. Taxes | AY3: Item Nr. | AZ3: Name | BA3: excl. Taxes | BD3: Item Nr. | BE3: Name | BF3: excl. Taxes | BH3: Item Nr. | BI3: Name | BJ3: excl. Taxes | BM3: Item Nr. | BN3: Name | BO3: excl. Taxes | BR3: Item Nr. | BS3: Name | BT3: excl. Taxes | BW3: Item Nr. | BX3: Name | BY3: excl. Taxes | CB3: Item Nr. | CC3: Name | CD3: excl. Taxes | CH3: CHANGE | CI3: HERE | CM3: Zeilennr. | CN3: =A3 -> Art. Nr. | CO3: =F3 -> Item Nr. | CP3: =K3 -> Item Nr. | CQ3: =P3 -> Item Nr. | CR3: =U3 -> Item Nr. | CS3: =Z3 -> Item Nr. | CT3: =AE3 -> Item Nr. | CU3: =AJ3 -> Item Nr. | CV3: =AO3 -> Item Nr. | CW3: =AT3 -> Item Nr. | CX3: =AY3 -> Item Nr. | CY3: =BD3 -> Item Nr. | CZ3: =BH3 -> Item Nr. | DA3: =BM3 -> Item Nr. | DB3: =BR3 -> Item Nr. | DC3: =BW3 -> Item Nr. | DD3: =CB3 -> Item Nr. | DI3: =B3 -> Name | DJ3: =G3 -> Name | DK3: =L3 -> Name | DL3: =Q3 -> Name | DM3: =V3 -> Name | DN3: =$AA$3 -> Name | DO3: =$AF$3 -> Name | DP3: =$AK$3 -> Name | DQ3: =$AP$3 -> Name | DR3: =$AU$3 -> Name | DS3: =$AZ$3 -> Name | DT3: =$BE$3 -> Name | DU3: =$BI$3 -> Name | DV3: =$BN$3 -> Name | DW3: =$BS$3 -> Name | DX3: =$BX$3 -> Name | DY3: =$CC$3 -> Name | EE3: =C3 -> Netto | EF3: =H3 -> excl. Taxes | EG3: =M3 -> excl. Taxes | EH3: =R3 -> excl. Taxes | EI3: =W3 -> excl. Taxes | EJ3: =AB3 -> excl. Taxes | EK3: =AG3 -> excl. Taxes | EL3: =AL3 -> excl. Taxes | EM3: =AQ3 -> excl. Taxes | EN3: =AV3 -> excl. Taxes | EO3: =BA3 -> excl. Taxes | EP3: =BF3 -> excl. Taxes | EQ3: =BJ3 -> excl. Taxes | ER3: =BO3 -> excl. Taxes | ES3: =BT3 -> excl. Taxes | ET3: =BY3 -> excl. Taxes | EU3: =CD3 -> excl. Taxes
A4: DE | B4: DE | C4: DE | D4: DE is just for | F4: EN_UK | G4: EN_UK | H4: EN_UK | K4: EN_US | L4: EN_US | M4: EN_US | P4: FR | Q4: FR | R4: FR | U4: ES | V4: ES | W4: ES | Z4: CZ | AA4: CZ | AB4: CZ | AE4: IT | AF4: IT | AG4: IT | AJ4: CHE | AK4: CHE | AL4: CHE | AO4: SK | AP4: SK | AQ4: SK | AT4: NL | AU4: NL | AV4: NL | AY4: FI | AZ4: FI | BA4: FI | BD4: HU | BE4: HU | BF4: HU | BH4: IE | BI4: IE | BJ4: IE | BM4: name = how you select it in the lookup | BR4: name = how you select it in the lookup | BW4: name = how you select it in the lookup | CB4: name = how you select it in the lookup | CM4: 1 | CN4: DE | CO4: EN_UK | CP4: EN_US | CQ4: FR | CR4: ES | CS4: CZ | CT4: IT | CU4: CHE | CV4: SK | CW4: NL | CX4: FI | CY4: HU | CZ4: IE | DA4: name = how you select it in the lookup | DB4: name = how you select it in the lookup | DC4: name = how you select it in the lookup | DD4: name = how you select it in the lookup | DI4: DE | DJ4: EN_UK | DK4: EN_US | DL4: FR | DM4: ES | DN4: =AA4 -> CZ | DO4: =AF4 -> IT | DP4: =AK4 -> CHE | DQ4: =AP4 -> SK | DR4: =AU4 -> NL | DS4: =AZ4 -> FI | DT4: =BE4 -> HU | DU4: =BI4 -> IE | DV4: =BN4 ->  | DW4: =BS4 ->  | DX4: =BX4 ->  | DY4: =CC4 ->  | EE4: DE | EF4: EN_UK | EG4: EN_US | EH4: FR | EI4: ES | EJ4: CZ | EK4: IT | EL4: CHE | EM4: SK | EN4: NL | EO4: FI | EP4: HU | EQ4: IE
A5: 100001 | B5: Miniserver | C5: 415 | D5: lookup function | F5: 100001 | G5: Miniserver | H5: 357.5 | K5: 100001 | L5: Miniserver | M5: 549 | P5: 100001 | Q5: Miniserver | R5: 415 | U5: 100001 | V5: Miniserver | W5: 415 | Z5: 100001 | AA5: Miniserver | AB5: 10329.75 | AE5: 100001 | AF5: Miniserver | AG5: 415 | AJ5: 100001 | AK5: Miniserver | AL5: 489.82 | AO5: 100001 | AP5: Miniserver | AQ5: 415 | AT5: 100001 | AU5: Miniserver | AV5: 415 | AY5: Not done | AZ5: not translated yet | BA5: Not done | BD5: Not done | BE5: not translated yet | BF5: Not done | BH5: Not done | BI5: not translated yet | BJ5: Not done | BM5: Not done | BN5: not translated yet | BO5: Not done | BR5: Not done | BS5: not translated yet | BT5: Not done | BW5: Not done | BX5: not translated yet | BY5: Not done | CB5: Not done | CC5: not translated yet | CD5: Not done | CM5: 2 | CN5: 100001 | CO5: 100001 | CP5: 100001 | CQ5: 100001 | CR5: 100001 | CS5: 100001 | CT5: 100001 | CU5: 100001 | CV5: 100001 | CW5: 100001 | CX5: Not done | CY5: Not done | CZ5: Not done | DA5: Not done | DB5: Not done | DC5: Not done | DD5: Not done | DI5: Miniserver | DJ5: Miniserver | DK5: Miniserver | DL5: Miniserver | DM5: Miniserver | DN5: Miniserver | DO5: Miniserver | DP5: Miniserver | DQ5: Miniserver | DR5: Miniserver | DS5: not translated yet | DT5: not translated yet | DU5: not translated yet | DV5: not translated yet | DW5: not translated yet | DX5: not translated yet | DY5: not translated yet | EE5: 415 | EF5: 357.5 | EG5: 549 | EH5: 415 | EI5: 415 | EJ5: 10329.75 | EK5: 415 | EL5: 489.82 | EM5: 415 | EN5: 415 | EO5: Not done | EP5: Not done | EQ5: Not done | ER5: Not done | ES5: Not done | ET5: Not done | EU5: Not done
A6: 100002 | B6: Extension | C6: 331.67 | F6: 100002 | G6: Extension | H6: 282.5 | K6: 100002 | L6: Extension | M6: 449 | P6: 100002 | Q6: Extension | R6: 331.67 | U6: 100002 | V6: Extension | W6: 331.67 | Z6: 100002 | AA6: Extension | AB6: 8263.64 | AE6: 100002 | AF6: Extension | AG6: 331.67 | AJ6: 100002 | AK6: Extension | AL6: 406.48 | AO6: 100002 | AP6: Extension | AQ6: 331.67 | AT6: 100002 | AU6: Extension | AV6: 331.67 | AY6: Not done | AZ6: not translated yet | BA6: Not done | BD6: Not done | BE6: not translated yet | BF6: Not done | BH6: Not done | BI6: not translated yet | BJ6: Not done | BM6: Not done | BN6: not translated yet | BO6: Not done | BR6: Not done | BS6: not translated yet | BT6: Not done | BW6: Not done | BX6: not translated yet | BY6: Not done | CB6: Not done | CC6: not translated yet | CD6: Not done | CM6: 3 | CN6: 100002 | CO6: 100002 | CP6: 100002 | CQ6: 100002 | CR6: 100002 | CS6: 100002 | CT6: 100002 | CU6: 100002 | CV6: 100002 | CW6: 100002 | CX6: Not done | CY6: Not done | CZ6: Not done | DA6: Not done | DB6: Not done | DC6: Not done | DD6: Not done | DI6: Extension | DJ6: Extension | DK6: Extension | DL6: Extension | DM6: Extension | DN6: Extension | DO6: Extension | DP6: Extension | DQ6: Extension | DR6: Extension | DS6: not translated yet | DT6: not translated yet | DU6: not translated yet | DV6: not translated yet | DW6: not translated yet | DX6: not translated yet | DY6: not translated yet | EE6: 331.67 | EF6: 282.5 | EG6: 449 | EH6: 331.67 | EI6: 331.67 | EJ6: 8263.64 | EK6: 331.67 | EL6: 406.48 | EM6: 331.67 | EN6: 331.67 | EO6: Not done | EP6: Not done | EQ6: Not done | ER6: Not done | ES6: Not done | ET6: Not done | EU6: Not done
A7: 100004 | B7: Rollup Aufsteller | C7: 190 | F7: 100005 | G7: Rollup Banner English | H7: 82.5 | K7: 100005 | L7: Rollup Banner English | M7: 119 | P7: 100046 | Q7: Rollup FR | R7: 190 | U7: 100004 | V7: Rollup Loxone | W7: 190 | Z7: 100040 | AA7: Rollup český | AB7: 2699 | AE7: 100004 | AF7: Rollup Espositore | AG7: 190 | AJ7: 100004 | AK7: Rollup Aufsteller | AL7: 119.44 | AO7: 100040 | AP7: Rollup český | AQ7: 190 | AT7: 100042 | AU7: Rollup Banner Nederlands | AV7: 190 | AY7: Not done | AZ7: not translated yet | BA7: Not done | BD7: Not done | BE7: not translated yet | BF7: Not done | BH7: Not done | BI7: not translated yet | BJ7: Not done | BM7: Not done | BN7: not translated yet | BO7: Not done | BR7: Not done | BS7: not translated yet | BT7: Not done | BW7: Not done | BX7: not translated yet | BY7: Not done | CB7: Not done | CC7: not translated yet | CD7: Not done | CM7: 4 | CN7: 100004 | CO7: 100005 | CP7: 100005 | CQ7: 100046 | CR7: 100004 | CS7: 100040 | CT7: 100004 | CU7: 100004 | CV7: 100040 | CW7: 100042 | CX7: Not done | CY7: Not done | CZ7: Not done | DA7: Not done | DB7: Not done | DC7: Not done | DD7: Not done | DI7: Rollup Aufsteller | DJ7: Rollup Banner English | DK7: Rollup Banner English | DL7: Rollup FR | DM7: Rollup Loxone | DN7: Rollup český | DO7: Rollup Espositore | DP7: Rollup Aufsteller | DQ7: Rollup český | DR7: Rollup Banner Nederlands | DS7: not translated yet | DT7: not translated yet | DU7: not translated yet | DV7: not translated yet | DW7: not translated yet | DX7: not translated yet | DY7: not translated yet | EE7: 190 | EF7: 82.5 | EG7: 119 | EH7: 190 | EI7: 190 | EJ7: 2699 | EK7: 190 | EL7: 119.44 | EM7: 190 | EN7: 190 | EO7: Not done | EP7: Not done | EQ7: Not done | ER7: Not done | ES7: Not done | ET7: Not done | EU7: Not done
A8: 100008 | B8: SD-Karte mit Firmware | C8: 9.92 | F8: 100008 | G8: Micro SD Card with firmware | H8: 8.75 | K8: 100008 | L8: Micro SD Card with firmware | M8: 14 | P8: 100008 | Q8: Micro SD Card avec firmware | R8: 9.92 | U8: 100008 | V8: Tarjeta SD con Firmware | W8: 9.92 | Z8: 100008 | AA8: SD-Karta s firmwarem | AB8: 247.11 | AE8: 100008 | AF8: Scheda SD con Firmware | AG8: 9.92 | AJ8: 100008 | AK8: SD-Karte mit Firmware | AL8: 11.99 | AO8: 100008 | AP8: SD-Karta s firmwarem | AQ8: 9.92 | AT8: 100008 | AU8: Micro SD Kaart met firmware | AV8: 9.92 | AY8: Not done | AZ8: not translated yet | BA8: Not done | BD8: Not done | BE8: not translated yet | BF8: Not done | BH8: Not done | BI8: not translated yet | BJ8: Not done | BM8: Not done | BN8: not translated yet | BO8: Not done | BR8: Not done | BS8: not translated yet | BT8: Not done | BW8: Not done | BX8: not translated yet | BY8: Not done | CB8: Not done | CC8: not translated yet | CD8: Not done | CM8: 5 | CN8: 100008 | CO8: 100008 | CP8: 100008 | CQ8: 100008 | CR8: 100008 | CS8: 100008 | CT8: 100008 | CU8: 100008 | CV8: 100008 | CW8: 100008 | CX8: Not done | CY8: Not done | CZ8: Not done | DA8: Not done | DB8: Not done | DC8: Not done | DD8: Not done | DI8: SD-Karte mit Firmware | DJ8: Micro SD Card with firmware | DK8: Micro SD Card with firmware | DL8: Micro SD Card avec firmware | DM8: Tarjeta SD con Firmware | DN8: SD-Karta s firmwarem | DO8: Scheda SD con Firmware | DP8: SD-Karte mit Firmware | DQ8: SD-Karta s firmwarem | DR8: Micro SD Kaart met firmware | DS8: not translated yet | DT8: not translated yet | DU8: not translated yet | DV8: not translated yet | DW8: not translated yet | DX8: not translated yet | DY8: not translated yet | EE8: 9.92 | EF8: 8.75 | EG8: 14 | EH8: 9.92 | EI8: 9.92 | EJ8: 247.11 | EK8: 9.92 | EL8: 11.99 | EM8: 9.92 | EN8: 9.92 | EO8: Not done | EP8: Not done | EQ8: Not done | ER8: Not done | ES8: Not done | ET8: Not done | EU8: Not done
A9: 100011 | B9: RS485 Extension | C9: 140.84 | F9: 100011 | G9: RS485 Extension | H9: 122.5 | K9: 100011 | L9: RS485 Extension | M9: 199 | P9: 100011 | Q9: Extension RS485 | R9: 140.84 | U9: 100011 | V9: RS485 Extension | W9: 140.84 | Z9: 100011 | AA9: RS485 Extension | AB9: 3511.57 | AE9: 100011 | AF9: RS485 Extension | AG9: 140.84 | AJ9: 100011 | AK9: RS485 Extension | AL9: 175 | AO9: 100011 | AP9: RS485 Extension | AQ9: 140.84 | AT9: 100011 | AU9: RS485 Extension | AV9: 140.84 | AY9: Not done | AZ9: not translated yet | BA9: Not done | BD9: Not done | BE9: not translated yet | BF9: Not done | BH9: Not done | BI9: not translated yet | BJ9: Not done | BM9: Not done | BN9: not translated yet | BO9: Not done | BR9: Not done | BS9: not translated yet | BT9: Not done | BW9: Not done | BX9: not translated yet | BY9: Not done | CB9: Not done | CC9: not translated yet | CD9: Not done | CM9: 6 | CN9: 100011 | CO9: 100011 | CP9: 100011 | CQ9: 100011 | CR9: 100011 | CS9: 100011 | CT9: 100011 | CU9: 100011 | CV9: 100011 | CW9: 100011 | CX9: Not done | CY9: Not done | CZ9: Not done | DA9: Not done | DB9: Not done | DC9: Not done | DD9: Not done | DI9: RS485 Extension | DJ9: RS485 Extension | DK9: RS485 Extension | DL9: Extension RS485 | DM9: RS485 Extension | DN9: RS485 Extension | DO9: RS485 Extension | DP9: RS485 Extension | DQ9: RS485 Extension | DR9: RS485 Extension | DS9: not translated yet | DT9: not translated yet | DU9: not translated yet | DV9: not translated yet | DW9: not translated yet | DX9: not translated yet | DY9: not translated yet | EE9: 140.84 | EF9: 122.5 | EG9: 199 | EH9: 140.84 | EI9: 140.84 | EJ9: 3511.57 | EK9: 140.84 | EL9: 175 | EM9: 140.84 | EN9: 140.84 | EO9: Not done | EP9: Not done | EQ9: Not done | ER9: Not done | ES9: Not done | ET9: Not done | EU9: Not done
A10: 100012 | B10: DMX Extension | C10: 224.17 | F10: 100012 | G10: DMX Extension | H10: 197.5 | K10: 100012 | L10: DMX Extension | M10: 299 | P10: 100012 | Q10: Extension DMX | R10: 224.17 | U10: 100012 | V10: DMX Extension | W10: 224.17 | Z10: 100012 | AA10: DMX Extension | AB10: 5619.01 | AE10: 100012 | AF10: DMX Extension | AG10: 224.17 | AJ10: 100012 | AK10: DMX Extension | AL10: 276.85 | AO10: 100012 | AP10: DMX Extension | AQ10: 224.17 | AT10: 100012 | AU10: DMX Extension | AV10: 224.17 | AY10: Not done | AZ10: not translated yet | BA10: Not done | BD10: Not done | BE10: not translated yet | BF10: Not done | BH10: Not done | BI10: not translated yet | BJ10: Not done | BM10: Not done | BN10: not translated yet | BO10: Not done | BR10: Not done | BS10: not translated yet | BT10: Not done | BW10: Not done | BX10: not translated yet | BY10: Not done | CB10: Not done | CC10: not translated yet | CD10: Not done | CM10: 7 | CN10: 100012 | CO10: 100012 | CP10: 100012 | CQ10: 100012 | CR10: 100012 | CS10: 100012 | CT10: 100012 | CU10: 100012 | CV10: 100012 | CW10: 100012 | CX10: Not done | CY10: Not done | CZ10: Not done | DA10: Not done | DB10: Not done | DC10: Not done | DD10: Not done | DI10: DMX Extension | DJ10: DMX Extension | DK10: DMX Extension | DL10: Extension DMX | DM10: DMX Extension | DN10: DMX Extension | DO10: DMX Extension | DP10: DMX Extension | DQ10: DMX Extension | DR10: DMX Extension | DS10: not translated yet | DT10: not translated yet | DU10: not translated yet | DV10: not translated yet | DW10: not translated yet | DX10: not translated yet | DY10: not translated yet | EE10: 224.17 | EF10: 197.5 | EG10: 299 | EH10: 224.17 | EI10: 224.17 | EJ10: 5619.01 | EK10: 224.17 | EL10: 276.85 | EM10: 224.17 | EN10: 224.17 | EO10: Not done | EP10: Not done | EQ10: Not done | ER10: Not done | ES10: Not done | ET10: Not done | EU10: Not done
A11: 100013 | B11: RS232 Extension | C11: 140.84 | F11: 100013 | G11: RS 232 Extension | H11: 122.5 | K11: 100013 | L11: RS 232 Extension | M11: 199 | P11: 100013 | Q11: Extension RS 232 | R11: 140.84 | U11: 100013 | V11: RS232 Extension | W11: 140.84 | Z11: 100013 | AA11: RS 232 Extension | AB11: 3511.57 | AE11: 100013 | AF11: RS232 Extension | AG11: 140.84 | AJ11: 100013 | AK11: RS232 Extension | AL11: 175 | AO11: 100013 | AP11: RS 232 Extension | AQ11: 140.84 | AT11: 100013 | AU11: RS 232 Extension | AV11: 140.84 | AY11: Not done | AZ11: not translated yet | BA11: Not done | BD11: Not done | BE11: not translated yet | BF11: Not done | BH11: Not done | BI11: not translated yet | BJ11: Not done | BM11: Not done | BN11: not translated yet | BO11: Not done | BR11: Not done | BS11: not translated yet | BT11: Not done | BW11: Not done | BX11: not translated yet | BY11: Not done | CB11: Not done | CC11: not translated yet | CD11: Not done | CM11: 8 | CN11: 100013 | CO11: 100013 | CP11: 100013 | CQ11: 100013 | CR11: 100013 | CS11: 100013 | CT11: 100013 | CU11: 100013 | CV11: 100013 | CW11: 100013 | CX11: Not done | CY11: Not done | CZ11: Not done | DA11: Not done | DB11: Not done | DC11: Not done | DD11: Not done | DI11: RS232 Extension | DJ11: RS 232 Extension | DK11: RS 232 Extension | DL11: Extension RS 232 | DM11: RS232 Extension | DN11: RS 232 Extension | DO11: RS232 Extension | DP11: RS232 Extension | DQ11: RS 232 Extension | DR11: RS 232 Extension | DS11: not translated yet | DT11: not translated yet | DU11: not translated yet | DV11: not translated yet | DW11: not translated yet | DX11: not translated yet | DY11: not translated yet | EE11: 140.84 | EF11: 122.5 | EG11: 199 | EH11: 140.84 | EI11: 140.84 | EJ11: 3511.57 | EK11: 140.84 | EL11: 175 | EM11: 140.84 | EN11: 140.84 | EO11: Not done | EP11: Not done | EQ11: Not done | ER11: Not done | ES11: Not done | ET11: Not done | EU11: Not done
A12: 100014 | B12: 1-wire Extension | C12: 140.84 | F12: 100014 | G12: 1-Wire Extension | H12: 122.5 | K12: 100014 | L12: 1-Wire Extension | M12: 199 | P12: 100014 | Q12: Extension 1-Wire | R12: 140.84 | U12: 100014 | V12: 1-wire Extension | W12: 140.84 | Z12: 100014 | AA12: 1-Wire Extension | AB12: 3511.57 | AE12: 100014 | AF12: 1-wire Extension | AG12: 140.84 | AJ12: 100014 | AK12: 1-wire Extension | AL12: 175 | AO12: 100014 | AP12: 1-Wire Extension | AQ12: 140.84 | AT12: 100014 | AU12: 1-Wire Extension | AV12: 140.84 | AY12: Not done | AZ12: not translated yet | BA12: Not done | BD12: Not done | BE12: not translated yet | BF12: Not done | BH12: Not done | BI12: not translated yet | BJ12: Not done | BM12: Not done | BN12: not translated yet | BO12: Not done | BR12: Not done | BS12: not translated yet | BT12: Not done | BW12: Not done | BX12: not translated yet | BY12: Not done | CB12: Not done | CC12: not translated yet | CD12: Not done | CM12: 9 | CN12: 100014 | CO12: 100014 | CP12: 100014 | CQ12: 100014 | CR12: 100014 | CS12: 100014 | CT12: 100014 | CU12: 100014 | CV12: 100014 | CW12: 100014 | CX12: Not done | CY12: Not done | CZ12: Not done | DA12: Not done | DB12: Not done | DC12: Not done | DD12: Not done | DI12: 1-wire Extension | DJ12: 1-Wire Extension | DK12: 1-Wire Extension | DL12: Extension 1-Wire | DM12: 1-wire Extension | DN12: 1-Wire Extension | DO12: 1-wire Extension | DP12: 1-wire Extension | DQ12: 1-Wire Extension | DR12: 1-Wire Extension | DS12: not translated yet | DT12: not translated yet | DU12: not translated yet | DV12: not translated yet | DW12: not translated yet | DX12: not translated yet | DY12: not translated yet | EE12: 140.84 | EF12: 122.5 | EG12: 199 | EH12: 140.84 | EI12: 140.84 | EJ12: 3511.57 | EK12: 140.84 | EL12: 175 | EM12: 140.84 | EN12: 140.84 | EO12: Not done | EP12: Not done | EQ12: Not done | ER12: Not done | ES12: Not done | ET12: Not done | EU12: Not done
A13: 100015 | B13: EnOcean Extension | C13: 249.17 | F13: 100015 | G13: Enocean Extension | H13: 212.5 | K13: not available in this country | L13: not available in this country | M13: 0 | P13: 100015 | Q13: Extension Enocean | R13: 249.17 | U13: 100015 | V13: EnOcean Extension | W13: 249.17 | Z13: 100015 | AA13: Enocean Extension | AB13: 6197.52 | AE13: 100015 | AF13: EnOcean Extension | AG13: 249.17 | AJ13: 100015 | AK13: EnOcean Extension | AL13: 310.19 | AO13: 100015 | AP13: Enocean Extension | AQ13: 249.17 | AT13: 100015 | AU13: Enocean Extension | AV13: 249.17 | AY13: Not done | AZ13: not translated yet | BA13: Not done | BD13: Not done | BE13: not translated yet | BF13: Not done | BH13: Not done | BI13: not translated yet | BJ13: Not done | BM13: Not done | BN13: not translated yet | BO13: Not done | BR13: Not done | BS13: not translated yet | BT13: Not done | BW13: Not done | BX13: not translated yet | BY13: Not done | CB13: Not done | CC13: not translated yet | CD13: Not done | CM13: 10 | CN13: 100015 | CO13: 100015 | CP13: not available in this country | CQ13: 100015 | CR13: 100015 | CS13: 100015 | CT13: 100015 | CU13: 100015 | CV13: 100015 | CW13: 100015 | CX13: Not done | CY13: Not done | CZ13: Not done | DA13: Not done | DB13: Not done | DC13: Not done | DD13: Not done | DI13: EnOcean Extension | DJ13: Enocean Extension | DK13: not available in this country | DL13: Extension Enocean | DM13: EnOcean Extension | DN13: Enocean Extension | DO13: EnOcean Extension | DP13: EnOcean Extension | DQ13: Enocean Extension | DR13: Enocean Extension | DS13: not translated yet | DT13: not translated yet | DU13: not translated yet | DV13: not translated yet | DW13: not translated yet | DX13: not translated yet | DY13: not translated yet | EE13: 249.17 | EF13: 212.5 | EG13: 0 | EH13: 249.17 | EI13: 249.17 | EJ13: 6197.52 | EK13: 249.17 | EL13: 310.19 | EM13: 249.17 | EN13: 249.17 | EO13: Not done | EP13: Not done | EQ13: Not done | ER13: Not done | ES13: Not done | ET13: Not done | EU13: Not done
A14: 100023 | B14: IR Module | C14: 65.83 | F14: 0 | G14: No longer sold | H14: 57.5 | K14: No longer sold | L14: No longer sold | M14: 0 | P14: 100023 | Q14: IR Module | R14: 65.83 | U14: 100023 | V14: Módulo IR | W14: 65.83 | Z14: 100023 | AA14: IR Modul | AB14: 1652.07 | AE14: 100023 | AF14: Modulo IR | AG14: 65.83 | AJ14: 100023 | AK14: IR Module | AL14: 88.84 | AO14: 100023 | AP14: IR Modul | AQ14: 65.83 | AT14: 100023 | AU14: IR Module | AV14: 65.83 | AY14: Not done | AZ14: not translated yet | BA14: Not done | BD14: Not done | BE14: not translated yet | BF14: Not done | BH14: Not done | BI14: not translated yet | BJ14: Not done | BM14: Not done | BN14: not translated yet | BO14: Not done | BR14: Not done | BS14: not translated yet | BT14: Not done | BW14: Not done | BX14: not translated yet | BY14: Not done | CB14: Not done | CC14: not translated yet | CD14: Not done | CM14: 11 | CN14: 100023 | CO14: 0 | CP14: No longer sold | CQ14: 100023 | CR14: 100023 | CS14: 100023 | CT14: 100023 | CU14: 100023 | CV14: 100023 | CW14: 100023 | CX14: Not done | CY14: Not done | CZ14: Not done | DA14: Not done | DB14: Not done | DC14: Not done | DD14: Not done | DI14: IR Module | DJ14: No longer sold | DK14: No longer sold | DL14: IR Module | DM14: Módulo IR | DN14: IR Modul | DO14: Modulo IR | DP14: IR Module | DQ14: IR Modul | DR14: IR Module | DS14: not translated yet | DT14: not translated yet | DU14: not translated yet | DV14: not translated yet | DW14: not translated yet | DX14: not translated yet | DY14: not translated yet | EE14: 65.83 | EF14: 57.5 | EG14: 0 | EH14: 65.83 | EI14: 65.83 | EJ14: 1652.07 | EK14: 65.83 | EL14: 88.84 | EM14: 65.83 | EN14: 65.83 | EO14: Not done | EP14: Not done | EQ14: Not done | ER14: Not done | ES14: Not done | ET14: Not done | EU14: Not done
A15: 100025 | B15: Cloud Weather 1 Jahr | C15: 49.92 | F15: 100025 | G15: Weather Service 1 Year | H15: 42.5 | K15: 100025 | L15: Weather Service 1 Year | M15: 69 | P15: 100025 | Q15: Service météo 1 an | R15: 49.92 | U15: 100025 | V15: Servico Meteorológico 1 año | W15: 49.92 | Z15: 100025 | AA15: Weather Service 1 rok | AB15: 1238.84 | AE15: 100025 | AF15: Cloud Weather 1 anno | AG15: 49.92 | AJ15: 100025 | AK15: Cloud Weather 1 Jahr | AL15: 64.77 | AO15: 100025 | AP15: Weather Service 1 rok | AQ15: 49.92 | AT15: 100025 | AU15: Weather Service 1 Jaar | AV15: 49.92 | AY15: Not done | AZ15: not translated yet | BA15: Not done | BD15: Not done | BE15: not translated yet | BF15: Not done | BH15: Not done | BI15: not translated yet | BJ15: Not done | BM15: Not done | BN15: not translated yet | BO15: Not done | BR15: Not done | BS15: not translated yet | BT15: Not done | BW15: Not done | BX15: not translated yet | BY15: Not done | CB15: Not done | CC15: not translated yet | CD15: Not done | CM15: 12 | CN15: 100025 | CO15: 100025 | CP15: 100025 | CQ15: 100025 | CR15: 100025 | CS15: 100025 | CT15: 100025 | CU15: 100025 | CV15: 100025 | CW15: 100025 | CX15: Not done | CY15: Not done | CZ15: Not done | DA15: Not done | DB15: Not done | DC15: Not done | DD15: Not done | DI15: Cloud Weather 1 Jahr | DJ15: Weather Service 1 Year | DK15: Weather Service 1 Year | DL15: Service météo 1 an | DM15: Servico Meteorológico 1 año | DN15: Weather Service 1 rok | DO15: Cloud Weather 1 anno | DP15: Cloud Weather 1 Jahr | DQ15: Weather Service 1 rok | DR15: Weather Service 1 Jaar | DS15: not translated yet | DT15: not translated yet | DU15: not translated yet | DV15: not translated yet | DW15: not translated yet | DX15: not translated yet | DY15: not translated yet | EE15: 49.92 | EF15: 42.5 | EG15: 69 | EH15: 49.92 | EI15: 49.92 | EJ15: 1238.84 | EK15: 49.92 | EL15: 64.77 | EM15: 49.92 | EN15: 49.92 | EO15: Not done | EP15: Not done | EQ15: Not done | ER15: Not done | ES15: Not done | ET15: Not done | EU15: Not done
A16: 100201 | B16: Cloud Weather 10 Jahre | C16: 290.83 | F16: 100201 | G16: Weather Service 10 Year | H16: 240 | K16: 100201 | L16: Weather Service 10 Year | M16: 325 | P16: 100201 | Q16: Service météo 10 ans | R16: 279.2 | U16: 100201 | V16: Servico Meteorológico 10 años | W16: 279.2 | Z16: 100201 | AA16: Weather Service 10 let | AB16: 7899 | AE16: 100201 | AF16: Cloud Weather 10 anno | AG16: 279.2 | AJ16: 100201 | AK16: Cloud Weather 10 Jahre | AL16: 369.44 | AO16: 100201 | AP16: Weather Service 10 let | AQ16: 279.2 | AT16: 100201 | AU16: Weather Service 10 Jaar | AV16: 279.2 | AY16: Not done | AZ16: not translated yet | BA16: Not done | BD16: Not done | BE16: not translated yet | BF16: Not done | BH16: Not done | BI16: not translated yet | BJ16: Not done | BM16: Not done | BN16: not translated yet | BO16: Not done | BR16: Not done | BS16: not translated yet | BT16: Not done | BW16: Not done | BX16: not translated yet | BY16: Not done | CB16: Not done | CC16: not translated yet | CD16: Not done | CM16: 13 | CN16: 100201 | CO16: 100201 | CP16: 100201 | CQ16: 100201 | CR16: 100201 | CS16: 100201 | CT16: 100201 | CU16: 100201 | CV16: 100201 | CW16: 100201 | CX16: Not done | CY16: Not done | CZ16: Not done | DA16: Not done | DB16: Not done | DC16: Not done | DD16: Not done | DI16: Cloud Weather 10 Jahre | DJ16: Weather Service 10 Year | DK16: Weather Service 10 Year | DL16: Service météo 10 ans | DM16: Servico Meteorológico 10 años | DN16: Weather Service 10 let | DO16: Cloud Weather 10 anno | DP16: Cloud Weather 10 Jahre | DQ16: Weather Service 10 let | DR16: Weather Service 10 Jaar | DS16: not translated yet | DT16: not translated yet | DU16: not translated yet | DV16: not translated yet | DW16: not translated yet | DX16: not translated yet | DY16: not translated yet | EE16: 290.83 | EF16: 240 | EG16: 325 | EH16: 279.2 | EI16: 279.2 | EJ16: 7899 | EK16: 279.2 | EL16: 369.44 | EM16: 279.2 | EN16: 279.2 | EO16: Not done | EP16: Not done | EQ16: Not done | ER16: Not done | ES16: Not done | ET16: Not done | EU16: Not done
A17: 100027 | B17: Cloud Caller 1 Jahr | C17: 49.92 | F17: 100027 | G17: Caller Service 1 Year | H17: 47.5 | K17: 100027 | L17: Caller Service 1 Year | M17: 69 | P17: 100027 | Q17: Caller Service 1 an | R17: 49.92 | U17: 100027 | V17: Servicio de Llamadas 1 año | W17: 49.92 | Z17: 100027 | AA17: Caller Service 1 rok | AB17: 1238.84 | AE17: 100027 | AF17: Cloud Caller 1 anno | AG17: 49.92 | AJ17: 100027 | AK17: Cloud Caller 1 Jahr | AL17: 64.77 | AO17: 100027 | AP17: Caller Service 1 rok | AQ17: 49.92 | AT17: 100027 | AU17: Caller Service 1 Jaar | AV17: 49.92 | AY17: Not done | AZ17: not translated yet | BA17: Not done | BD17: Not done | BE17: not translated yet | BF17: Not done | BH17: Not done | BI17: not translated yet | BJ17: Not done | BM17: Not done | BN17: not translated yet | BO17: Not done | BR17: Not done | BS17: not translated yet | BT17: Not done | BW17: Not done | BX17: not translated yet | BY17: Not done | CB17: Not done | CC17: not translated yet | CD17: Not done | CM17: 14 | CN17: 100027 | CO17: 100027 | CP17: 100027 | CQ17: 100027 | CR17: 100027 | CS17: 100027 | CT17: 100027 | CU17: 100027 | CV17: 100027 | CW17: 100027 | CX17: Not done | CY17: Not done | CZ17: Not done | DA17: Not done | DB17: Not done | DC17: Not done | DD17: Not done | DI17: Cloud Caller 1 Jahr | DJ17: Caller Service 1 Year | DK17: Caller Service 1 Year | DL17: Caller Service 1 an | DM17: Servicio de Llamadas 1 año | DN17: Caller Service 1 rok | DO17: Cloud Caller 1 anno | DP17: Cloud Caller 1 Jahr | DQ17: Caller Service 1 rok | DR17: Caller Service 1 Jaar | DS17: not translated yet | DT17: not translated yet | DU17: not translated yet | DV17: not translated yet | DW17: not translated yet | DX17: not translated yet | DY17: not translated yet | EE17: 49.92 | EF17: 47.5 | EG17: 69 | EH17: 49.92 | EI17: 49.92 | EJ17: 1238.84 | EK17: 49.92 | EL17: 64.77 | EM17: 49.92 | EN17: 49.92 | EO17: Not done | EP17: Not done | EQ17: Not done | ER17: Not done | ES17: Not done | ET17: Not done | EU17: Not done
A18: 100202 | B18: Cloud Caller 10 Jahre | C18: 290.83 | F18: 100028 | G18: Caller Service 10 Years | H18: 240 | K18: 100028 | L18: Caller Service 10 Years | M18: 325 | P18: 100028 | Q18: Caller Service 3 ans | R18: 290.83 | U18: 100028 | V18: Servicio de Llamadas 10 años | W18: 290.83 | Z18: 100028 | AA18: Caller Service 10 let | AB18: 7899 | AE18: 100028 | AF18: Cloud Caller 3 anni | AG18: 141.59 | AJ18: 100028 | AK18: Cloud Caller 3 Jahre | AL18: 165.74 | AO18: 100028 | AP18: Caller Service 10 let | AQ18: 279.2 | AT18: 100028 | AU18: Caller Service 3 Jaar | AV18: 141.59 | AY18: Not done | AZ18: not translated yet | BA18: Not done | BD18: Not done | BE18: not translated yet | BF18: Not done | BH18: Not done | BI18: not translated yet | BJ18: Not done | BM18: Not done | BN18: not translated yet | BO18: Not done | BR18: Not done | BS18: not translated yet | BT18: Not done | BW18: Not done | BX18: not translated yet | BY18: Not done | CB18: Not done | CC18: not translated yet | CD18: Not done | CM18: 15 | CN18: 100202 | CO18: 100028 | CP18: 100028 | CQ18: 100028 | CR18: 100028 | CS18: 100028 | CT18: 100028 | CU18: 100028 | CV18: 100028 | CW18: 100028 | CX18: Not done | CY18: Not done | CZ18: Not done | DA18: Not done | DB18: Not done | DC18: Not done | DD18: Not done | DI18: Cloud Caller 10 Jahre | DJ18: Caller Service 10 Years | DK18: Caller Service 10 Years | DL18: Caller Service 3 ans | DM18: Servicio de Llamadas 10 años | DN18: Caller Service 10 let | DO18: Cloud Caller 3 anni | DP18: Cloud Caller 3 Jahre | DQ18: Caller Service 10 let | DR18: Caller Service 3 Jaar | DS18: not translated yet | DT18: not translated yet | DU18: not translated yet | DV18: not translated yet | DW18: not translated yet | DX18: not translated yet | DY18: not translated yet | EE18: 290.83 | EF18: 240 | EG18: 325 | EH18: 290.83 | EI18: 290.83 | EJ18: 7899 | EK18: 141.59 | EL18: 165.74 | EM18: 279.2 | EN18: 141.59 | EO18: Not done | EP18: Not done | EQ18: Not done | ER18: Not done | ES18: Not done | ET18: Not done | EU18: Not done
A19: 100029 | B19: Dimmer Extension | C19: 373.33 | F19: 100029 | G19: Dimmer Extension | H19: 322.5 | K19: 100029 | L19: Dimmer Extension | M19: 499 | P19: 100029 | Q19: Extension Dimmer | R19: 373.33 | U19: 100029 | V19: Dimmer Extension | W19: 373.33 | Z19: 100029 | AA19: Dimmer Extension | AB19: 9338.02 | AE19: 100029 | AF19: Dimmer Extension | AG19: 373.33 | AJ19: 100029 | AK19: Dimmer Extension | AL19: 452.78 | AO19: 100029 | AP19: Dimmer Extension | AQ19: 373.33 | AT19: 100029 | AU19: Dimmer Extension | AV19: 373.33 | AY19: Not done | AZ19: not translated yet | BA19: Not done | BD19: Not done | BE19: not translated yet | BF19: Not done | BH19: Not done | BI19: not translated yet | BJ19: Not done | BM19: Not done | BN19: not translated yet | BO19: Not done | BR19: Not done | BS19: not translated yet | BT19: Not done | BW19: Not done | BX19: not translated yet | BY19: Not done | CB19: Not done | CC19: not translated yet | CD19: Not done | CM19: 16 | CN19: 100029 | CO19: 100029 | CP19: 100029 | CQ19: 100029 | CR19: 100029 | CS19: 100029 | CT19: 100029 | CU19: 100029 | CV19: 100029 | CW19: 100029 | CX19: Not done | CY19: Not done | CZ19: Not done | DA19: Not done | DB19: Not done | DC19: Not done | DD19: Not done | DI19: Dimmer Extension | DJ19: Dimmer Extension | DK19: Dimmer Extension | DL19: Extension Dimmer | DM19: Dimmer Extension | DN19: Dimmer Extension | DO19: Dimmer Extension | DP19: Dimmer Extension | DQ19: Dimmer Extension | DR19: Dimmer Extension | DS19: not translated yet | DT19: not translated yet | DU19: not translated yet | DV19: not translated yet | DW19: not translated yet | DX19: not translated yet | DY19: not translated yet | EE19: 373.33 | EF19: 322.5 | EG19: 499 | EH19: 373.33 | EI19: 373.33 | EJ19: 9338.02 | EK19: 373.33 | EL19: 452.78 | EM19: 373.33 | EN19: 373.33 | EO19: Not done | EP19: Not done | EQ19: Not done | ER19: Not done | ES19: Not done | ET19: Not done | EU19: Not done
A20: 100035 | B20: IR Set | C20: 165.83 | F20: 0 | G20: No longer sold | H20: 147.5 | K20: 100035 | L20: IR Set | M20: 229 | P20: 100035 | Q20: Kit IR | R20: 165.83 | U20: 100035 | V20: IR Set | W20: 165.83 | Z20: 100035 | AA20: IR Set | AB20: 4131.4 | AE20: 100035 | AF20: IR Set | AG20: 165.83 | AJ20: 100035 | AK20: IR Set | AL20: 221.3 | AO20: 100035 | AP20: IR Set | AQ20: 165.83 | AT20: 100035 | AU20: IR Set | AV20: 165.83 | AY20: Not done | AZ20: not translated yet | BA20: Not done | BD20: Not done | BE20: not translated yet | BF20: Not done | BH20: Not done | BI20: not translated yet | BJ20: Not done | BM20: Not done | BN20: not translated yet | BO20: Not done | BR20: Not done | BS20: not translated yet | BT20: Not done | BW20: Not done | BX20: not translated yet | BY20: Not done | CB20: Not done | CC20: not translated yet | CD20: Not done | CM20: 17 | CN20: 100035 | CO20: 0 | CP20: 100035 | CQ20: 100035 | CR20: 100035 | CS20: 100035 | CT20: 100035 | CU20: 100035 | CV20: 100035 | CW20: 100035 | CX20: Not done | CY20: Not done | CZ20: Not done | DA20: Not done | DB20: Not done | DC20: Not done | DD20: Not done | DI20: IR Set | DJ20: No longer sold | DK20: IR Set | DL20: Kit IR | DM20: IR Set | DN20: IR Set | DO20: IR Set | DP20: IR Set | DQ20: IR Set | DR20: IR Set | DS20: not translated yet | DT20: not translated yet | DU20: not translated yet | DV20: not translated yet | DW20: not translated yet | DX20: not translated yet | DY20: not translated yet | EE20: 165.83 | EF20: 147.5 | EG20: 229 | EH20: 165.83 | EI20: 165.83 | EJ20: 4131.4 | EK20: 165.83 | EL20: 221.3 | EM20: 165.83 | EN20: 165.83 | EO20: Not done | EP20: Not done | EQ20: Not done | ER20: Not done | ES20: Not done | ET20: Not done | EU20: Not done
A21: 100038 | B21: Relay Extension | C21: 395 | F21: 100038 | G21: Relay Extension | H21: 332.5 | K21: 100038 | L21: Relay Extension | M21: 539 | P21: 100038 | Q21: Extension Relay | R21: 395 | U21: 100038 | V21: Relay Extension | W21: 395 | Z21: 100038 | AA21: Relay Extension | AB21: 9916.53 | AE21: 100038 | AF21: Relay Extension | AG21: 395 | AJ21: 100038 | AK21: Relay Extension | AL21: 489.82 | AO21: 100038 | AP21: Relay Extension | AQ21: 395 | AT21: 100038 | AU21: Relay Extension | AV21: 395 | AY21: Not done | AZ21: not translated yet | BA21: Not done | BD21: Not done | BE21: not translated yet | BF21: Not done | BH21: Not done | BI21: not translated yet | BJ21: Not done | BM21: Not done | BN21: not translated yet | BO21: Not done | BR21: Not done | BS21: not translated yet | BT21: Not done | BW21: Not done | BX21: not translated yet | BY21: Not done | CB21: Not done | CC21: not translated yet | CD21: Not done | CM21: 18 | CN21: 100038 | CO21: 100038 | CP21: 100038 | CQ21: 100038 | CR21: 100038 | CS21: 100038 | CT21: 100038 | CU21: 100038 | CV21: 100038 | CW21: 100038 | CX21: Not done | CY21: Not done | CZ21: Not done | DA21: Not done | DB21: Not done | DC21: Not done | DD21: Not done | DI21: Relay Extension | DJ21: Relay Extension | DK21: Relay Extension | DL21: Extension Relay | DM21: Relay Extension | DN21: Relay Extension | DO21: Relay Extension | DP21: Relay Extension | DQ21: Relay Extension | DR21: Relay Extension | DS21: not translated yet | DT21: not translated yet | DU21: not translated yet | DV21: not translated yet | DW21: not translated yet | DX21: not translated yet | DY21: not translated yet | EE21: 395 | EF21: 332.5 | EG21: 539 | EH21: 395 | EI21: 395 | EJ21: 9916.53 | EK21: 395 | EL21: 489.82 | EM21: 395 | EN21: 395 | EO21: Not done | EP21: Not done | EQ21: Not done | ER21: Not done | ES21: Not done | ET21: Not done | EU21: Not done
A22: 100114 | B22: Air Base Extension | C22: 82.5 | F22: 100114 | G22: Air Base Extension | H22: 72.5 | K22: 100114 | L22: Air Base Extension | M22: 113 | P22: 100114 | Q22: Extension Air Base | R22: 82.5 | U22: 100114 | V22: Air Base Extension | W22: 82.5 | Z22: 100114 | AA22: Air Base Extension | AB22: 2099 | AE22: 100114 | AF22: Air Base Extension | AG22: 82.5 | AJ22: 100114 | AK22: Air Base Extension | AL22: 100.93 | AO22: 100114 | AP22: Air Base Extension | AQ22: 82.5 | AT22: 100114 | AU22: Air Base Extension | AV22: 82.5 | AY22: Not done | AZ22: not translated yet | BA22: Not done | BD22: Not done | BE22: not translated yet | BF22: Not done | BH22: Not done | BI22: not translated yet | BJ22: Not done | BM22: Not done | BN22: not translated yet | BO22: Not done | BR22: Not done | BS22: not translated yet | BT22: Not done | BW22: Not done | BX22: not translated yet | BY22: Not done | CB22: Not done | CC22: not translated yet | CD22: Not done | CM22: 19 | CN22: 100114 | CO22: 100114 | CP22: 100114 | CQ22: 100114 | CR22: 100114 | CS22: 100114 | CT22: 100114 | CU22: 100114 | CV22: 100114 | CW22: 100114 | CX22: Not done | CY22: Not done | CZ22: Not done | DA22: Not done | DB22: Not done | DC22: Not done | DD22: Not done | DI22: Air Base Extension | DJ22: Air Base Extension | DK22: Air Base Extension | DL22: Extension Air Base | DM22: Air Base Extension | DN22: Air Base Extension | DO22: Air Base Extension | DP22: Air Base Extension | DQ22: Air Base Extension | DR22: Air Base Extension | DS22: not translated yet | DT22: not translated yet | DU22: not translated yet | DV22: not translated yet | DW22: not translated yet | DX22: not translated yet | DY22: not translated yet | EE22: 82.5 | EF22: 72.5 | EG22: 113 | EH22: 82.5 | EI22: 82.5 | EJ22: 2099 | EK22: 82.5 | EL22: 100.93 | EM22: 82.5 | EN22: 82.5 | EO22: Not done | EP22: Not done | EQ22: Not done | ER22: Not done | ES22: Not done | ET22: Not done | EU22: Not done
A23: 100115 | B23: Smart Socket Air - Typ F AT | C23: 58.25 | F23: 100121 | G23: Smart Socket Air - Type G (UK) | H23: 50 | K23: not available in this country | L23: not available in this country | M23: 0 | P23: 100120 | Q23: Smart Socket Air - Type E (FR) | R23: 58.25 | U23: 100115 | V23: Smart Socket Air - Tipo F ES | W23: 58.25 | Z23: 100120 | AA23: Smart Socket Air Typ E | AB23: 1499 | AE23: 100115 | AF23: Smart Socket Air - Typ F AT | AG23: 58.25 | AJ23: 100119 | AK23: Smart Socket Air - Typ J (CH, LI) | AL23: 74.03 | AO23: 100120 | AP23: Smart Socket Air Typ E | AQ23: 58.25 | AT23: 100120 | AU23: Smart Socket Air BE Type E - NL Type F (100115) | AV23: 58.25 | AY23: Not done | AZ23: not translated yet | BA23: Not done | BD23: Not done | BE23: not translated yet | BF23: Not done | BH23: Not done | BI23: not translated yet | BJ23: Not done | BM23: Not done | BN23: not translated yet | BO23: Not done | BR23: Not done | BS23: not translated yet | BT23: Not done | BW23: Not done | BX23: not translated yet | BY23: Not done | CB23: Not done | CC23: not translated yet | CD23: Not done | CM23: 20 | CN23: 100115 | CO23: 100121 | CP23: not available in this country | CQ23: 100120 | CR23: 100115 | CS23: 100120 | CT23: 100115 | CU23: 100119 | CV23: 100120 | CW23: 100120 | CX23: Not done | CY23: Not done | CZ23: Not done | DA23: Not done | DB23: Not done | DC23: Not done | DD23: Not done | DI23: Smart Socket Air - Typ F AT | DJ23: Smart Socket Air - Type G (UK) | DK23: not available in this country | DL23: Smart Socket Air - Type E (FR) | DM23: Smart Socket Air - Tipo F ES | DN23: Smart Socket Air Typ E | DO23: Smart Socket Air - Typ F AT | DP23: Smart Socket Air - Typ J (CH, LI) | DQ23: Smart Socket Air Typ E | DR23: Smart Socket Air BE Type E - NL Type F (100115) | DS23: not translated yet | DT23: not translated yet | DU23: not translated yet | DV23: not translated yet | DW23: not translated yet | DX23: not translated yet | DY23: not translated yet | EE23: 58.25 | EF23: 50 | EG23: 0 | EH23: 58.25 | EI23: 58.25 | EJ23: 1499 | EK23: 58.25 | EL23: 74.03 | EM23: 58.25 | EN23: 58.25 | EO23: Not done | EP23: Not done | EQ23: Not done | ER23: Not done | ES23: Not done | ET23: Not done | EU23: Not done
A24: 100116 | B24: Multi Extension Air | C24: 395 | F24: 100116 | G24: Multi Extension Air | H24: 332.5 | K24: 100116 | L24: Multi Extension Air | M24: 539 | P24: 100116 | Q24: Multi Extension Air | R24: 395 | U24: 100116 | V24: Multi Extension Air | W24: 395 | Z24: 100116 | AA24: Multi Extension Air | AB24: 9916.53 | AE24: 100116 | AF24: Multi Extension Air | AG24: 395 | AJ24: 100116 | AK24: Multi Extension Air | AL24: 489.82 | AO24: 100116 | AP24: Multi Extension Air | AQ24: 395 | AT24: 100116 | AU24: Multi Extension Air | AV24: 395 | AY24: Not done | AZ24: not translated yet | BA24: Not done | BD24: Not done | BE24: not translated yet | BF24: Not done | BH24: Not done | BI24: not translated yet | BJ24: Not done | BM24: Not done | BN24: not translated yet | BO24: Not done | BR24: Not done | BS24: not translated yet | BT24: Not done | BW24: Not done | BX24: not translated yet | BY24: Not done | CB24: Not done | CC24: not translated yet | CD24: Not done | CM24: 21 | CN24: 100116 | CO24: 100116 | CP24: 100116 | CQ24: 100116 | CR24: 100116 | CS24: 100116 | CT24: 100116 | CU24: 100116 | CV24: 100116 | CW24: 100116 | CX24: Not done | CY24: Not done | CZ24: Not done | DA24: Not done | DB24: Not done | DC24: Not done | DD24: Not done | DI24: Multi Extension Air | DJ24: Multi Extension Air | DK24: Multi Extension Air | DL24: Multi Extension Air | DM24: Multi Extension Air | DN24: Multi Extension Air | DO24: Multi Extension Air | DP24: Multi Extension Air | DQ24: Multi Extension Air | DR24: Multi Extension Air | DS24: not translated yet | DT24: not translated yet | DU24: not translated yet | DV24: not translated yet | DW24: not translated yet | DX24: not translated yet | DY24: not translated yet | EE24: 395 | EF24: 332.5 | EG24: 539 | EH24: 395 | EI24: 395 | EJ24: 9916.53 | EK24: 395 | EL24: 489.82 | EM24: 395 | EN24: 395 | EO24: Not done | EP24: Not done | EQ24: Not done | ER24: Not done | ES24: Not done | ET24: Not done | EU24: Not done
A25: 100117 | B25: RGBW 24V Dimmer DMX | C25: 59.9 | F25: 100117 | G25: RGBW 24V Dimmer DMX | H25: 55 | K25: 100117 | L25: RGBW 24V Dimmer DMX | M25: 82 | P25: 100117 | Q25: RGBW 24V Dimmer DMX | R25: 59.9 | U25: 100117 | V25: Dimmer DMX RGBW 24V | W25: 59.9 | Z25: 100117 | AA25: RGBW 24V Dimmer DMX | AB25: 1499 | AE25: 100117 | AF25: RGBW 24V Dimmer DMX | AG25: 59.9 | AJ25: 100117 | AK25: RGBW 24V Dimmer DMX | AL25: 74.03 | AO25: 100117 | AP25: RGBW 24V Dimmer DMX | AQ25: 59.9 | AT25: 100117 | AU25: RGBW 24V Dimmer DMX | AV25: 59.9 | AY25: Not done | AZ25: not translated yet | BA25: Not done | BD25: Not done | BE25: not translated yet | BF25: Not done | BH25: Not done | BI25: not translated yet | BJ25: Not done | BM25: Not done | BN25: not translated yet | BO25: Not done | BR25: Not done | BS25: not translated yet | BT25: Not done | BW25: Not done | BX25: not translated yet | BY25: Not done | CB25: Not done | CC25: not translated yet | CD25: Not done | CM25: 22 | CN25: 100117 | CO25: 100117 | CP25: 100117 | CQ25: 100117 | CR25: 100117 | CS25: 100117 | CT25: 100117 | CU25: 100117 | CV25: 100117 | CW25: 100117 | CX25: Not done | CY25: Not done | CZ25: Not done | DA25: Not done | DB25: Not done | DC25: Not done | DD25: Not done | DI25: RGBW 24V Dimmer DMX | DJ25: RGBW 24V Dimmer DMX | DK25: RGBW 24V Dimmer DMX | DL25: RGBW 24V Dimmer DMX | DM25: Dimmer DMX RGBW 24V | DN25: RGBW 24V Dimmer DMX | DO25: RGBW 24V Dimmer DMX | DP25: RGBW 24V Dimmer DMX | DQ25: RGBW 24V Dimmer DMX | DR25: RGBW 24V Dimmer DMX | DS25: not translated yet | DT25: not translated yet | DU25: not translated yet | DV25: not translated yet | DW25: not translated yet | DX25: not translated yet | DY25: not translated yet | EE25: 59.9 | EF25: 55 | EG25: 82 | EH25: 59.9 | EI25: 59.9 | EJ25: 1499 | EK25: 59.9 | EL25: 74.03 | EM25: 59.9 | EN25: 59.9 | EO25: Not done | EP25: Not done | EQ25: Not done | ER25: Not done | ES25: Not done | ET25: Not done | EU25: Not done
A26: 100124 | B26: Modbus Extension | C26: 190 | F26: 100124 | G26: Modbus Extension | H26: 165 | K26: 100124 | L26: Modbus Extension | M26: 255 | P26: 100124 | Q26: Extension Modbus | R26: 190 | U26: 100124 | V26: Modbus Extension | W26: 190 | Z26: 100124 | AA26: Modbus Extension | AB26: 4799 | AE26: 100124 | AF26: Modbus Extension | AG26: 190 | AJ26: 100124 | AK26: Modbus Extension | AL26: 230.56 | AO26: 100124 | AP26: Modbus Extension | AQ26: 190 | AT26: 100124 | AU26: Modbus Extension | AV26: 190 | AY26: Not done | AZ26: not translated yet | BA26: Not done | BD26: Not done | BE26: not translated yet | BF26: Not done | BH26: Not done | BI26: not translated yet | BJ26: Not done | BM26: Not done | BN26: not translated yet | BO26: Not done | BR26: Not done | BS26: not translated yet | BT26: Not done | BW26: Not done | BX26: not translated yet | BY26: Not done | CB26: Not done | CC26: not translated yet | CD26: Not done | CM26: 23 | CN26: 100124 | CO26: 100124 | CP26: 100124 | CQ26: 100124 | CR26: 100124 | CS26: 100124 | CT26: 100124 | CU26: 100124 | CV26: 100124 | CW26: 100124 | CX26: Not done | CY26: Not done | CZ26: Not done | DA26: Not done | DB26: Not done | DC26: Not done | DD26: Not done | DI26: Modbus Extension | DJ26: Modbus Extension | DK26: Modbus Extension | DL26: Extension Modbus | DM26: Modbus Extension | DN26: Modbus Extension | DO26: Modbus Extension | DP26: Modbus Extension | DQ26: Modbus Extension | DR26: Modbus Extension | DS26: not translated yet | DT26: not translated yet | DU26: not translated yet | DV26: not translated yet | DW26: not translated yet | DX26: not translated yet | DY26: not translated yet | EE26: 190 | EF26: 165 | EG26: 255 | EH26: 190 | EI26: 190 | EJ26: 4799 | EK26: 190 | EL26: 230.56 | EM26: 190 | EN26: 190 | EO26: Not done | EP26: Not done | EQ26: Not done | ER26: Not done | ES26: Not done | ET26: Not done | EU26: Not done
A27: 100125 | B27: RGBW 24V Dimmer Air | C27: 69.9 | F27: 100125 | G27: RGBW 24V Dimmer Air | H27: 62.5 | K27: 100125 | L27: RGBW 24V Dimmer Air | M27: 96 | P27: 100125 | Q27: RGBW 24V Dimmer Air | R27: 69.9 | U27: 100125 | V27: Dimmer Air RGBW 24V | W27: 69.9 | Z27: 100125 | AA27: RGBW 24V Dimmer Air | AB27: 1849 | AE27: 100125 | AF27: RGBW 24V Dimmer Air | AG27: 69.9 | AJ27: 100125 | AK27: RGBW 24V Dimmer Air | AL27: 83.29 | AO27: 100125 | AP27: RGBW 24V Dimmer Air | AQ27: 69.9 | AT27: 100125 | AU27: RGBW 24V Dimmer Air | AV27: 69.9 | AY27: Not done | AZ27: not translated yet | BA27: Not done | BD27: Not done | BE27: not translated yet | BF27: Not done | BH27: Not done | BI27: not translated yet | BJ27: Not done | BM27: Not done | BN27: not translated yet | BO27: Not done | BR27: Not done | BS27: not translated yet | BT27: Not done | BW27: Not done | BX27: not translated yet | BY27: Not done | CB27: Not done | CC27: not translated yet | CD27: Not done | CM27: 24 | CN27: 100125 | CO27: 100125 | CP27: 100125 | CQ27: 100125 | CR27: 100125 | CS27: 100125 | CT27: 100125 | CU27: 100125 | CV27: 100125 | CW27: 100125 | CX27: Not done | CY27: Not done | CZ27: Not done | DA27: Not done | DB27: Not done | DC27: Not done | DD27: Not done | DI27: RGBW 24V Dimmer Air | DJ27: RGBW 24V Dimmer Air | DK27: RGBW 24V Dimmer Air | DL27: RGBW 24V Dimmer Air | DM27: Dimmer Air RGBW 24V | DN27: RGBW 24V Dimmer Air | DO27: RGBW 24V Dimmer Air | DP27: RGBW 24V Dimmer Air | DQ27: RGBW 24V Dimmer Air | DR27: RGBW 24V Dimmer Air | DS27: not translated yet | DT27: not translated yet | DU27: not translated yet | DV27: not translated yet | DW27: not translated yet | DX27: not translated yet | DY27: not translated yet | EE27: 69.9 | EF27: 62.5 | EG27: 96 | EH27: 69.9 | EI27: 69.9 | EJ27: 1849 | EK27: 69.9 | EL27: 83.29 | EM27: 69.9 | EN27: 69.9 | EO27: Not done | EP27: Not done | EQ27: Not done | ER27: Not done | ES27: Not done | ET27: Not done | EU27: Not done
A28: 100139 | B28: Miniserver Go | C28: 299 | F28: 100139 | G28: Miniserver Go | H28: 247.5 | K28: 100139 | L28: Miniserver Go | M28: 349 | P28: 100139 | Q28: Miniserver Go | R28: 299 | U28: 100139 | V28: Miniserver Go | W28: 299 | Z28: 100139 | AA28: Miniserver Go | AB28: 8263.63 | AE28: 100139 | AF28: Miniserver Go | AG28: 299 | AJ28: 100139 | AK28: Miniserver Go | AL28: 369.44 | AO28: 100139 | AP28: Miniserver Go | AQ28: 299 | AT28: 100139 | AU28: Miniserver Go | AV28: 299 | AY28: Not done | AZ28: not translated yet | BA28: Not done | BD28: Not done | BE28: not translated yet | BF28: Not done | BH28: Not done | BI28: not translated yet | BJ28: Not done | BM28: Not done | BN28: not translated yet | BO28: Not done | BR28: Not done | BS28: not translated yet | BT28: Not done | BW28: Not done | BX28: not translated yet | BY28: Not done | CB28: Not done | CC28: not translated yet | CD28: Not done | CM28: 25 | CN28: 100139 | CO28: 100139 | CP28: 100139 | CQ28: 100139 | CR28: 100139 | CS28: 100139 | CT28: 100139 | CU28: 100139 | CV28: 100139 | CW28: 100139 | CX28: Not done | CY28: Not done | CZ28: Not done | DA28: Not done | DB28: Not done | DC28: Not done | DD28: Not done | DI28: Miniserver Go | DJ28: Miniserver Go | DK28: Miniserver Go | DL28: Miniserver Go | DM28: Miniserver Go | DN28: Miniserver Go | DO28: Miniserver Go | DP28: Miniserver Go | DQ28: Miniserver Go | DR28: Miniserver Go | DS28: not translated yet | DT28: not translated yet | DU28: not translated yet | DV28: not translated yet | DW28: not translated yet | DX28: not translated yet | DY28: not translated yet | EE28: 299 | EF28: 247.5 | EG28: 349 | EH28: 299 | EI28: 299 | EJ28: 8263.63 | EK28: 299 | EL28: 369.44 | EM28: 299 | EN28: 299 | EO28: Not done | EP28: Not done | EQ28: Not done | ER28: Not done | ES28: Not done | ET28: Not done | EU28: Not done
A29: 100140 | B29: Remote Air | C29: 41 | F29: 100140 | G29: Remote Air | H29: 35 | K29: 100140 | L29: Remote Air | M29: 55.5 | P29: 100140 | Q29: Remote Air | R29: 41 | U29: 100140 | V29: Remote Air | W29: 41 | Z29: 100140 | AA29: Remote Air | AB29: 1099 | AE29: 100140 | AF29: Remote Air | AG29: 41 | AJ29: 100140 | AK29: Remote Air | AL29: 49.95 | AO29: 100140 | AP29: Remote Air | AQ29: 41 | AT29: 100140 | AU29: Remote Air | AV29: 41 | AY29: Not done | AZ29: not translated yet | BA29: Not done | BD29: Not done | BE29: not translated yet | BF29: Not done | BH29: Not done | BI29: not translated yet | BJ29: Not done | BM29: Not done | BN29: not translated yet | BO29: Not done | BR29: Not done | BS29: not translated yet | BT29: Not done | BW29: Not done | BX29: not translated yet | BY29: Not done | CB29: Not done | CC29: not translated yet | CD29: Not done | CM29: 26 | CN29: 100140 | CO29: 100140 | CP29: 100140 | CQ29: 100140 | CR29: 100140 | CS29: 100140 | CT29: 100140 | CU29: 100140 | CV29: 100140 | CW29: 100140 | CX29: Not done | CY29: Not done | CZ29: Not done | DA29: Not done | DB29: Not done | DC29: Not done | DD29: Not done | DI29: Remote Air | DJ29: Remote Air | DK29: Remote Air | DL29: Remote Air | DM29: Remote Air | DN29: Remote Air | DO29: Remote Air | DP29: Remote Air | DQ29: Remote Air | DR29: Remote Air | DS29: not translated yet | DT29: not translated yet | DU29: not translated yet | DV29: not translated yet | DW29: not translated yet | DX29: not translated yet | DY29: not translated yet | EE29: 41 | EF29: 35 | EG29: 55.5 | EH29: 41 | EI29: 41 | EJ29: 1099 | EK29: 41 | EL29: 49.95 | EM29: 41 | EN29: 41 | EO29: Not done | EP29: Not done | EQ29: Not done | ER29: Not done | ES29: Not done | ET29: Not done | EU29: Not done
A30: 100141 | B30: IR Control Air | C30: 89 | F30: 100141 | G30: IR Control Air | H30: 77.5 | K30: 100141 | L30: IR Control Air | M30: 124.9 | P30: 100141 | Q30: IR Control Air | R30: 89 | U30: 100141 | V30: IR Control Air | W30: 89 | Z30: 100141 | AA30: IR Control Air | AB30: 2499 | AE30: 100141 | AF30: IR Control Air | AG30: 89 | AJ30: 100141 | AK30: IR Control Air | AL30: 110.19 | AO30: 100141 | AP30: IR Control Air | AQ30: 89 | AT30: 100141 | AU30: IR Control Air | AV30: 89 | AY30: Not done | AZ30: not translated yet | BA30: Not done | BD30: Not done | BE30: not translated yet | BF30: Not done | BH30: Not done | BI30: not translated yet | BJ30: Not done | BM30: Not done | BN30: not translated yet | BO30: Not done | BR30: Not done | BS30: not translated yet | BT30: Not done | BW30: Not done | BX30: not translated yet | BY30: Not done | CB30: Not done | CC30: not translated yet | CD30: Not done | CM30: 27 | CN30: 100141 | CO30: 100141 | CP30: 100141 | CQ30: 100141 | CR30: 100141 | CS30: 100141 | CT30: 100141 | CU30: 100141 | CV30: 100141 | CW30: 100141 | CX30: Not done | CY30: Not done | CZ30: Not done | DA30: Not done | DB30: Not done | DC30: Not done | DD30: Not done | DI30: IR Control Air | DJ30: IR Control Air | DK30: IR Control Air | DL30: IR Control Air | DM30: IR Control Air | DN30: IR Control Air | DO30: IR Control Air | DP30: IR Control Air | DQ30: IR Control Air | DR30: IR Control Air | DS30: not translated yet | DT30: not translated yet | DU30: not translated yet | DV30: not translated yet | DW30: not translated yet | DX30: not translated yet | DY30: not translated yet | EE30: 89 | EF30: 77.5 | EG30: 124.9 | EH30: 89 | EI30: 89 | EJ30: 2499 | EK30: 89 | EL30: 110.19 | EM30: 89 | EN30: 89 | EO30: Not done | EP30: Not done | EQ30: Not done | ER30: Not done | ES30: Not done | ET30: Not done | EU30: Not done
A31: 100142 | B31: Smoke Detector Air | C31: 75 | F31: 100142 | G31: Smoke Detector Air | H31: 65 | K31: 100142 | L31: Smoke Detector Air | M31: 99 | P31: 100142 | Q31: Détecteur de Fumée Air | R31: 75 | U31: 100142 | V31: Detector de humo Air | W31: 75 | Z31: 100142 | AA31: Detektor kouře Air | AB31: 2049 | AE31: 100142 | AF31: Smoke Detector Air | AG31: 75 | AJ31: 100142 | AK31: Smoke Detector Air | AL31: 89.77 | AO31: 100142 | AP31: Detektor kouře Air | AQ31: 75 | AT31: 100142 | AU31: Smoke Detector Air | AV31: 75 | AY31: Not done | AZ31: not translated yet | BA31: Not done | BD31: Not done | BE31: not translated yet | BF31: Not done | BH31: Not done | BI31: not translated yet | BJ31: Not done | BM31: Not done | BN31: not translated yet | BO31: Not done | BR31: Not done | BS31: not translated yet | BT31: Not done | BW31: Not done | BX31: not translated yet | BY31: Not done | CB31: Not done | CC31: not translated yet | CD31: Not done | CM31: 28 | CN31: 100142 | CO31: 100142 | CP31: 100142 | CQ31: 100142 | CR31: 100142 | CS31: 100142 | CT31: 100142 | CU31: 100142 | CV31: 100142 | CW31: 100142 | CX31: Not done | CY31: Not done | CZ31: Not done | DA31: Not done | DB31: Not done | DC31: Not done | DD31: Not done | DI31: Smoke Detector Air | DJ31: Smoke Detector Air | DK31: Smoke Detector Air | DL31: Détecteur de Fumée Air | DM31: Detector de humo Air | DN31: Detektor kouře Air | DO31: Smoke Detector Air | DP31: Smoke Detector Air | DQ31: Detektor kouře Air | DR31: Smoke Detector Air | DS31: not translated yet | DT31: not translated yet | DU31: not translated yet | DV31: not translated yet | DW31: not translated yet | DX31: not translated yet | DY31: not translated yet | EE31: 75 | EF31: 65 | EG31: 99 | EH31: 75 | EI31: 75 | EJ31: 2049 | EK31: 75 | EL31: 89.77 | EM31: 75 | EN31: 75 | EO31: Not done | EP31: Not done | EQ31: Not done | ER31: Not done | ES31: Not done | ET31: Not done | EU31: Not done
A32: 100149 | B32: Temperatur & Feuchtefühler Air | C32: 69 | F32: 100149 | G32: Temperature & Humidity Sesnor Air | H32: 57.5 | K32: 100149 | L32: Temperature & Humidity Sesnor Air | M32: 79 | P32: 100149 | Q32: Sonde de Température et humidité Air | R32: 69 | U32: 100149 | V32: Sensor de temperatura y humedad Air | W32: 69 | Z32: 100149 | AA32: Senzor teploty & vlhkosti Air | AB32: 1899 | AE32: 100149 | AF32: Sensore temperatura & umidità Air | AG32: 69 | AJ32: 100149 | AK32: Temperatur & Feuchtefühler Air | AL32: 86.99 | AO32: 100149 | AP32: Senzor teploty & vlhkosti Air | AQ32: 69 | AT32: 100149 | AU32: Temperatuur & Vochtigheidsvoeler Air | AV32: 69 | AY32: Not done | AZ32: not translated yet | BA32: Not done | BD32: Not done | BE32: not translated yet | BF32: Not done | BH32: Not done | BI32: not translated yet | BJ32: Not done | BM32: Not done | BN32: not translated yet | BO32: Not done | BR32: Not done | BS32: not translated yet | BT32: Not done | BW32: Not done | BX32: not translated yet | BY32: Not done | CB32: Not done | CC32: not translated yet | CD32: Not done | CM32: 29 | CN32: 100149 | CO32: 100149 | CP32: 100149 | CQ32: 100149 | CR32: 100149 | CS32: 100149 | CT32: 100149 | CU32: 100149 | CV32: 100149 | CW32: 100149 | CX32: Not done | CY32: Not done | CZ32: Not done | DA32: Not done | DB32: Not done | DC32: Not done | DD32: Not done | DI32: Temperatur & Feuchtefühler Air | DJ32: Temperature & Humidity Sesnor Air | DK32: Temperature & Humidity Sesnor Air | DL32: Sonde de Température et humidité Air | DM32: Sensor de temperatura y humedad Air | DN32: Senzor teploty & vlhkosti Air | DO32: Sensore temperatura & umidità Air | DP32: Temperatur & Feuchtefühler Air | DQ32: Senzor teploty & vlhkosti Air | DR32: Temperatuur & Vochtigheidsvoeler Air | DS32: not translated yet | DT32: not translated yet | DU32: not translated yet | DV32: not translated yet | DW32: not translated yet | DX32: not translated yet | DY32: not translated yet | EE32: 69 | EF32: 57.5 | EG32: 79 | EH32: 69 | EI32: 69 | EJ32: 1899 | EK32: 69 | EL32: 86.99 | EM32: 69 | EN32: 69 | EO32: Not done | EP32: Not done | EQ32: Not done | ER32: Not done | ES32: Not done | ET32: Not done | EU32: Not done
